Workbook

Sheet 1 (hidden)
J1: L(t) | K1: (L(t)-Lobs)^2 | L1: Soma | M1: (Lobs-Lmed)^2 | N1: L(t) | O1: (L(t)-Lobs)^2 | P1: Soma | R1: L(t) | S1: (L(t)-Lobs)^2 | T1: Soma
A2: Idade | B2: Comprimento médio Observado | C2: Desvio padrão | E2: Valores aproximados para os parâmetros | J2: =IF(B3>0,$F$3*(1-EXP(-$F$4*(A3-$F$5))),0) -> 16.46617684 | K2: =IF(C3<>0,((1/(C3)^2)*(J2-B3)^2),(J2-B3)^2) -> 1.136733045 | L2: =SUM($K$2:$K$202) -> 28.80037789 | M2: =IF(B3<>0,(B3-AVERAGE($B$3:$B$203))^2,0) -> 1108.582637 | N2: =IF(B3>0,$F$3/(1+EXP(-$F$4*(A3-$F$5))),0) -> 35.37263157 | O2: =IF(C3<>0,((1/(C3)^2)*(N2-B3)^2),(N2-B3)^2) -> 398.9060117 | P2: =SUM(O2:O102) -> 585.4561626 | R2: =IF(B3>0,$F$3*EXP(-EXP(-$F$4*(A3-$F$5))),0) -> 29.47667578 | S2: =IF(C3<>0,((1/(C3)^2)*(R2-B3)^2),(R2-B3)^2) -> 198.1528011 | T2: =SUM(S2:S102) -> 281.8400531
A3: 1 | B3: 15.4 | E3: Linf | F3: 61.23323978 | G3: 0.3878257648 | J3: =IF(B4>0,$F$3*(1-EXP(-$F$4*(A4-$F$5))),0) -> 27.94454737 | K3: =IF(C4<>0,((1/(C4)^2)*(J3-B4)^2),(J3-B4)^2) -> 0.00730215125 | M3: =IF(B4<>0,(B4-AVERAGE($B$3:$B$203))^2,0) -> 427.0581213 | N3: =IF(B4>0,$F$3/(1+EXP(-$F$4*(A4-$F$5))),0) -> 39.66814439 | O3: =IF(C4<>0,((1/(C4)^2)*(N3-B4)^2),(N3-B4)^2) -> 135.4464049 | R3: =IF(B4>0,$F$3*EXP(-EXP(-$F$4*(A4-$F$5))),0) -> 35.55399622 | S3: =IF(C4<>0,((1/(C4)^2)*(R3-B4)^2),(R3-B4)^2) -> 56.61051913
A4: 2 | B4: 28.03 | E4: k | F4: 0.2962548949 | G4: 0.009181079869 | J4: 38.58490321 | K4: 6.734527331 | M4: 56.48100592 | N4: 44.70003805 | O4: 12.39066785 | R4: 42.30140098 | S4: 1.257540163
A5: 3.3 | B5: 41.18 | E5: t0 | F5: -0.05725682229 | G5: 0.05601098772 | J5: 44.39198508 | K5: 3.268917969 | M5: 6.226944379 | N5: 48.02477017 | O5: 3.329786185 | R5: 46.50945642 | S5: 0.0957632775
A6: 4.3 | B6: 46.2 | J6: 48.71011875 | K6: 0.2305140105 | M6: 0.2165828402 | N6: 50.83642431 | O6: 6.793447693 | R6: 49.90768975 | S6: 2.814642896
A7: 5.3 | B7: 48.23 | J7: 51.92107372 | K7: 2.759165913 | M7: 2.448021302 | N7: 53.15030241 | O7: 8.353848031 | R7: 52.59458658 | S7: 5.450294513
A8: 6.3 | B8: 50.26 | E8: R ajustado VBGC = | F8: =1-(1-F12)*((COUNT(B3:B203)-1)/(COUNT(B3:B203)-3)) -> 0.9845927902 | H8: =SUM(M2:M203) -> 2243.135123 | J8: 54.30873299 | K8: 6.193791878 | M8: 9.763221302 | N8: 55.01223034 | O8: 10.19033455 | R8: 54.68590837 | S8: 8.213430812
A9: 7.3 | B9: 51.82 | E9: R ajustado L= | F9: =1-(1-F13)*((COUNT(B3:B203)-1)/(COUNT(B3:B203)-3)) -> 0.6868011259 | J9: 56.08419132 | K9: 3.291290132 | M9: 31.07633669 | N9: 56.4835855 | O9: 4.899960785 | R9: 56.29473808 | S9: 4.099564277
A10: 8.3 | B10: 54.27 | E10: R ajustado G = | F10: =1-(1-F14)*((COUNT(B3:B203)-1)/(COUNT(B3:B203)-3)) -> 0.8492252828 | J10: 57.40441834 | K10: 0.1801309263 | M10: 68.63485207 | N10: 57.62973972 | O10: 0.4221617068 | R10: 57.52166706 | S10: 0.2934032008
A11: 9.3 | B11: 56.98 | J11: 58.38613633 | K11: 0.2957876878 | M11: 104.7473521 | N11: 58.51263375 | O11: 0.1741945843 | R11: 58.45131182 | S11: 0.2291423717
A12: 10.3 | B12: 58.93 | E12: R2 VBGC = | F12: =1-(L2/H8) -> 0.9871606585 | J12: 59.11613974 | K12: 0.0134884387 | M12: 106.1850982 | N12: 59.18689094 | O12: 0.03492822285 | R12: 59.15232026 | S12: 0.02320146023
A13: 11.3 | B13: 59 | E13: R2 L= | F13: =1-(P2/H8) -> 0.7390009382 | J13: 59.65896871 | K13: 1.565079288 | M13: 149.196829 | N13: 59.69842784 | O13: 1.467907111 | R13: 59.67903319 | S13: 1.515279283
A14: 12.3 | B14: 60.91 | E14: R2 G = | F14: =1-(T2/H8) -> 0.8743544024 | J14: 60.06261518 | K14: 3.123649119 | M14: 172.5181213 | N14: 60.08457474 | O14: 3.046509323 | R14: 60.0737339 | S14: 3.084470618
A15: 13.3 | B15: 61.83 | J15: 0 | K15: 0 | M15: 0 | N15: 0 | O15: 0 | R15: 0 | S15: 0
J16: 0 | K16: 0 | M16: 0 | N16: 0 | O16: 0 | R16: 0 | S16: 0
J17: 0 | K17: 0 | M17: 0 | N17: 0 | O17: 0 | R17: 0 | S17: 0
J18: 0 | K18: 0 | M18: 0 | N18: 0 | O18: 0 | R18: 0 | S18: 0
J19: 0 | K19: 0 | M19: 0 | N19: 0 | O19: 0 | R19: 0 | S19: 0
J20: 0 | K20: 0 | M20: 0 | N20: 0 | O20: 0 | R20: 0 | S20: 0
J21: 0 | K21: 0 | M21: 0 | N21: 0 | O21: 0 | R21: 0 | S21: 0
J22: 0 | K22: 0 | M22: 0 | N22: 0 | O22: 0 | R22: 0 | S22: 0
J23: 0 | K23: 0 | M23: 0 | N23: 0 | O23: 0 | R23: 0 | S23: 0
J24: 0 | K24: 0 | M24: 0 | N24: 0 | O24: 0 | R24: 0 | S24: 0
J25: 0 | K25: 0 | M25: 0 | N25: 0 | O25: 0 | R25: 0 | S25: 0
J26: 0 | K26: 0 | M26: 0 | N26: 0 | O26: 0 | R26: 0 | S26: 0
J27: 0 | K27: 0 | M27: 0 | N27: 0 | O27: 0 | R27: 0 | S27: 0
J28: 0 | K28: 0 | M28: 0 | N28: 0 | O28: 0 | R28: 0 | S28: 0
J29: 0 | K29: 0 | M29: 0 | N29: 0 | O29: 0 | R29: 0 | S29: 0
J30: 0 | K30: 0 | M30: 0 | N30: 0 | O30: 0 | R30: 0 | S30: 0
J31: 0 | K31: 0 | M31: 0 | N31: 0 | O31: 0 | R31: 0 | S31: 0
J32: 0 | K32: 0 | M32: 0 | N32: 0 | O32: 0 | R32: 0 | S32: 0
J33: 0 | K33: 0 | M33: 0 | N33: 0 | O33: 0 | R33: 0 | S33: 0
J34: 0 | K34: 0 | M34: 0 | N34: 0 | O34: 0 | R34: 0 | S34: 0
J35: 0 | K35: 0 | M35: 0 | N35: 0 | O35: 0 | R35: 0 | S35: 0
J36: 0 | K36: 0 | M36: 0 | N36: 0 | O36: 0 | R36: 0 | S36: 0
J37: 0 | K37: 0 | M37: 0 | N37: 0 | O37: 0 | R37: 0 | S37: 0
J38: 0 | K38: 0 | M38: 0 | N38: 0 | O38: 0 | R38: 0 | S38: 0
J39: 0 | K39: 0 | M39: 0 | N39: 0 | O39: 0 | R39: 0 | S39: 0
J40: 0 | K40: 0 | M40: 0 | N40: 0 | O40: 0 | R40: 0 | S40: 0
J41: 0 | K41: 0 | M41: 0 | N41: 0 | O41: 0 | R41: 0 | S41: 0
J42: 0 | K42: 0 | M42: 0 | N42: 0 | O42: 0 | R42: 0 | S42: 0
J43: 0 | K43: 0 | M43: 0 | N43: 0 | O43: 0 | R43: 0 | S43: 0
J44: 0 | K44: 0 | M44: 0 | N44: 0 | O44: 0 | R44: 0 | S44: 0
J45: 0 | K45: 0 | M45: 0 | N45: 0 | O45: 0 | R45: 0 | S45: 0
J46: 0 | K46: 0 | M46: 0 | N46: 0 | O46: 0 | R46: 0 | S46: 0
J47: 0 | K47: 0 | M47: 0 | N47: 0 | O47: 0 | R47: 0 | S47: 0
J48: 0 | K48: 0 | M48: 0 | N48: 0 | O48: 0 | R48: 0 | S48: 0
J49: 0 | K49: 0 | M49: 0 | N49: 0 | O49: 0 | R49: 0 | S49: 0
J50: 0 | K50: 0 | M50: 0 | N50: 0 | O50: 0 | R50: 0 | S50: 0
J51: 0 | K51: 0 | M51: 0 | N51: 0 | O51: 0 | R51: 0 | S51: 0
J52: 0 | K52: 0 | M52: 0 | N52: 0 | O52: 0 | R52: 0 | S52: 0
J53: 0 | K53: 0 | M53: 0 | N53: 0 | O53: 0 | R53: 0 | S53: 0
J54: 0 | K54: 0 | M54: 0 | N54: 0 | O54: 0 | R54: 0 | S54: 0
J55: 0 | K55: 0 | M55: 0 | N55: 0 | O55: 0 | R55: 0 | S55: 0
J56: 0 | K56: 0 | M56: 0 | N56: 0 | O56: 0 | R56: 0 | S56: 0
J57: 0 | K57: 0 | M57: 0 | N57: 0 | O57: 0 | R57: 0 | S57: 0
J58: 0 | K58: 0 | M58: 0 | N58: 0 | O58: 0 | R58: 0 | S58: 0
J59: 0 | K59: 0 | M59: 0 | N59: 0 | O59: 0 | R59: 0 | S59: 0
J60: 0 | K60: 0 | M60: 0 | N60: 0 | O60: 0 | R60: 0 | S60: 0
J61: 0 | K61: 0 | M61: 0 | N61: 0 | O61: 0 | R61: 0 | S61: 0
J62: 0 | K62: 0 | M62: 0 | N62: 0 | O62: 0 | R62: 0 | S62: 0
J63: 0 | K63: 0 | M63: 0 | N63: 0 | O63: 0 | R63: 0 | S63: 0
J64: 0 | K64: 0 | M64: 0 | N64: 0 | O64: 0 | R64: 0 | S64: 0
J65: 0 | K65: 0 | M65: 0 | N65: 0 | O65: 0 | R65: 0 | S65: 0
J66: 0 | K66: 0 | M66: 0 | N66: 0 | O66: 0 | R66: 0 | S66: 0
J67: =IF(B68>0,$F$3*(1-EXP(-$F$4*(A68-$F$5))),0) -> 0 | K67: =IF(C68<>0,((1/(C68)^2)*(J67-B68)^2),(J67-B68)^2) -> 0 | M67: =IF(B68<>0,(B68-AVERAGE($B$3:$B$203))^2,0) -> 0 | N67: =IF(B68>0,$F$3/(1+EXP(-$F$4*(A68-$F$5))),0) -> 0 | O67: =IF(C68<>0,((1/(C68)^2)*(N67-B68)^2),(N67-B68)^2) -> 0 | R67: =IF(B68>0,$F$3*EXP(-EXP(-$F$4*(A68-$F$5))),0) -> 0 | S67: =IF(C68<>0,((1/(C68)^2)*(R67-B68)^2),(R67-B68)^2) -> 0
J68: 0 | K68: 0 | M68: 0 | N68: 0 | O68: 0 | R68: 0 | S68: 0
J69: 0 | K69: 0 | M69: 0 | N69: 0 | O69: 0 | R69: 0 | S69: 0
J70: 0 | K70: 0 | M70: 0 | N70: 0 | O70: 0 | R70: 0 | S70: 0
J71: 0 | K71: 0 | M71: 0 | N71: 0 | O71: 0 | R71: 0 | S71: 0
J72: 0 | K72: 0 | M72: 0 | N72: 0 | O72: 0 | R72: 0 | S72: 0
J73: 0 | K73: 0 | M73: 0 | N73: 0 | O73: 0 | R73: 0 | S73: 0
J74: 0 | K74: 0 | M74: 0 | N74: 0 | O74: 0 | R74: 0 | S74: 0
J75: 0 | K75: 0 | M75: 0 | N75: 0 | O75: 0 | R75: 0 | S75: 0
J76: 0 | K76: 0 | M76: 0 | N76: 0 | O76: 0 | R76: 0 | S76: 0
J77: 0 | K77: 0 | M77: 0 | N77: 0 | O77: 0 | R77: 0 | S77: 0
J78: 0 | K78: 0 | M78: 0 | N78: 0 | O78: 0 | R78: 0 | S78: 0
J79: 0 | K79: 0 | M79: 0 | N79: 0 | O79: 0 | R79: 0 | S79: 0
J80: 0 | K80: 0 | M80: 0 | N80: 0 | O80: 0 | R80: 0 | S80: 0
J81: 0 | K81: 0 | M81: 0 | N81: 0 | O81: 0 | R81: 0 | S81: 0
J82: 0 | K82: 0 | M82: 0 | N82: 0 | O82: 0 | R82: 0 | S82: 0
J83: 0 | K83: 0 | M83: 0 | N83: 0 | O83: 0 | R83: 0 | S83: 0
J84: 0 | K84: 0 | M84: 0 | N84: 0 | O84: 0 | R84: 0 | S84: 0
J85: 0 | K85: 0 | M85: 0 | N85: 0 | O85: 0 | R85: 0 | S85: 0
J86: 0 | K86: 0 | M86: 0 | N86: 0 | O86: 0 | R86: 0 | S86: 0
J87: 0 | K87: 0 | M87: 0 | N87: 0 | O87: 0 | R87: 0 | S87: 0
J88: 0 | K88: 0 | M88: 0 | N88: 0 | O88: 0 | R88: 0 | S88: 0
J89: 0 | K89: 0 | M89: 0 | N89: 0 | O89: 0 | R89: 0 | S89: 0
J90: 0 | K90: 0 | M90: 0 | N90: 0 | O90: 0 | R90: 0 | S90: 0
J91: 0 | K91: 0 | M91: 0 | N91: 0 | O91: 0 | R91: 0 | S91: 0
J92: 0 | K92: 0 | M92: 0 | N92: 0 | O92: 0 | R92: 0 | S92: 0
J93: 0 | K93: 0 | M93: 0 | N93: 0 | O93: 0 | R93: 0 | S93: 0
J94: 0 | K94: 0 | M94: 0 | N94: 0 | O94: 0 | R94: 0 | S94: 0
J95: 0 | K95: 0 | M95: 0 | N95: 0 | O95: 0 | R95: 0 | S95: 0
J96: 0 | K96: 0 | M96: 0 | N96: 0 | O96: 0 | R96: 0 | S96: 0
J97: 0 | K97: 0 | M97: 0 | N97: 0 | O97: 0 | R97: 0 | S97: 0
J98: 0 | K98: 0 | M98: 0 | N98: 0 | O98: 0 | R98: 0 | S98: 0
J99: 0 | K99: 0 | M99: 0 | N99: 0 | O99: 0 | R99: 0 | S99: 0
J100: 0 | K100: 0 | M100: 0 | N100: 0 | O100: 0 | R100: 0 | S100: 0
J101: 0 | K101: 0 | M101: 0 | N101: 0 | O101: 0 | R101: 0 | S101: 0
J102: 0 | K102: 0 | M102: 0 | N102: 0 | O102: 0 | R102: 0 | S102: 0
J103: =IF(B104>0,$F$3*(1-EXP(-$F$4*(A104-$F$5))),0) -> 0 | K103: =IF(C104<>0,((1/(C104)^2)*(J103-B104)^2),(J103-B104)^2) -> 0 | M103: 0 | N103: =IF(B104>0,$F$3/(1+EXP(-$F$4*(A104-$F$5))),0) -> 0 | O103: =IF(C104<>0,((1/(C104)^2)*(N103-B104)^2),(N103-B104)^2) -> 0 | R103: =IF(B104>0,$F$3*EXP(-EXP(-$F$4*(A104-$F$5))),0) -> 0 | S103: =IF(C104<>0,((1/(C104)^2)*(R103-B104)^2),(R103-B104)^2) -> 0
J104: 0 | K104: 0 | M104: 0 | N104: 0 | O104: 0 | R104: 0 | S104: 0
J105: 0 | K105: 0 | M105: 0 | N105: 0 | O105: 0 | R105: 0 | S105: 0
J106: 0 | K106: 0 | M106: 0 | N106: 0 | O106: 0 | R106: 0 | S106: 0
J107: 0 | K107: 0 | M107: 0 | N107: 0 | O107: 0 | R107: 0 | S107: 0
J108: 0 | K108: 0 | M108: 0 | N108: 0 | O108: 0 | R108: 0 | S108: 0
J109: 0 | K109: 0 | M109: 0 | N109: 0 | O109: 0 | R109: 0 | S109: 0
J110: 0 | K110: 0 | M110: 0 | N110: 0 | O110: 0 | R110: 0 | S110: 0
J111: 0 | K111: 0 | M111: 0 | N111: 0 | O111: 0 | R111: 0 | S111: 0
J112: 0 | K112: 0 | M112: 0 | N112: 0 | O112: 0 | R112: 0 | S112: 0
J113: 0 | K113: 0 | M113: 0 | N113: 0 | O113: 0 | R113: 0 | S113: 0
J114: 0 | K114: 0 | M114: 0 | N114: 0 | O114: 0 | R114: 0 | S114: 0
J115: 0 | K115: 0 | M115: 0 | N115: 0 | O115: 0 | R115: 0 | S115: 0
J116: 0 | K116: 0 | M116: 0 | N116: 0 | O116: 0 | R116: 0 | S116: 0
J117: 0 | K117: 0 | M117: 0 | N117: 0 | O117: 0 | R117: 0 | S117: 0
J118: 0 | K118: 0 | M118: 0 | N118: 0 | O118: 0 | R118: 0 | S118: 0
J119: 0 | K119: 0 | M119: 0 | N119: 0 | O119: 0 | R119: 0 | S119: 0
J120: 0 | K120: 0 | M120: 0 | N120: 0 | O120: 0 | R120: 0 | S120: 0
J121: 0 | K121: 0 | M121: 0 | N121: 0 | O121: 0 | R121: 0 | S121: 0
J122: 0 | K122: 0 | M122: 0 | N122: 0 | O122: 0 | R122: 0 | S122: 0
J123: 0 | K123: 0 | M123: 0 | N123: 0 | O123: 0 | R123: 0 | S123: 0
J124: 0 | K124: 0 | M124: 0 | N124: 0 | O124: 0 | R124: 0 | S124: 0
J125: 0 | K125: 0 | M125: 0 | N125: 0 | O125: 0 | R125: 0 | S125: 0
J126: 0 | K126: 0 | M126: 0 | N126: 0 | O126: 0 | R126: 0 | S126: 0
J127: 0 | K127: 0 | M127: 0 | N127: 0 | O127: 0 | R127: 0 | S127: 0
J128: 0 | K128: 0 | M128: 0 | N128: 0 | O128: 0 | R128: 0 | S128: 0
J129: 0 | K129: 0 | M129: 0 | N129: 0 | O129: 0 | R129: 0 | S129: 0
J130: 0 | K130: 0 | M130: 0 | N130: 0 | O130: 0 | R130: 0 | S130: 0
J131: 0 | K131: 0 | M131: =IF(B132<>0,(B132-AVERAGE($B$3:$B$203))^2,0) -> 0 | N131: 0 | O131: 0 | R131: 0 | S131: 0
J132: 0 | K132: 0 | M132: 0 | N132: 0 | O132: 0 | R132: 0 | S132: 0
J133: 0 | K133: 0 | M133: 0 | N133: 0 | O133: 0 | R133: 0 | S133: 0
J134: 0 | K134: 0 | M134: 0 | N134: 0 | O134: 0 | R134: 0 | S134: 0
J135: 0 | K135: 0 | M135: 0 | N135: 0 | O135: 0 | R135: 0 | S135: 0
J136: 0 | K136: 0 | M136: 0 | N136: 0 | O136: 0 | R136: 0 | S136: 0
J137: 0 | K137: 0 | M137: 0 | N137: 0 | O137: 0 | R137: 0 | S137: 0
J138: 0 | K138: 0 | M138: 0 | N138: 0 | O138: 0 | R138: 0 | S138: 0
J139: 0 | K139: 0 | M139: 0 | N139: 0 | O139: 0 | R139: 0 | S139: 0
J140: 0 | K140: 0 | M140: 0 | N140: 0 | O140: 0 | R140: 0 | S140: 0
J141: 0 | K141: 0 | M141: 0 | N141: 0 | O141: 0 | R141: 0 | S141: 0
J142: 0 | K142: 0 | M142: 0 | N142: 0 | O142: 0 | R142: 0 | S142: 0
J143: 0 | K143: 0 | M143: 0 | N143: 0 | O143: 0 | R143: 0 | S143: 0
J144: 0 | K144: 0 | M144: 0 | N144: 0 | O144: 0 | R144: 0 | S144: 0
J145: 0 | K145: 0 | M145: 0 | N145: 0 | O145: 0 | R145: 0 | S145: 0
J146: 0 | K146: 0 | M146: 0 | N146: 0 | O146: 0 | R146: 0 | S146: 0
J147: 0 | K147: 0 | M147: 0 | N147: 0 | O147: 0 | R147: 0 | S147: 0
J148: 0 | K148: 0 | M148: 0 | N148: 0 | O148: 0 | R148: 0 | S148: 0
J149: 0 | K149: 0 | M149: 0 | N149: 0 | O149: 0 | R149: 0 | S149: 0
J150: 0 | K150: 0 | M150: 0 | N150: 0 | O150: 0 | R150: 0 | S150: 0
J151: 0 | K151: 0 | M151: 0 | N151: 0 | O151: 0 | R151: 0 | S151: 0
J152: 0 | K152: 0 | M152: 0 | N152: 0 | O152: 0 | R152: 0 | S152: 0
J153: 0 | K153: 0 | M153: 0 | N153: 0 | O153: 0 | R153: 0 | S153: 0
J154: 0 | K154: 0 | M154: 0 | N154: 0 | O154: 0 | R154: 0 | S154: 0
J155: 0 | K155: 0 | M155: 0 | N155: 0 | O155: 0 | R155: 0 | S155: 0
J156: 0 | K156: 0 | M156: 0 | N156: 0 | O156: 0 | R156: 0 | S156: 0
J157: 0 | K157: 0 | M157: 0 | N157: 0 | O157: 0 | R157: 0 | S157: 0
J158: 0 | K158: 0 | M158: 0 | N158: 0 | O158: 0 | R158: 0 | S158: 0
J159: 0 | K159: 0 | M159: 0 | N159: 0 | O159: 0 | R159: 0 | S159: 0
J160: 0 | K160: 0 | M160: 0 | N160: 0 | O160: 0 | R160: 0 | S160: 0
J161: 0 | K161: 0 | M161: 0 | N161: 0 | O161: 0 | R161: 0 | S161: 0
J162: 0 | K162: 0 | M162: 0 | N162: 0 | O162: 0 | R162: 0 | S162: 0
J163: 0 | K163: 0 | M163: 0 | N163: 0 | O163: 0 | R163: 0 | S163: 0
J164: 0 | K164: 0 | M164: 0 | N164: 0 | O164: 0 | R164: 0 | S164: 0
J165: 0 | K165: 0 | M165: 0 | N165: 0 | O165: 0 | R165: 0 | S165: 0
J166: 0 | K166: 0 | M166: 0 | N166: 0 | O166: 0 | R166: 0 | S166: 0
J167: =IF(B168>0,$F$3*(1-EXP(-$F$4*(A168-$F$5))),0) -> 0 | K167: =IF(C168<>0,((1/(C168)^2)*(J167-B168)^2),(J167-B168)^2) -> 0 | M167: 0 | N167: =IF(B168>0,$F$3/(1+EXP(-$F$4*(A168-$F$5))),0) -> 0 | O167: =IF(C168<>0,((1/(C168)^2)*(N167-B168)^2),(N167-B168)^2) -> 0 | R167: =IF(B168>0,$F$3*EXP(-EXP(-$F$4*(A168-$F$5))),0) -> 0 | S167: =IF(C168<>0,((1/(C168)^2)*(R167-B168)^2),(R167-B168)^2) -> 0
J168: 0 | K168: 0 | M168: 0 | N168: 0 | O168: 0 | R168: 0 | S168: 0
J169: 0 | K169: 0 | M169: 0 | N169: 0 | O169: 0 | R169: 0 | S169: 0
J170: 0 | K170: 0 | M170: 0 | N170: 0 | O170: 0 | R170: 0 | S170: 0
J171: 0 | K171: 0 | M171: 0 | N171: 0 | O171: 0 | R171: 0 | S171: 0
J172: 0 | K172: 0 | M172: 0 | N172: 0 | O172: 0 | R172: 0 | S172: 0
J173: 0 | K173: 0 | M173: 0 | N173: 0 | O173: 0 | R173: 0 | S173: 0
J174: 0 | K174: 0 | M174: 0 | N174: 0 | O174: 0 | R174: 0 | S174: 0
J175: 0 | K175: 0 | M175: 0 | N175: 0 | O175: 0 | R175: 0 | S175: 0
J176: 0 | K176: 0 | M176: 0 | N176: 0 | O176: 0 | R176: 0 | S176: 0
J177: 0 | K177: 0 | M177: 0 | N177: 0 | O177: 0 | R177: 0 | S177: 0
J178: 0 | K178: 0 | M178: 0 | N178: 0 | O178: 0 | R178: 0 | S178: 0
J179: 0 | K179: 0 | M179: 0 | N179: 0 | O179: 0 | R179: 0 | S179: 0
J180: 0 | K180: 0 | M180: 0 | N180: 0 | O180: 0 | R180: 0 | S180: 0
J181: 0 | K181: 0 | M181: 0 | N181: 0 | O181: 0 | R181: 0 | S181: 0
J182: 0 | K182: 0 | M182: 0 | N182: 0 | O182: 0 | R182: 0 | S182: 0
J183: 0 | K183: 0 | M183: 0 | N183: 0 | O183: 0 | R183: 0 | S183: 0
J184: 0 | K184: 0 | M184: 0 | N184: 0 | O184: 0 | R184: 0 | S184: 0
J185: 0 | K185: 0 | M185: 0 | N185: 0 | O185: 0 | R185: 0 | S185: 0
J186: 0 | K186: 0 | M186: 0 | N186: 0 | O186: 0 | R186: 0 | S186: 0
J187: 0 | K187: 0 | M187: 0 | N187: 0 | O187: 0 | R187: 0 | S187: 0
J188: 0 | K188: 0 | M188: 0 | N188: 0 | O188: 0 | R188: 0 | S188: 0
J189: 0 | K189: 0 | M189: 0 | N189: 0 | O189: 0 | R189: 0 | S189: 0
J190: 0 | K190: 0 | M190: 0 | N190: 0 | O190: 0 | R190: 0 | S190: 0
J191: 0 | K191: 0 | M191: 0 | N191: 0 | O191: 0 | R191: 0 | S191: 0
J192: 0 | K192: 0 | M192: 0 | N192: 0 | O192: 0 | R192: 0 | S192: 0
J193: 0 | K193: 0 | M193: 0 | N193: 0 | O193: 0 | R193: 0 | S193: 0
J194: 0 | K194: 0 | M194: 0 | N194: 0 | O194: 0 | R194: 0 | S194: 0
J195: 0 | K195: 0 | M195: =IF(B196<>0,(B196-AVERAGE($B$3:$B$203))^2,0) -> 0 | N195: 0 | O195: 0 | R195: 0 | S195: 0
J196: 0 | K196: 0 | M196: 0 | N196: 0 | O196: 0 | R196: 0 | S196: 0
J197: 0 | K197: 0 | M197: 0 | N197: 0 | O197: 0 | R197: 0 | S197: 0
J198: 0 | K198: 0 | M198: 0 | N198: 0 | O198: 0 | R198: 0 | S198: 0
J199: 0 | K199: 0 | M199: 0 | N199: 0 | O199: 0 | R199: 0 | S199: 0
J200: 0 | K200: 0 | M200: 0 | N200: 0 | O200: 0 | R200: 0 | S200: 0
... 3 more rows

Sheet Fitting Growth Models
S1: Von Bertalanffy | W1: Logístico | X1: Dados Observados | AA1: Gompertz | AB1: Dados Observados
A2: Age | B2: Lenght | C2: Standard Deviation | E2: Valores aproximados para os parâmetros | Q2: Idade | R2: 0 | S2: =IF(R2<>"",$F$11*(1-EXP(-$F$12*(R2-$F$13))),"") -> 0 | U2: Idade | W2: =IF(V2<>"",$F$11/(1+EXP(-$F$12*(V2-$F$13))),"") ->  | Y2: Idade | AA2: =IF(Z2<>"",$F$11*EXP(-EXP(-$F$12*(Z2-$F$13))),"") -> 
E3: Linf | F3: 0,000 | G3: 0 | I3: 0,000 | R3: 0.1 | S3: =IF(R3<>"",$F$11*(1-EXP(-$F$12*(R3-$F$13))),"") -> 0 | W3: =IF(V3<>"",$F$11/(1+EXP(-$F$12*(V3-$F$13))),"") ->  | AA3: =IF(Z3<>"",$F$11*EXP(-EXP(-$F$12*(Z3-$F$13))),"") -> 
E4: k | F4: 0,000 | G4: 0 | I4: 0,000 | R4: 0.2 | S4: 0
E5: t0 | F5: 0,000 | G5: 0 | I5: 0,000 | R5: 0.3 | S5: 0
I6: 0,000 | R6: 0.4 | S6: 0
R7: 0.5 | S7: 0
E8: R ajustado = | F8: 0,000 | G8: RMSE= | H8: 0,000 | I8: 0,000 | R8: 0.6 | S8: 0
I9: 0,000 | R9: 0.7 | S9: 0
E10: Valores obtidos para os parâmetros | G10: erro padrão | I10: 0,000 | P10: idademax | R10: 0.8 | S10: 0
E11: Linf | F11: 0,000 | G11: 0,000 | I11: 0,000 | P11: =$F$13-LN(1-(($F$11-1)/$F$11))/$F$12 ->  | R11: 0.9 | S11: 0
E12: k | F12: 0,000 | G12: 0,000 | P12: =$F$13-LN(($F$11/($F$11-1))-1)/$F$12 ->  | R12: 1 | S12: 0 | T12: 15.4
E13: t0 | F13: 0,000 | G13: 0,000 | P13: =$F$13-(LN(LN($F$11/($F$11-1))))/$F$12 ->  | R13: 1.1 | S13: 0
R14: 1.2 | S14: 0
R15: 1.3 | S15: 0
R16: 1.4 | S16: 0
R17: 1.5 | S17: 0
R18: 1.6 | S18: 0
R19: 1.7 | S19: 0
R20: 1.8 | S20: 0
R21: 1.9 | S21: 0
R22: 2 | S22: 0 | T22: 28.03
R23: 2.1 | S23: 0
R24: 2.2 | S24: 0
R25: 2.3 | S25: 0
R26: 2.4 | S26: 0
R27: 2.5 | S27: 0
R28: 2.6 | S28: 0
R29: 2.7 | S29: 0
R30: 2.8 | S30: 0
R31: 2.9 | S31: 0
R32: 3 | S32: 0
R33: 3.1 | S33: 0
R34: 3.2 | S34: 0
R35: 3.3 | S35: 0 | T35: 41.18
R36: 3.4 | S36: 0
R37: 3.5 | S37: 0
R38: 3.6 | S38: 0
R39: 3.7 | S39: 0
R40: 3.8 | S40: 0
R41: 3.9 | S41: 0
R42: 4 | S42: 0
R43: 4.1 | S43: 0
R44: 4.2 | S44: 0
R45: 4.3 | S45: 0 | T45: 46.2
R46: 4.4 | S46: 0
R47: 4.5 | S47: 0
R48: 4.6 | S48: 0
R49: 4.7 | S49: 0
R50: 4.8 | S50: 0
R51: 4.9 | S51: 0
R52: 5 | S52: 0
R53: 5.1 | S53: 0
R54: 5.2 | S54: 0
R55: 5.3 | S55: 0 | T55: 48.23
R56: 5.4 | S56: 0
R57: 5.5 | S57: 0
R58: 5.6 | S58: 0
R59: 5.7 | S59: 0
R60: 5.8 | S60: 0
R61: 5.9 | S61: 0
R62: 6 | S62: 0
R63: 6.1 | S63: 0
R64: 6.2 | S64: 0
R65: 6.3 | S65: 0 | T65: 50.26
R66: 6.4 | S66: 0
R67: 6.5 | S67: =IF(R67<>"",$F$11*(1-EXP(-$F$12*(R67-$F$13))),"") -> 0 | W67: =IF(V67<>"",$F$11/(1+EXP(-$F$12*(V67-$F$13))),"") ->  | AA67: =IF(Z67<>"",$F$11*EXP(-EXP(-$F$12*(Z67-$F$13))),"") -> 
R68: 6.6 | S68: 0
R69: 6.7 | S69: 0
R70: 6.8 | S70: 0
R71: 6.9 | S71: 0
R72: 7 | S72: 0
R73: 7.1 | S73: 0
R74: 7.2 | S74: 0
R75: 7.3 | S75: 0 | T75: 51.82
R76: 7.4 | S76: 0
R77: 7.5 | S77: 0
R78: 7.6 | S78: 0
R79: 7.7 | S79: 0
R80: 7.8 | S80: 0
R81: 7.9 | S81: 0
R82: 8 | S82: 0
R83: 8.1 | S83: 0
R84: 8.2 | S84: 0
R85: 8.3 | S85: 0 | T85: 54.27
R86: 8.4 | S86: 0
R87: 8.5 | S87: 0
R88: 8.6 | S88: 0
R89: 8.7 | S89: 0
R90: 8.8 | S90: 0
R91: 8.9 | S91: 0
R92: 9 | S92: 0
R93: 9.1 | S93: 0
R94: 9.2 | S94: 0
R95: 9.3 | S95: 0 | T95: 56.98
R96: 9.4 | S96: 0
R97: 9.5 | S97: 0
R98: 9.6 | S98: 0
R99: 9.7 | S99: 0
R100: 9.8 | S100: 0
R101: 9.9 | S101: 0
R102: 10 | S102: 0
R103: 10.1 | S103: 0
R104: 10.2 | S104: 0
R105: 10.3 | S105: 0 | T105: 58.93
R106: 10.4 | S106: 0
R107: 10.5 | S107: 0
R108: 10.6 | S108: 0
R109: 10.7 | S109: 0
R110: 10.8 | S110: 0
R111: 10.9 | S111: 0
R112: 11 | S112: 0
R113: 11.1 | S113: 0
R114: 11.2 | S114: 0
R115: 11.3 | S115: 0 | T115: 59
R116: 11.4 | S116: 0
R117: 11.5 | S117: 0
R118: 11.6 | S118: 0
R119: 11.7 | S119: 0
R120: 11.8 | S120: 0
R121: 11.9 | S121: 0
R122: 12 | S122: 0
R123: 12.1 | S123: 0
R124: 12.2 | S124: 0
R125: 12.3 | S125: 0 | T125: 60.91
R126: 12.4 | S126: 0
R127: 12.5 | S127: 0
R128: 12.6 | S128: 0
R129: 12.7 | S129: 0
R130: 12.8 | S130: 0
R131: 12.9 | S131: =IF(R131<>"",$F$11*(1-EXP(-$F$12*(R131-$F$13))),"") -> 0 | W131: =IF(V131<>"",$F$11/(1+EXP(-$F$12*(V131-$F$13))),"") ->  | AA131: =IF(Z131<>"",$F$11*EXP(-EXP(-$F$12*(Z131-$F$13))),"") -> 
R132: 13 | S132: 0
R133: 13.1 | S133: 0
R134: 13.2 | S134: 0
R135: 13.3 | S135: 0 | T135: 61.83
R136: 13.4 | S136: 0
R137: 13.5 | S137: 0
R138: 13.6 | S138: 0
R139: 13.7 | S139: 0
R140: 13.8 | S140: 0
S195: =IF(R195<>"",$F$11*(1-EXP(-$F$12*(R195-$F$13))),"") ->  | W195: =IF(V195<>"",$F$11/(1+EXP(-$F$12*(V195-$F$13))),"") ->  | AA195: =IF(Z195<>"",$F$11*EXP(-EXP(-$F$12*(Z195-$F$13))),"") -> 
S259: =IF(R259<>"",$F$11*(1-EXP(-$F$12*(R259-$F$13))),"") ->  | W259: =IF(V259<>"",$F$11/(1+EXP(-$F$12*(V259-$F$13))),"") ->  | AA259: =IF(Z259<>"",$F$11*EXP(-EXP(-$F$12*(Z259-$F$13))),"") -> 
S323: =IF(R323<>"",$F$11*(1-EXP(-$F$12*(R323-$F$13))),"") ->  | W323: =IF(V323<>"",$F$11/(1+EXP(-$F$12*(V323-$F$13))),"") ->  | AA323: =IF(Z323<>"",$F$11*EXP(-EXP(-$F$12*(Z323-$F$13))),"") -> 
S387: =IF(R387<>"",$F$11*(1-EXP(-$F$12*(R387-$F$13))),"") ->  | W387: =IF(V387<>"",$F$11/(1+EXP(-$F$12*(V387-$F$13))),"") ->  | AA387: =IF(Z387<>"",$F$11*EXP(-EXP(-$F$12*(Z387-$F$13))),"") -> 
S451: =IF(R451<>"",$F$11*(1-EXP(-$F$12*(R451-$F$13))),"") ->  | W451: =IF(V451<>"",$F$11/(1+EXP(-$F$12*(V451-$F$13))),"") ->  | AA451: =IF(Z451<>"",$F$11*EXP(-EXP(-$F$12*(Z451-$F$13))),"") -> 
S515: =IF(R515<>"",$F$11*(1-EXP(-$F$12*(R515-$F$13))),"") ->  | W515: =IF(V515<>"",$F$11/(1+EXP(-$F$12*(V515-$F$13))),"") ->  | AA515: =IF(Z515<>"",$F$11*EXP(-EXP(-$F$12*(Z515-$F$13))),"") -> 
S579: =IF(R579<>"",$F$11*(1-EXP(-$F$12*(R579-$F$13))),"") ->  | W579: =IF(V579<>"",$F$11/(1+EXP(-$F$12*(V579-$F$13))),"") ->  | AA579: =IF(Z579<>"",$F$11*EXP(-EXP(-$F$12*(Z579-$F$13))),"") -> 
S643: =IF(R643<>"",$F$11*(1-EXP(-$F$12*(R643-$F$13))),"") ->  | W643: =IF(V643<>"",$F$11/(1+EXP(-$F$12*(V643-$F$13))),"") ->  | AA643: =IF(Z643<>"",$F$11*EXP(-EXP(-$F$12*(Z643-$F$13))),"") -> 
S707: =IF(R707<>"",$F$11*(1-EXP(-$F$12*(R707-$F$13))),"") ->  | W707: =IF(V707<>"",$F$11/(1+EXP(-$F$12*(V707-$F$13))),"") ->  | AA707: =IF(Z707<>"",$F$11*EXP(-EXP(-$F$12*(Z707-$F$13))),"") -> 
S771: =IF(R771<>"",$F$11*(1-EXP(-$F$12*(R771-$F$13))),"") ->  | W771: =IF(V771<>"",$F$11/(1+EXP(-$F$12*(V771-$F$13))),"") ->  | AA771: =IF(Z771<>"",$F$11*EXP(-EXP(-$F$12*(Z771-$F$13))),"") -> 
S835: =IF(R835<>"",$F$11*(1-EXP(-$F$12*(R835-$F$13))),"") ->  | W835: =IF(V835<>"",$F$11/(1+EXP(-$F$12*(V835-$F$13))),"") ->  | AA835: =IF(Z835<>"",$F$11*EXP(-EXP(-$F$12*(Z835-$F$13))),"") -> 
S899: =IF(R899<>"",$F$11*(1-EXP(-$F$12*(R899-$F$13))),"") ->  | W899: =IF(V899<>"",$F$11/(1+EXP(-$F$12*(V899-$F$13))),"") ->  | AA899: =IF(Z899<>"",$F$11*EXP(-EXP(-$F$12*(Z899-$F$13))),"") -> 
S963: =IF(R963<>"",$F$11*(1-EXP(-$F$12*(R963-$F$13))),"") ->  | W963: =IF(V963<>"",$F$11/(1+EXP(-$F$12*(V963-$F$13))),"") ->  | AA963: =IF(Z963<>"",$F$11*EXP(-EXP(-$F$12*(Z963-$F$13))),"") -> 
S1027: =IF(R1027<>"",$F$11*(1-EXP(-$F$12*(R1027-$F$13))),"") ->  | W1027: =IF(V1027<>"",$F$11/(1+EXP(-$F$12*(V1027-$F$13))),"") ->  | AA1027: =IF(Z1027<>"",$F$11*EXP(-EXP(-$F$12*(Z1027-$F$13))),"") -> 
S1091: =IF(R1091<>"",$F$11*(1-EXP(-$F$12*(R1091-$F$13))),"") ->  | W1091: =IF(V1091<>"",$F$11/(1+EXP(-$F$12*(V1091-$F$13))),"") ->  | AA1091: =IF(Z1091<>"",$F$11*EXP(-EXP(-$F$12*(Z1091-$F$13))),"") -> 
S1155: =IF(R1155<>"",$F$11*(1-EXP(-$F$12*(R1155-$F$13))),"") ->  | W1155: =IF(V1155<>"",$F$11/(1+EXP(-$F$12*(V1155-$F$13))),"") ->  | AA1155: =IF(Z1155<>"",$F$11*EXP(-EXP(-$F$12*(Z1155-$F$13))),"") -> 
S1219: =IF(R1219<>"",$F$11*(1-EXP(-$F$12*(R1219-$F$13))),"") ->  | W1219: =IF(V1219<>"",$F$11/(1+EXP(-$F$12*(V1219-$F$13))),"") ->  | AA1219: =IF(Z1219<>"",$F$11*EXP(-EXP(-$F$12*(Z1219-$F$13))),"") -> 
S1283: =IF(R1283<>"",$F$11*(1-EXP(-$F$12*(R1283-$F$13))),"") ->  | W1283: =IF(V1283<>"",$F$11/(1+EXP(-$F$12*(V1283-$F$13))),"") ->  | AA1283: =IF(Z1283<>"",$F$11*EXP(-EXP(-$F$12*(Z1283-$F$13))),"") -> 
S1347: =IF(R1347<>"",$F$11*(1-EXP(-$F$12*(R1347-$F$13))),"") ->  | W1347: =IF(V1347<>"",$F$11/(1+EXP(-$F$12*(V1347-$F$13))),"") ->  | AA1347: =IF(Z1347<>"",$F$11*EXP(-EXP(-$F$12*(Z1347-$F$13))),"") -> 
S1411: =IF(R1411<>"",$F$11*(1-EXP(-$F$12*(R1411-$F$13))),"") ->  | W1411: =IF(V1411<>"",$F$11/(1+EXP(-$F$12*(V1411-$F$13))),"") ->  | AA1411: =IF(Z1411<>"",$F$11*EXP(-EXP(-$F$12*(Z1411-$F$13))),"") -> 
S1475: =IF(R1475<>"",$F$11*(1-EXP(-$F$12*(R1475-$F$13))),"") ->  | W1475: =IF(V1475<>"",$F$11/(1+EXP(-$F$12*(V1475-$F$13))),"") ->  | AA1475: =IF(Z1475<>"",$F$11*EXP(-EXP(-$F$12*(Z1475-$F$13))),"") -> 
S1539: =IF(R1539<>"",$F$11*(1-EXP(-$F$12*(R1539-$F$13))),"") ->  | W1539: =IF(V1539<>"",$F$11/(1+EXP(-$F$12*(V1539-$F$13))),"") ->  | AA1539: =IF(Z1539<>"",$F$11*EXP(-EXP(-$F$12*(Z1539-$F$13))),"") -> 
S1603: =IF(R1603<>"",$F$11*(1-EXP(-$F$12*(R1603-$F$13))),"") ->  | W1603: =IF(V1603<>"",$F$11/(1+EXP(-$F$12*(V1603-$F$13))),"") ->  | AA1603: =IF(Z1603<>"",$F$11*EXP(-EXP(-$F$12*(Z1603-$F$13))),"") -> 
S1667: =IF(R1667<>"",$F$11*(1-EXP(-$F$12*(R1667-$F$13))),"") ->  | W1667: =IF(V1667<>"",$F$11/(1+EXP(-$F$12*(V1667-$F$13))),"") ->  | AA1667: =IF(Z1667<>"",$F$11*EXP(-EXP(-$F$12*(Z1667-$F$13))),"") -> 
S1731: =IF(R1731<>"",$F$11*(1-EXP(-$F$12*(R1731-$F$13))),"") ->  | W1731: =IF(V1731<>"",$F$11/(1+EXP(-$F$12*(V1731-$F$13))),"") ->  | AA1731: =IF(Z1731<>"",$F$11*EXP(-EXP(-$F$12*(Z1731-$F$13))),"") -> 
AA1780: =IF(Z1780<>"",$F$11*EXP(-EXP(-$F$12*(Z1780-$F$13))),"") -> 
AA1781: =IF(Z1781<>"",$F$11*EXP(-EXP(-$F$12*(Z1781-$F$13))),"") -> 
S1795: =IF(R1795<>"",$F$11*(1-EXP(-$F$12*(R1795-$F$13))),"") ->  | W1795: =IF(V1795<>"",$F$11/(1+EXP(-$F$12*(V1795-$F$13))),"") -> 
AA1845: =IF(Z1845<>"",$F$11*EXP(-EXP(-$F$12*(Z1845-$F$13))),"") -> 
S1859: =IF(R1859<>"",$F$11*(1-EXP(-$F$12*(R1859-$F$13))),"") ->  | W1859: =IF(V1859<>"",$F$11/(1+EXP(-$F$12*(V1859-$F$13))),"") -> 
AA1909: =IF(Z1909<>"",$F$11*EXP(-EXP(-$F$12*(Z1909-$F$13))),"") -> 
S1923: =IF(R1923<>"",$F$11*(1-EXP(-$F$12*(R1923-$F$13))),"") ->  | W1923: =IF(V1923<>"",$F$11/(1+EXP(-$F$12*(V1923-$F$13))),"") -> 
AA1973: =IF(Z1973<>"",$F$11*EXP(-EXP(-$F$12*(Z1973-$F$13))),"") -> 
S1987: =IF(R1987<>"",$F$11*(1-EXP(-$F$12*(R1987-$F$13))),"") ->  | W1987: =IF(V1987<>"",$F$11/(1+EXP(-$F$12*(V1987-$F$13))),"") -> 
AA2037: =IF(Z2037<>"",$F$11*EXP(-EXP(-$F$12*(Z2037-$F$13))),"") -> 
S2051: =IF(R2051<>"",$F$11*(1-EXP(-$F$12*(R2051-$F$13))),"") ->  | W2051: =IF(V2051<>"",$F$11/(1+EXP(-$F$12*(V2051-$F$13))),"") -> 
AA2101: =IF(Z2101<>"",$F$11*EXP(-EXP(-$F$12*(Z2101-$F$13))),"") -> 
S2115: =IF(R2115<>"",$F$11*(1-EXP(-$F$12*(R2115-$F$13))),"") ->  | W2115: =IF(V2115<>"",$F$11/(1+EXP(-$F$12*(V2115-$F$13))),"") -> 
AA2165: =IF(Z2165<>"",$F$11*EXP(-EXP(-$F$12*(Z2165-$F$13))),"") -> 
S2179: =IF(R2179<>"",$F$11*(1-EXP(-$F$12*(R2179-$F$13))),"") ->  | W2179: =IF(V2179<>"",$F$11/(1+EXP(-$F$12*(V2179-$F$13))),"") -> 
W2186: =IF(V2186<>"",[2]Folha1!$F$3/(1+EXP(-[2]Folha1!$F$4*(V2186-[2]Folha1!$F$5))),"") -> 
W2187: =IF(V2187<>"",[2]Folha1!$F$3/(1+EXP(-[2]Folha1!$F$4*(V2187-[2]Folha1!$F$5))),"") -> 
W2188: =IF(V2188<>"",[2]Folha1!$F$3/(1+EXP(-[2]Folha1!$F$4*(V2188-[2]Folha1!$F$5))),"") -> 
W2189: =IF(V2189<>"",[2]Folha1!$F$3/(1+EXP(-[2]Folha1!$F$4*(V2189-[2]Folha1!$F$5))),"") -> 
W2190: =IF(V2190<>"",[2]Folha1!$F$3/(1+EXP(-[2]Folha1!$F$4*(V2190-[2]Folha1!$F$5))),"") -> 
W2191: =IF(V2191<>"",[2]Folha1!$F$3/(1+EXP(-[2]Folha1!$F$4*(V2191-[2]Folha1!$F$5))),"") -> 
W2192: =IF(V2192<>"",[2]Folha1!$F$3/(1+EXP(-[2]Folha1!$F$4*(V2192-[2]Folha1!$F$5))),"") -> 
W2193: =IF(V2193<>"",[2]Folha1!$F$3/(1+EXP(-[2]Folha1!$F$4*(V2193-[2]Folha1!$F$5))),"") -> 
W2194: =IF(V2194<>"",[2]Folha1!$F$3/(1+EXP(-[2]Folha1!$F$4*(V2194-[2]Folha1!$F$5))),"") -> 

Sheet 3 (hidden)
A1: Dados 1 | D1: Dados 2 | K1: Dados 1 | M1: Dados 2 | T1: Dados 1 | V1: Dados 2 | AC1: Dados 1 | AE1: Dados 2
A2: idade | B2: Comprimento médio | C2: Desvio padrão | D2: idade | E2: Comprimento médio | F2: Desvio padrão | H2: Dados 1 | K2: L(t) | L2: SQ | M2: L(t) | N2: SQ | O2: SSQTOTAL | P2: Likelihood ratio x^2 | Q2: GL | R2: p | T2: L(t) | U2: SQ | V2: L(t) | W2: SQ | X2: SSQTOTAL | Y2: Likelihood ratio x^2 | Z2: GL | AA2: p | AC2: L(t) | AD2: SQ | AE2: L(t) | AF2: SQ | AG2: SSQTOTAL | AH2: Likelihood ratio x^2 | AI2: GL | AJ2: p
A3: 1 | B3: 15.4 | D3: 1 | E3: 15.4 | H3: Linf | I3: 57.74107662 | K3: =IF(B3>0,$I$3*(1-EXP(-$I$4*(A3-$I$5))),0) -> -11.45149534 | L3: =IF(C3<>0,((1/(C3)^2)*(K3-B3)^2),((K3-B3)^2)) -> 721.002802 | M3: =IF(E3>0,$I$3*(1-EXP(-$I$4*(D3-$I$5))),0) -> -11.45149534 | N3: =IF(F3<>0,((1/(F3)^2)*(M3-E3)^2),((M3-E3)^2)) -> 721.002802 | O3: =SUM($L$3:$L$103,$N$3:$N$103) -> 2017.259176 | P3: =-(COUNT($B$3:$B$203)+COUNT($E$3:$E$203))*LN((SUM($I$11,$I$12))/$O$3) -> 77.3604746 | Q3: 3 | R3: =CHIDIST($P$3,$Q$3) -> 1.130042829e-16 | T3: =IF(B3>0,$I$3/(1+EXP(-$I$4*(A3-$I$5))),0) -> 26.26594261 | U3: =IF(C3<>0,((1/(C3)^2)*(T3-B3)^2),((T3-B3)^2)) -> 118.0687088 | V3: =IF(E3>0,$I$7/(1+EXP(-$I$8*(D3-$I$9))),0) -> 26.26594261 | W3: =IF(F3<>0,((1/(F3)^2)*(V3-E3)^2),((V3-E3)^2)) -> 118.0687088 | X3: =SUM($U$3:$U$103,$W$3:$W$103) -> 387.3364119 | Y3: =-(COUNT($B$3:$B$103)+COUNT($E$3:$E$103))*LN(SUM($I$11,$I$12)/$X$3) -> 37.75564032 | Z3: 3 | AA3: =CHIDIST($Y$3,$Z$3) -> 3.184014028e-08 | AC3: =IF(B3>0,$I$3*(EXP(-EXP(-$I$4*(A3-$I$5)))),0) -> 17.42043398 | AD3: =IF(C3<>0,((1/(C3)^2)*(AC3-B3)^2),((AC3-B3)^2)) -> 4.08215346 | AE3: =IF(E3>0,$I$7*(EXP(-EXP(-$I$8*(D3-$I$9)))),0) -> 17.42043398 | AF3: =IF(F3<>0,((1/(F3)^2)*(AE3-E3)^2),((AE3-E3)^2)) -> 4.08215346 | AG3: =SUM($AD$3:$AD$103,$AF$3:$AF$103) -> 119.2404034 | AH3: =-(COUNT($B$3:$B$103)+COUNT($E$3:$E$103))*LN(SUM($I$11,$I$12)/$AG$3) -> 9.479993631 | AI3: 3 | AJ3: =CHIDIST($AH$3,$AI$3) -> 0.02354514947
A4: 2 | B4: 28.03 | D4: 2 | E4: 26.93 | H4: k | I4: 0.4612609751 | K4: =IF(B4>0,$I$3*(1-EXP(-$I$4*(A4-$I$5))),0) -> 14.1159824 | L4: =IF(C4<>0,((1/(C4)^2)*(K4-B4)^2),((K4-B4)^2)) -> 193.5998857 | M4: 14.1159824 | N4: =IF(F4<>0,((1/(F4)^2)*(M4-E4)^2),((M4-E4)^2)) -> 164.199047 | T4: =IF(B4>0,$I$3/(1+EXP(-$I$4*(A4-$I$5))),0) -> 32.89097242 | U4: =IF(C4<>0,((1/(C4)^2)*(T4-B4)^2),((T4-B4)^2)) -> 23.62905285 | V4: =IF(E4>0,$I$7/(1+EXP(-$I$8*(D4-$I$9))),0) -> 32.89097242 | W4: =IF(F4<>0,((1/(F4)^2)*(V4-E4)^2),((V4-E4)^2)) -> 35.53319217 | AC4: =IF(B4>0,$I$3*(EXP(-EXP(-$I$4*(A4-$I$5)))),0) -> 27.12454915 | AD4: =IF(C4<>0,((1/(C4)^2)*(AC4-B4)^2),((AC4-B4)^2)) -> 0.8198412332 | AE4: =IF(E4>0,$I$7*(EXP(-EXP(-$I$8*(D4-$I$9)))),0) -> 27.12454915 | AF4: =IF(F4<>0,((1/(F4)^2)*(AE4-E4)^2),((AE4-E4)^2)) -> 0.0378493736
A5: 3.3 | B5: 41.18 | D5: 3.3 | E5: 42.23 | H5: t0 | I5: 1.392239329 | K5: 33.79047909 | L5: 54.6050193 | M5: 33.79047909 | N5: 71.22551321 | T5: 40.81238344 | U5: 0.1351419365 | V5: 40.81238344 | W5: 2.009636716 | AC5: 38.13665014 | AD5: 9.261978363 | AE5: 38.13665014 | AF5: 16.75551307
A6: 4.3 | B6: 46.2 | D6: 4.3 | E6: 44.59 | H6: Dados 2 | K6: 42.64050955 | L6: 12.66997229 | M6: 42.64050955 | N6: 3.800513027 | T6: 45.77095958 | U6: 0.1840756824 | V6: 45.77095958 | W6: 1.394665528 | AC6: 44.45363471 | AD6: 3.049791719 | AE6: 44.45363471 | AF6: 0.01859549178
A7: 5.3 | B7: 48.23 | D7: 5.3 | E7: 47.63 | H7: Linf | I7: =I3 -> 57.74107662 | K7: 48.22034856 | L7: 9.315027118e-05 | M7: 48.22034856 | N7: 0.3485114237 | T7: 49.56798208 | U7: 1.790196055 | V7: 49.56798208 | W7: 3.755774555 | AC7: 48.963849 | AD7: 0.5385343528 | AE7: 48.963849 | AF7: 1.779153151
A8: 6.3 | B8: 50.26 | D8: 6.3 | E8: 49.67 | H8: k | I8: =I4 -> 0.4612609751 | K8: 51.73837074 | L8: 2.185580043 | M8: 51.73837074 | N8: 4.278157515 | T8: 52.30364121 | U8: 4.176469391 | V8: 52.30364121 | W8: 6.936066017 | AC8: 52.03985137 | AD8: 3.167870906 | AE8: 52.03985137 | AF8: 5.616195525
A9: 7.3 | B9: 51.82 | D9: 7.3 | E9: 50.87 | H9: t0 | I9: =I5 -> 1.392239329 | K9: 53.95644191 | L9: 4.564384027 | M9: 53.95644191 | N9: 9.526123652 | T9: 54.18924637 | U9: 5.613328344 | V9: 54.18924637 | W9: 11.01739644 | AC9: 54.07780766 | AD9: 5.097695415 | AE9: 54.07780766 | AF9: 10.29002996
A10: 8.3 | B10: 54.27 | D10: 8.3 | E10: 52.3 | K10: 55.35490942 | L10: 1.177028442 | M10: 55.35490942 | N10: 9.332471544 | T10: 55.44960516 | U10: 1.391468328 | V10: 55.44960516 | W10: 9.92001265 | AC10: 55.40354174 | AD10: 1.284916868 | AE10: 55.40354174 | AF10: 9.63197131
A11: 9.3 | B11: 56.98 | D11: 9.3 | E11: 54.77 | H11: SSQ1 | I11: 52.48529724 | K11: 56.23662656 | L11: 0.5526040728 | M11: 56.23662656 | N11: 2.150993464 | T11: 56.27482978 | U11: 0.4972650384 | V11: 56.27482978 | W11: 2.264512668 | AC11: 56.25605675 | AD11: 0.524093834 | AE11: 56.25605675 | AF11: 2.208364654
A12: 10.3 | B12: 58.93 | D12: 10.3 | E12: 56.43 | H12: SSQ2 | I12: 27.8446037 | K12: 56.79253874 | L12: 4.568740649 | M12: 56.79253874 | N12: 0.1314343361 | T12: 56.80786895 | U12: 4.503440205 | V12: 56.80786895 | W12: 0.1427849413 | AC12: 56.80028727 | AD12: 4.5356763 | AE12: 56.80028727 | AF12: 0.1371126644
A13: 11.3 | B13: 59 | D13: 11.3 | E13: 55.88 | K13: 57.14303476 | L13: 3.448319909 | M13: 57.14303476 | N13: 1.595256801 | T13: 57.14916536 | U13: 3.425588854 | V13: 57.14916536 | W13: 1.610780719 | AC13: 57.14612114 | AD13: 3.436866812 | AE13: 57.14612114 | AF13: 1.603062752
A14: 12.3 | B14: 60.91 | K14: 57.36401833 | L14: 12.57398598 | M14: 0 | N14: 0 | T14: 57.36646461 | U14: 12.55664307 | V14: 0 | W14: 0 | AC14: 57.36524678 | AD14: 12.56527537 | AE14: 0 | AF14: 0
A15: 13.3 | B15: 61.83 | K15: 57.50334585 | L15: 18.71993612 | M15: 0 | N15: 0 | T15: 57.50432062 | U15: 18.7115021 | V15: 0 | W15: 0 | AC15: 57.50383457 | AD15: 18.71570732 | AE15: 0 | AF15: 0
K16: 0 | L16: 0 | M16: 0 | N16: 0 | T16: 0 | U16: 0 | V16: 0 | W16: 0 | AC16: 0 | AD16: 0 | AE16: 0 | AF16: 0
K17: 0 | L17: 0 | M17: 0 | N17: 0 | T17: 0 | U17: 0 | V17: 0 | W17: 0 | AC17: 0 | AD17: 0 | AE17: 0 | AF17: 0
K18: 0 | L18: 0 | M18: 0 | N18: 0 | T18: 0 | U18: 0 | V18: 0 | W18: 0 | AC18: 0 | AD18: 0 | AE18: 0 | AF18: 0
K19: 0 | L19: 0 | M19: 0 | N19: 0 | T19: 0 | U19: 0 | V19: 0 | W19: 0 | AC19: 0 | AD19: 0 | AE19: 0 | AF19: 0
K20: 0 | L20: 0 | M20: 0 | N20: 0 | T20: 0 | U20: 0 | V20: 0 | W20: 0 | AC20: 0 | AD20: 0 | AE20: 0 | AF20: 0
K21: 0 | L21: 0 | M21: 0 | N21: 0 | T21: 0 | U21: 0 | V21: 0 | W21: 0 | AC21: 0 | AD21: 0 | AE21: 0 | AF21: 0
K22: 0 | L22: 0 | M22: 0 | N22: 0 | T22: 0 | U22: 0 | V22: 0 | W22: 0 | AC22: 0 | AD22: 0 | AE22: 0 | AF22: 0
K23: 0 | L23: 0 | M23: 0 | N23: 0 | T23: 0 | U23: 0 | V23: 0 | W23: 0 | AC23: 0 | AD23: 0 | AE23: 0 | AF23: 0
K24: 0 | L24: 0 | M24: 0 | N24: 0 | T24: 0 | U24: 0 | V24: 0 | W24: 0 | AC24: 0 | AD24: 0 | AE24: 0 | AF24: 0
K25: 0 | L25: 0 | M25: 0 | N25: 0 | T25: 0 | U25: 0 | V25: 0 | W25: 0 | AC25: 0 | AD25: 0 | AE25: 0 | AF25: 0
K26: 0 | L26: 0 | M26: 0 | N26: 0 | T26: 0 | U26: 0 | V26: 0 | W26: 0 | AC26: 0 | AD26: 0 | AE26: 0 | AF26: 0
K27: 0 | L27: 0 | M27: 0 | N27: 0 | T27: 0 | U27: 0 | V27: 0 | W27: 0 | AC27: 0 | AD27: 0 | AE27: 0 | AF27: 0
K28: 0 | L28: 0 | M28: 0 | N28: 0 | T28: 0 | U28: 0 | V28: 0 | W28: 0 | AC28: 0 | AD28: 0 | AE28: 0 | AF28: 0
K29: 0 | L29: 0 | M29: 0 | N29: 0 | T29: 0 | U29: 0 | V29: 0 | W29: 0 | AC29: 0 | AD29: 0 | AE29: 0 | AF29: 0
K30: 0 | L30: 0 | M30: 0 | N30: 0 | T30: 0 | U30: 0 | V30: 0 | W30: 0 | AC30: 0 | AD30: 0 | AE30: 0 | AF30: 0
K31: 0 | L31: 0 | M31: 0 | N31: 0 | T31: 0 | U31: 0 | V31: 0 | W31: 0 | AC31: 0 | AD31: 0 | AE31: 0 | AF31: 0
K32: 0 | L32: 0 | M32: 0 | N32: 0 | T32: 0 | U32: 0 | V32: 0 | W32: 0 | AC32: 0 | AD32: 0 | AE32: 0 | AF32: 0
K33: 0 | L33: 0 | M33: 0 | N33: 0 | T33: 0 | U33: 0 | V33: 0 | W33: 0 | AC33: 0 | AD33: 0 | AE33: 0 | AF33: 0
K34: 0 | L34: 0 | M34: 0 | N34: 0 | T34: 0 | U34: 0 | V34: 0 | W34: 0 | AC34: 0 | AD34: 0 | AE34: 0 | AF34: 0
K35: 0 | L35: 0 | M35: 0 | N35: 0 | T35: 0 | U35: 0 | V35: 0 | W35: 0 | AC35: 0 | AD35: 0 | AE35: 0 | AF35: 0
K36: 0 | L36: 0 | M36: 0 | N36: 0 | T36: 0 | U36: 0 | V36: 0 | W36: 0 | AC36: 0 | AD36: 0 | AE36: 0 | AF36: 0
K37: 0 | L37: 0 | M37: 0 | N37: 0 | T37: 0 | U37: 0 | V37: 0 | W37: 0 | AC37: 0 | AD37: 0 | AE37: 0 | AF37: 0
K38: 0 | L38: 0 | M38: 0 | N38: 0 | T38: 0 | U38: 0 | V38: 0 | W38: 0 | AC38: 0 | AD38: 0 | AE38: 0 | AF38: 0
K39: 0 | L39: 0 | M39: 0 | N39: 0 | T39: 0 | U39: 0 | V39: 0 | W39: 0 | AC39: 0 | AD39: 0 | AE39: 0 | AF39: 0
K40: 0 | L40: 0 | M40: 0 | N40: 0 | T40: 0 | U40: 0 | V40: 0 | W40: 0 | AC40: 0 | AD40: 0 | AE40: 0 | AF40: 0
K41: 0 | L41: 0 | M41: 0 | N41: 0 | T41: 0 | U41: 0 | V41: 0 | W41: 0 | AC41: 0 | AD41: 0 | AE41: 0 | AF41: 0
K42: 0 | L42: 0 | M42: 0 | N42: 0 | T42: 0 | U42: 0 | V42: 0 | W42: 0 | AC42: 0 | AD42: 0 | AE42: 0 | AF42: 0
K43: 0 | L43: 0 | M43: 0 | N43: 0 | T43: 0 | U43: 0 | V43: 0 | W43: 0 | AC43: 0 | AD43: 0 | AE43: 0 | AF43: 0
K44: 0 | L44: 0 | M44: 0 | N44: 0 | T44: 0 | U44: 0 | V44: 0 | W44: 0 | AC44: 0 | AD44: 0 | AE44: 0 | AF44: 0
K45: 0 | L45: 0 | M45: 0 | N45: 0 | T45: 0 | U45: 0 | V45: 0 | W45: 0 | AC45: 0 | AD45: 0 | AE45: 0 | AF45: 0
K46: 0 | L46: 0 | M46: 0 | N46: 0 | T46: 0 | U46: 0 | V46: 0 | W46: 0 | AC46: 0 | AD46: 0 | AE46: 0 | AF46: 0
K47: 0 | L47: 0 | M47: 0 | N47: 0 | T47: 0 | U47: 0 | V47: 0 | W47: 0 | AC47: 0 | AD47: 0 | AE47: 0 | AF47: 0
K48: 0 | L48: 0 | M48: 0 | N48: 0 | T48: 0 | U48: 0 | V48: 0 | W48: 0 | AC48: 0 | AD48: 0 | AE48: 0 | AF48: 0
K49: 0 | L49: 0 | M49: 0 | N49: 0 | T49: 0 | U49: 0 | V49: 0 | W49: 0 | AC49: 0 | AD49: 0 | AE49: 0 | AF49: 0
K50: 0 | L50: 0 | M50: 0 | N50: 0 | T50: 0 | U50: 0 | V50: 0 | W50: 0 | AC50: 0 | AD50: 0 | AE50: 0 | AF50: 0
K51: 0 | L51: 0 | M51: 0 | N51: 0 | T51: 0 | U51: 0 | V51: 0 | W51: 0 | AC51: 0 | AD51: 0 | AE51: 0 | AF51: 0
K52: 0 | L52: 0 | M52: 0 | N52: 0 | T52: 0 | U52: 0 | V52: 0 | W52: 0 | AC52: 0 | AD52: 0 | AE52: 0 | AF52: 0
K53: 0 | L53: 0 | M53: 0 | N53: 0 | T53: 0 | U53: 0 | V53: 0 | W53: 0 | AC53: 0 | AD53: 0 | AE53: 0 | AF53: 0
K54: 0 | L54: 0 | M54: 0 | N54: 0 | T54: 0 | U54: 0 | V54: 0 | W54: 0 | AC54: 0 | AD54: 0 | AE54: 0 | AF54: 0
K55: 0 | L55: 0 | M55: 0 | N55: 0 | T55: 0 | U55: 0 | V55: 0 | W55: 0 | AC55: 0 | AD55: 0 | AE55: 0 | AF55: 0
K56: 0 | L56: 0 | M56: 0 | N56: 0 | T56: 0 | U56: 0 | V56: 0 | W56: 0 | AC56: 0 | AD56: 0 | AE56: 0 | AF56: 0
K57: 0 | L57: 0 | M57: 0 | N57: 0 | T57: 0 | U57: 0 | V57: 0 | W57: 0 | AC57: 0 | AD57: 0 | AE57: 0 | AF57: 0
K58: 0 | L58: 0 | M58: 0 | N58: 0 | T58: 0 | U58: 0 | V58: 0 | W58: 0 | AC58: 0 | AD58: 0 | AE58: 0 | AF58: 0
K59: 0 | L59: 0 | M59: 0 | N59: 0 | T59: 0 | U59: 0 | V59: 0 | W59: 0 | AC59: 0 | AD59: 0 | AE59: 0 | AF59: 0
K60: 0 | L60: 0 | M60: 0 | N60: 0 | T60: 0 | U60: 0 | V60: 0 | W60: 0 | AC60: 0 | AD60: 0 | AE60: 0 | AF60: 0
K61: 0 | L61: 0 | M61: 0 | N61: 0 | T61: 0 | U61: 0 | V61: 0 | W61: 0 | AC61: 0 | AD61: 0 | AE61: 0 | AF61: 0
K62: 0 | L62: 0 | M62: 0 | N62: 0 | T62: 0 | U62: 0 | V62: 0 | W62: 0 | AC62: 0 | AD62: 0 | AE62: 0 | AF62: 0
K63: 0 | L63: 0 | M63: 0 | N63: 0 | T63: 0 | U63: 0 | V63: 0 | W63: 0 | AC63: 0 | AD63: 0 | AE63: 0 | AF63: 0
K64: 0 | L64: 0 | M64: 0 | N64: 0 | T64: 0 | U64: 0 | V64: 0 | W64: 0 | AC64: 0 | AD64: 0 | AE64: 0 | AF64: 0
K65: 0 | L65: 0 | M65: 0 | N65: 0 | T65: 0 | U65: 0 | V65: 0 | W65: 0 | AC65: 0 | AD65: 0 | AE65: 0 | AF65: 0
K66: 0 | L66: 0 | M66: 0 | N66: 0 | T66: 0 | U66: 0 | V66: 0 | W66: 0 | AC66: 0 | AD66: 0 | AE66: 0 | AF66: 0
K67: =IF(B67>0,$I$3*(1-EXP(-$I$4*(A67-$I$5))),0) -> 0 | L67: 0 | M67: =IF(E67>0,$I$3*(1-EXP(-$I$4*(D67-$I$5))),0) -> 0 | N67: 0 | T67: 0 | U67: 0 | V67: 0 | W67: 0 | AC67: 0 | AD67: 0 | AE67: 0 | AF67: 0
K68: 0 | L68: =IF(C68<>0,((1/(C68)^2)*(K68-B68)^2),((K68-B68)^2)) -> 0 | M68: 0 | N68: =IF(F68<>0,((1/(F68)^2)*(M68-E68)^2),((M68-E68)^2)) -> 0 | T68: =IF(B68>0,$I$3/(1+EXP(-$I$4*(A68-$I$5))),0) -> 0 | U68: =IF(C68<>0,((1/(C68)^2)*(T68-B68)^2),((T68-B68)^2)) -> 0 | V68: =IF(E68>0,$I$7/(1+EXP(-$I$8*(D68-$I$9))),0) -> 0 | W68: =IF(F68<>0,((1/(F68)^2)*(V68-E68)^2),((V68-E68)^2)) -> 0 | AC68: =IF(B68>0,$I$3*(EXP(-EXP(-$I$4*(A68-$I$5)))),0) -> 0 | AD68: =IF(C68<>0,((1/(C68)^2)*(AC68-B68)^2),((AC68-B68)^2)) -> 0 | AE68: =IF(E68>0,$I$7*(EXP(-EXP(-$I$8*(D68-$I$9)))),0) -> 0 | AF68: =IF(F68<>0,((1/(F68)^2)*(AE68-E68)^2),((AE68-E68)^2)) -> 0
K69: 0 | L69: 0 | M69: 0 | N69: 0 | T69: 0 | U69: 0 | V69: 0 | W69: 0 | AC69: 0 | AD69: 0 | AE69: 0 | AF69: 0
K70: 0 | L70: 0 | M70: 0 | N70: 0 | T70: 0 | U70: 0 | V70: 0 | W70: 0 | AC70: 0 | AD70: 0 | AE70: 0 | AF70: 0
K71: 0 | L71: 0 | M71: 0 | N71: 0 | T71: 0 | U71: 0 | V71: 0 | W71: 0 | AC71: 0 | AD71: 0 | AE71: 0 | AF71: 0
K72: 0 | L72: 0 | M72: 0 | N72: 0 | T72: 0 | U72: 0 | V72: 0 | W72: 0 | AC72: 0 | AD72: 0 | AE72: 0 | AF72: 0
K73: 0 | L73: 0 | M73: 0 | N73: 0 | T73: 0 | U73: 0 | V73: 0 | W73: 0 | AC73: 0 | AD73: 0 | AE73: 0 | AF73: 0
K74: 0 | L74: 0 | M74: 0 | N74: 0 | T74: 0 | U74: 0 | V74: 0 | W74: 0 | AC74: 0 | AD74: 0 | AE74: 0 | AF74: 0
K75: 0 | L75: 0 | M75: 0 | N75: 0 | T75: 0 | U75: 0 | V75: 0 | W75: 0 | AC75: 0 | AD75: 0 | AE75: 0 | AF75: 0
K76: 0 | L76: 0 | M76: 0 | N76: 0 | T76: 0 | U76: 0 | V76: 0 | W76: 0 | AC76: 0 | AD76: 0 | AE76: 0 | AF76: 0
K77: 0 | L77: 0 | M77: 0 | N77: 0 | T77: 0 | U77: 0 | V77: 0 | W77: 0 | AC77: 0 | AD77: 0 | AE77: 0 | AF77: 0
K78: 0 | L78: 0 | M78: 0 | N78: 0 | T78: 0 | U78: 0 | V78: 0 | W78: 0 | AC78: 0 | AD78: 0 | AE78: 0 | AF78: 0
K79: 0 | L79: 0 | M79: 0 | N79: 0 | T79: 0 | U79: 0 | V79: 0 | W79: 0 | AC79: 0 | AD79: 0 | AE79: 0 | AF79: 0
K80: 0 | L80: 0 | M80: 0 | N80: 0 | T80: 0 | U80: 0 | V80: 0 | W80: 0 | AC80: 0 | AD80: 0 | AE80: 0 | AF80: 0
K81: 0 | L81: 0 | M81: 0 | N81: 0 | T81: 0 | U81: 0 | V81: 0 | W81: 0 | AC81: 0 | AD81: 0 | AE81: 0 | AF81: 0
K82: 0 | L82: 0 | M82: 0 | N82: 0 | T82: 0 | U82: 0 | V82: 0 | W82: 0 | AC82: 0 | AD82: 0 | AE82: 0 | AF82: 0
K83: 0 | L83: 0 | M83: 0 | N83: 0 | T83: 0 | U83: 0 | V83: 0 | W83: 0 | AC83: 0 | AD83: 0 | AE83: 0 | AF83: 0
K84: 0 | L84: 0 | M84: 0 | N84: 0 | T84: 0 | U84: 0 | V84: 0 | W84: 0 | AC84: 0 | AD84: 0 | AE84: 0 | AF84: 0
K85: 0 | L85: 0 | M85: 0 | N85: 0 | T85: 0 | U85: 0 | V85: 0 | W85: 0 | AC85: 0 | AD85: 0 | AE85: 0 | AF85: 0
K86: 0 | L86: 0 | M86: 0 | N86: 0 | T86: 0 | U86: 0 | V86: 0 | W86: 0 | AC86: 0 | AD86: 0 | AE86: 0 | AF86: 0
K87: 0 | L87: 0 | M87: 0 | N87: 0 | T87: 0 | U87: 0 | V87: 0 | W87: 0 | AC87: 0 | AD87: 0 | AE87: 0 | AF87: 0
K88: 0 | L88: 0 | M88: 0 | N88: 0 | T88: 0 | U88: 0 | V88: 0 | W88: 0 | AC88: 0 | AD88: 0 | AE88: 0 | AF88: 0
K89: 0 | L89: 0 | M89: 0 | N89: 0 | T89: 0 | U89: 0 | V89: 0 | W89: 0 | AC89: 0 | AD89: 0 | AE89: 0 | AF89: 0
K90: 0 | L90: 0 | M90: 0 | N90: 0 | T90: 0 | U90: 0 | V90: 0 | W90: 0 | AC90: 0 | AD90: 0 | AE90: 0 | AF90: 0
K91: 0 | L91: 0 | M91: 0 | N91: 0 | T91: 0 | U91: 0 | V91: 0 | W91: 0 | AC91: 0 | AD91: 0 | AE91: 0 | AF91: 0
K92: 0 | L92: 0 | M92: 0 | N92: 0 | T92: 0 | U92: 0 | V92: 0 | W92: 0 | AC92: 0 | AD92: 0 | AE92: 0 | AF92: 0
K93: 0 | L93: 0 | M93: 0 | N93: 0 | T93: 0 | U93: 0 | V93: 0 | W93: 0 | AC93: 0 | AD93: 0 | AE93: 0 | AF93: 0
K94: 0 | L94: 0 | M94: 0 | N94: 0 | T94: 0 | U94: 0 | V94: 0 | W94: 0 | AC94: 0 | AD94: 0 | AE94: 0 | AF94: 0
K95: 0 | L95: 0 | M95: 0 | N95: 0 | T95: 0 | U95: 0 | V95: 0 | W95: 0 | AC95: 0 | AD95: 0 | AE95: 0 | AF95: 0
K96: 0 | L96: 0 | M96: 0 | N96: 0 | T96: 0 | U96: 0 | V96: 0 | W96: 0 | AC96: 0 | AD96: 0 | AE96: 0 | AF96: 0
K97: 0 | L97: 0 | M97: 0 | N97: 0 | T97: 0 | U97: 0 | V97: 0 | W97: 0 | AC97: 0 | AD97: 0 | AE97: 0 | AF97: 0
K98: 0 | L98: 0 | M98: 0 | N98: 0 | T98: 0 | U98: 0 | V98: 0 | W98: 0 | AC98: 0 | AD98: 0 | AE98: 0 | AF98: 0
K99: 0 | L99: 0 | M99: 0 | N99: 0 | T99: 0 | U99: 0 | V99: 0 | W99: 0 | AC99: 0 | AD99: 0 | AE99: 0 | AF99: 0
K100: 0 | L100: 0 | M100: 0 | N100: 0 | T100: 0 | U100: 0 | V100: 0 | W100: 0 | AC100: 0 | AD100: 0 | AE100: 0 | AF100: 0
K101: 0 | L101: 0 | M101: 0 | N101: 0 | T101: 0 | U101: 0 | V101: 0 | W101: 0 | AC101: 0 | AD101: 0 | AE101: 0 | AF101: 0
K102: 0 | L102: 0 | M102: 0 | N102: 0 | T102: 0 | U102: 0 | V102: 0 | W102: 0 | AC102: 0 | AD102: 0 | AE102: 0 | AF102: 0
K103: 0 | L103: 0 | M103: 0 | N103: 0 | T103: 0 | U103: 0 | V103: 0 | W103: 0 | AC103: 0 | AD103: 0 | AE103: 0 | AF103: 0
K104: =IF(B104>0,$I$3*(1-EXP(-$I$4*(A104-$I$5))),0) -> 0 | L104: =IF(C104<>0,((1/(C104)^2)*(K104-B104)^2),((K104-B104)^2)) -> 0 | M104: =IF(E104>0,$I$3*(1-EXP(-$I$4*(D104-$I$5))),0) -> 0 | N104: =IF(F104<>0,((1/(F104)^2)*(M104-E104)^2),((M104-E104)^2)) -> 0 | T104: =IF(B104>0,$I$3/(1+EXP(-$I$4*(A104-$I$5))),0) -> 0 | U104: =IF(C104<>0,((1/(C104)^2)*(T104-B104)^2),((T104-B104)^2)) -> 0 | V104: =IF(E104>0,$I$7/(1+EXP(-$I$8*(D104-$I$9))),0) -> 0 | W104: =IF(F104<>0,((1/(F104)^2)*(V104-E104)^2),((V104-E104)^2)) -> 0 | AC104: =IF(B104>0,$I$3*(EXP(-EXP(-$I$4*(A104-$I$5)))),0) -> 0 | AD104: =IF(C104<>0,((1/(C104)^2)*(AC104-B104)^2),((AC104-B104)^2)) -> 0 | AE104: =IF(E104>0,$I$7*(EXP(-EXP(-$I$8*(D104-$I$9)))),0) -> 0 | AF104: =IF(F104<>0,((1/(F104)^2)*(AE104-E104)^2),((AE104-E104)^2)) -> 0
K105: 0 | L105: 0 | M105: 0 | N105: 0 | T105: 0 | U105: 0 | V105: 0 | W105: 0 | AC105: 0 | AD105: 0 | AE105: 0 | AF105: 0
K106: 0 | L106: 0 | M106: 0 | N106: 0 | T106: 0 | U106: 0 | V106: 0 | W106: 0 | AC106: 0 | AD106: 0 | AE106: 0 | AF106: 0
K107: 0 | L107: 0 | M107: 0 | N107: 0 | T107: 0 | U107: 0 | V107: 0 | W107: 0 | AC107: 0 | AD107: 0 | AE107: 0 | AF107: 0
K108: 0 | L108: 0 | M108: 0 | N108: 0 | T108: 0 | U108: 0 | V108: 0 | W108: 0 | AC108: 0 | AD108: 0 | AE108: 0 | AF108: 0
K109: 0 | L109: 0 | M109: 0 | N109: 0 | T109: 0 | U109: 0 | V109: 0 | W109: 0 | AC109: 0 | AD109: 0 | AE109: 0 | AF109: 0
K110: 0 | L110: 0 | M110: 0 | N110: 0 | T110: 0 | U110: 0 | V110: 0 | W110: 0 | AC110: 0 | AD110: 0 | AE110: 0 | AF110: 0
K111: 0 | L111: 0 | M111: 0 | N111: 0 | T111: 0 | U111: 0 | V111: 0 | W111: 0 | AC111: 0 | AD111: 0 | AE111: 0 | AF111: 0
K112: 0 | L112: 0 | M112: 0 | N112: 0 | T112: 0 | U112: 0 | V112: 0 | W112: 0 | AC112: 0 | AD112: 0 | AE112: 0 | AF112: 0
K113: 0 | L113: 0 | M113: 0 | N113: 0 | T113: 0 | U113: 0 | V113: 0 | W113: 0 | AC113: 0 | AD113: 0 | AE113: 0 | AF113: 0
K114: 0 | L114: 0 | M114: 0 | N114: 0 | T114: 0 | U114: 0 | V114: 0 | W114: 0 | AC114: 0 | AD114: 0 | AE114: 0 | AF114: 0
K115: 0 | L115: 0 | M115: 0 | N115: 0 | T115: 0 | U115: 0 | V115: 0 | W115: 0 | AC115: 0 | AD115: 0 | AE115: 0 | AF115: 0
K116: 0 | L116: 0 | M116: 0 | N116: 0 | T116: 0 | U116: 0 | V116: 0 | W116: 0 | AC116: 0 | AD116: 0 | AE116: 0 | AF116: 0
K117: 0 | L117: 0 | M117: 0 | N117: 0 | T117: 0 | U117: 0 | V117: 0 | W117: 0 | AC117: 0 | AD117: 0 | AE117: 0 | AF117: 0
K118: 0 | L118: 0 | M118: 0 | N118: 0 | T118: 0 | U118: 0 | V118: 0 | W118: 0 | AC118: 0 | AD118: 0 | AE118: 0 | AF118: 0
K119: 0 | L119: 0 | M119: 0 | N119: 0 | T119: 0 | U119: 0 | V119: 0 | W119: 0 | AC119: 0 | AD119: 0 | AE119: 0 | AF119: 0
K120: 0 | L120: 0 | M120: 0 | N120: 0 | T120: 0 | U120: 0 | V120: 0 | W120: 0 | AC120: 0 | AD120: 0 | AE120: 0 | AF120: 0
K121: 0 | L121: 0 | M121: 0 | N121: 0 | T121: 0 | U121: 0 | V121: 0 | W121: 0 | AC121: 0 | AD121: 0 | AE121: 0 | AF121: 0
K122: 0 | L122: 0 | M122: 0 | N122: 0 | T122: 0 | U122: 0 | V122: 0 | W122: 0 | AC122: 0 | AD122: 0 | AE122: 0 | AF122: 0
K123: 0 | L123: 0 | M123: 0 | N123: 0 | T123: 0 | U123: 0 | V123: 0 | W123: 0 | AC123: 0 | AD123: 0 | AE123: 0 | AF123: 0
K124: 0 | L124: 0 | M124: 0 | N124: 0 | T124: 0 | U124: 0 | V124: 0 | W124: 0 | AC124: 0 | AD124: 0 | AE124: 0 | AF124: 0
K125: 0 | L125: 0 | M125: 0 | N125: 0 | T125: 0 | U125: 0 | V125: 0 | W125: 0 | AC125: 0 | AD125: 0 | AE125: 0 | AF125: 0
K126: 0 | L126: 0 | M126: 0 | N126: 0 | T126: 0 | U126: 0 | V126: 0 | W126: 0 | AC126: 0 | AD126: 0 | AE126: 0 | AF126: 0
K127: 0 | L127: 0 | M127: 0 | N127: 0 | T127: 0 | U127: 0 | V127: 0 | W127: 0 | AC127: 0 | AD127: 0 | AE127: 0 | AF127: 0
K128: 0 | L128: 0 | M128: 0 | N128: 0 | T128: 0 | U128: 0 | V128: 0 | W128: 0 | AC128: 0 | AD128: 0 | AE128: 0 | AF128: 0
K129: 0 | L129: 0 | M129: 0 | N129: 0 | T129: 0 | U129: 0 | V129: 0 | W129: 0 | AC129: 0 | AD129: 0 | AE129: 0 | AF129: 0
K130: 0 | L130: 0 | M130: 0 | N130: 0 | T130: 0 | U130: 0 | V130: 0 | W130: 0 | AC130: 0 | AD130: 0 | AE130: 0 | AF130: 0
K131: 0 | L131: 0 | M131: 0 | N131: 0 | T131: 0 | U131: 0 | V131: 0 | W131: 0 | AC131: 0 | AD131: 0 | AE131: 0 | AF131: 0
K132: 0 | L132: 0 | M132: 0 | N132: 0 | T132: 0 | U132: 0 | V132: 0 | W132: 0 | AC132: 0 | AD132: 0 | AE132: 0 | AF132: 0
K133: 0 | L133: 0 | M133: 0 | N133: 0 | T133: 0 | U133: 0 | V133: 0 | W133: 0 | AC133: 0 | AD133: 0 | AE133: 0 | AF133: 0
K134: 0 | L134: 0 | M134: 0 | N134: 0 | T134: 0 | U134: 0 | V134: 0 | W134: 0 | AC134: 0 | AD134: 0 | AE134: 0 | AF134: 0
K135: 0 | L135: 0 | M135: 0 | N135: 0 | T135: 0 | U135: 0 | V135: 0 | W135: 0 | AC135: 0 | AD135: 0 | AE135: 0 | AF135: 0
K136: 0 | L136: 0 | M136: 0 | N136: 0 | T136: 0 | U136: 0 | V136: 0 | W136: 0 | AC136: 0 | AD136: 0 | AE136: 0 | AF136: 0
K137: 0 | L137: 0 | M137: 0 | N137: 0 | T137: 0 | U137: 0 | V137: 0 | W137: 0 | AC137: 0 | AD137: 0 | AE137: 0 | AF137: 0
K138: 0 | L138: 0 | M138: 0 | N138: 0 | T138: 0 | U138: 0 | V138: 0 | W138: 0 | AC138: 0 | AD138: 0 | AE138: 0 | AF138: 0
K139: 0 | L139: 0 | M139: 0 | N139: 0 | T139: 0 | U139: 0 | V139: 0 | W139: 0 | AC139: 0 | AD139: 0 | AE139: 0 | AF139: 0
K140: 0 | L140: 0 | M140: 0 | N140: 0 | T140: 0 | U140: 0 | V140: 0 | W140: 0 | AC140: 0 | AD140: 0 | AE140: 0 | AF140: 0
K141: 0 | L141: 0 | M141: 0 | N141: 0 | T141: 0 | U141: 0 | V141: 0 | W141: 0 | AC141: 0 | AD141: 0 | AE141: 0 | AF141: 0
K142: 0 | L142: 0 | M142: 0 | N142: 0 | T142: 0 | U142: 0 | V142: 0 | W142: 0 | AC142: 0 | AD142: 0 | AE142: 0 | AF142: 0
K143: 0 | L143: 0 | M143: 0 | N143: 0 | T143: 0 | U143: 0 | V143: 0 | W143: 0 | AC143: 0 | AD143: 0 | AE143: 0 | AF143: 0
K144: 0 | L144: 0 | M144: 0 | N144: 0 | T144: 0 | U144: 0 | V144: 0 | W144: 0 | AC144: 0 | AD144: 0 | AE144: 0 | AF144: 0
K145: 0 | L145: 0 | M145: 0 | N145: 0 | T145: 0 | U145: 0 | V145: 0 | W145: 0 | AC145: 0 | AD145: 0 | AE145: 0 | AF145: 0
K146: 0 | L146: 0 | M146: 0 | N146: 0 | T146: 0 | U146: 0 | V146: 0 | W146: 0 | AC146: 0 | AD146: 0 | AE146: 0 | AF146: 0
K147: 0 | L147: 0 | M147: 0 | N147: 0 | T147: 0 | U147: 0 | V147: 0 | W147: 0 | AC147: 0 | AD147: 0 | AE147: 0 | AF147: 0
K148: 0 | L148: 0 | M148: 0 | N148: 0 | T148: 0 | U148: 0 | V148: 0 | W148: 0 | AC148: 0 | AD148: 0 | AE148: 0 | AF148: 0
K149: 0 | L149: 0 | M149: 0 | N149: 0 | T149: 0 | U149: 0 | V149: 0 | W149: 0 | AC149: 0 | AD149: 0 | AE149: 0 | AF149: 0
K150: 0 | L150: 0 | M150: 0 | N150: 0 | T150: 0 | U150: 0 | V150: 0 | W150: 0 | AC150: 0 | AD150: 0 | AE150: 0 | AF150: 0
K151: 0 | L151: 0 | M151: 0 | N151: 0 | T151: 0 | U151: 0 | V151: 0 | W151: 0 | AC151: 0 | AD151: 0 | AE151: 0 | AF151: 0
K152: 0 | L152: 0 | M152: 0 | N152: 0 | T152: 0 | U152: 0 | V152: 0 | W152: 0 | AC152: 0 | AD152: 0 | AE152: 0 | AF152: 0
K153: 0 | L153: 0 | M153: 0 | N153: 0 | T153: 0 | U153: 0 | V153: 0 | W153: 0 | AC153: 0 | AD153: 0 | AE153: 0 | AF153: 0
K154: 0 | L154: 0 | M154: 0 | N154: 0 | T154: 0 | U154: 0 | V154: 0 | W154: 0 | AC154: 0 | AD154: 0 | AE154: 0 | AF154: 0
K155: 0 | L155: 0 | M155: 0 | N155: 0 | T155: 0 | U155: 0 | V155: 0 | W155: 0 | AC155: 0 | AD155: 0 | AE155: 0 | AF155: 0
K156: 0 | L156: 0 | M156: 0 | N156: 0 | T156: 0 | U156: 0 | V156: 0 | W156: 0 | AC156: 0 | AD156: 0 | AE156: 0 | AF156: 0
K157: 0 | L157: 0 | M157: 0 | N157: 0 | T157: 0 | U157: 0 | V157: 0 | W157: 0 | AC157: 0 | AD157: 0 | AE157: 0 | AF157: 0
K158: 0 | L158: 0 | M158: 0 | N158: 0 | T158: 0 | U158: 0 | V158: 0 | W158: 0 | AC158: 0 | AD158: 0 | AE158: 0 | AF158: 0
K159: 0 | L159: 0 | M159: 0 | N159: 0 | T159: 0 | U159: 0 | V159: 0 | W159: 0 | AC159: 0 | AD159: 0 | AE159: 0 | AF159: 0
K160: 0 | L160: 0 | M160: 0 | N160: 0 | T160: 0 | U160: 0 | V160: 0 | W160: 0 | AC160: 0 | AD160: 0 | AE160: 0 | AF160: 0
K161: 0 | L161: 0 | M161: 0 | N161: 0 | T161: 0 | U161: 0 | V161: 0 | W161: 0 | AC161: 0 | AD161: 0 | AE161: 0 | AF161: 0
K162: 0 | L162: 0 | M162: 0 | N162: 0 | T162: 0 | U162: 0 | V162: 0 | W162: 0 | AC162: 0 | AD162: 0 | AE162: 0 | AF162: 0
K163: 0 | L163: 0 | M163: 0 | N163: 0 | T163: 0 | U163: 0 | V163: 0 | W163: 0 | AC163: 0 | AD163: 0 | AE163: 0 | AF163: 0
K164: 0 | L164: 0 | M164: 0 | N164: 0 | T164: 0 | U164: 0 | V164: 0 | W164: 0 | AC164: 0 | AD164: 0 | AE164: 0 | AF164: 0
K165: 0 | L165: 0 | M165: 0 | N165: 0 | T165: 0 | U165: 0 | V165: 0 | W165: 0 | AC165: 0 | AD165: 0 | AE165: 0 | AF165: 0
K166: 0 | L166: 0 | M166: 0 | N166: 0 | T166: 0 | U166: 0 | V166: 0 | W166: 0 | AC166: 0 | AD166: 0 | AE166: 0 | AF166: 0
K167: 0 | L167: 0 | M167: 0 | N167: 0 | T167: 0 | U167: 0 | V167: 0 | W167: 0 | AC167: 0 | AD167: 0 | AE167: 0 | AF167: 0
K168: =IF(B168>0,$I$3*(1-EXP(-$I$4*(A168-$I$5))),0) -> 0 | L168: =IF(C168<>0,((1/(C168)^2)*(K168-B168)^2),((K168-B168)^2)) -> 0 | M168: =IF(E168>0,$I$3*(1-EXP(-$I$4*(D168-$I$5))),0) -> 0 | N168: =IF(F168<>0,((1/(F168)^2)*(M168-E168)^2),((M168-E168)^2)) -> 0 | T168: =IF(B168>0,$I$3/(1+EXP(-$I$4*(A168-$I$5))),0) -> 0 | U168: =IF(C168<>0,((1/(C168)^2)*(T168-B168)^2),((T168-B168)^2)) -> 0 | V168: =IF(E168>0,$I$7/(1+EXP(-$I$8*(D168-$I$9))),0) -> 0 | W168: =IF(F168<>0,((1/(F168)^2)*(V168-E168)^2),((V168-E168)^2)) -> 0 | AC168: =IF(B168>0,$I$3*(EXP(-EXP(-$I$4*(A168-$I$5)))),0) -> 0 | AD168: =IF(C168<>0,((1/(C168)^2)*(AC168-B168)^2),((AC168-B168)^2)) -> 0 | AE168: =IF(E168>0,$I$7*(EXP(-EXP(-$I$8*(D168-$I$9)))),0) -> 0 | AF168: =IF(F168<>0,((1/(F168)^2)*(AE168-E168)^2),((AE168-E168)^2)) -> 0
K169: 0 | L169: 0 | M169: 0 | N169: 0 | T169: 0 | U169: 0 | V169: 0 | W169: 0 | AC169: 0 | AD169: 0 | AE169: 0 | AF169: 0
K170: 0 | L170: 0 | M170: 0 | N170: 0 | T170: 0 | U170: 0 | V170: 0 | W170: 0 | AC170: 0 | AD170: 0 | AE170: 0 | AF170: 0
K171: 0 | L171: 0 | M171: 0 | N171: 0 | T171: 0 | U171: 0 | V171: 0 | W171: 0 | AC171: 0 | AD171: 0 | AE171: 0 | AF171: 0
K172: 0 | L172: 0 | M172: 0 | N172: 0 | T172: 0 | U172: 0 | V172: 0 | W172: 0 | AC172: 0 | AD172: 0 | AE172: 0 | AF172: 0
K173: 0 | L173: 0 | M173: 0 | N173: 0 | T173: 0 | U173: 0 | V173: 0 | W173: 0 | AC173: 0 | AD173: 0 | AE173: 0 | AF173: 0
K174: 0 | L174: 0 | M174: 0 | N174: 0 | T174: 0 | U174: 0 | V174: 0 | W174: 0 | AC174: 0 | AD174: 0 | AE174: 0 | AF174: 0
K175: 0 | L175: 0 | M175: 0 | N175: 0 | T175: 0 | U175: 0 | V175: 0 | W175: 0 | AC175: 0 | AD175: 0 | AE175: 0 | AF175: 0
K176: 0 | L176: 0 | M176: 0 | N176: 0 | T176: 0 | U176: 0 | V176: 0 | W176: 0 | AC176: 0 | AD176: 0 | AE176: 0 | AF176: 0
K177: 0 | L177: 0 | M177: 0 | N177: 0 | T177: 0 | U177: 0 | V177: 0 | W177: 0 | AC177: 0 | AD177: 0 | AE177: 0 | AF177: 0
K178: 0 | L178: 0 | M178: 0 | N178: 0 | T178: 0 | U178: 0 | V178: 0 | W178: 0 | AC178: 0 | AD178: 0 | AE178: 0 | AF178: 0
K179: 0 | L179: 0 | M179: 0 | N179: 0 | T179: 0 | U179: 0 | V179: 0 | W179: 0 | AC179: 0 | AD179: 0 | AE179: 0 | AF179: 0
K180: 0 | L180: 0 | M180: 0 | N180: 0 | T180: 0 | U180: 0 | V180: 0 | W180: 0 | AC180: 0 | AD180: 0 | AE180: 0 | AF180: 0
K181: 0 | L181: 0 | M181: 0 | N181: 0 | T181: 0 | U181: 0 | V181: 0 | W181: 0 | AC181: 0 | AD181: 0 | AE181: 0 | AF181: 0
K182: 0 | L182: 0 | M182: 0 | N182: 0 | T182: 0 | U182: 0 | V182: 0 | W182: 0 | AC182: 0 | AD182: 0 | AE182: 0 | AF182: 0
K183: 0 | L183: 0 | M183: 0 | N183: 0 | T183: 0 | U183: 0 | V183: 0 | W183: 0 | AC183: 0 | AD183: 0 | AE183: 0 | AF183: 0
K184: 0 | L184: 0 | M184: 0 | N184: 0 | T184: 0 | U184: 0 | V184: 0 | W184: 0 | AC184: 0 | AD184: 0 | AE184: 0 | AF184: 0
K185: 0 | L185: 0 | M185: 0 | N185: 0 | T185: 0 | U185: 0 | V185: 0 | W185: 0 | AC185: 0 | AD185: 0 | AE185: 0 | AF185: 0
K186: 0 | L186: 0 | M186: 0 | N186: 0 | T186: 0 | U186: 0 | V186: 0 | W186: 0 | AC186: 0 | AD186: 0 | AE186: 0 | AF186: 0
K187: 0 | L187: 0 | M187: 0 | N187: 0 | T187: 0 | U187: 0 | V187: 0 | W187: 0 | AC187: 0 | AD187: 0 | AE187: 0 | AF187: 0
K188: 0 | L188: 0 | M188: 0 | N188: 0 | T188: 0 | U188: 0 | V188: 0 | W188: 0 | AC188: 0 | AD188: 0 | AE188: 0 | AF188: 0
K189: 0 | L189: 0 | M189: 0 | N189: 0 | T189: 0 | U189: 0 | V189: 0 | W189: 0 | AC189: 0 | AD189: 0 | AE189: 0 | AF189: 0
K190: 0 | L190: 0 | M190: 0 | N190: 0 | T190: 0 | U190: 0 | V190: 0 | W190: 0 | AC190: 0 | AD190: 0 | AE190: 0 | AF190: 0
K191: 0 | L191: 0 | M191: 0 | N191: 0 | T191: 0 | U191: 0 | V191: 0 | W191: 0 | AC191: 0 | AD191: 0 | AE191: 0 | AF191: 0
K192: 0 | L192: 0 | M192: 0 | N192: 0 | T192: 0 | U192: 0 | V192: 0 | W192: 0 | AC192: 0 | AD192: 0 | AE192: 0 | AF192: 0
K193: 0 | L193: 0 | M193: 0 | N193: 0 | T193: 0 | U193: 0 | V193: 0 | W193: 0 | AC193: 0 | AD193: 0 | AE193: 0 | AF193: 0
K194: 0 | L194: 0 | M194: 0 | N194: 0 | T194: 0 | U194: 0 | V194: 0 | W194: 0 | AC194: 0 | AD194: 0 | AE194: 0 | AF194: 0
K195: 0 | L195: 0 | M195: 0 | N195: 0 | T195: 0 | U195: 0 | V195: 0 | W195: 0 | AC195: 0 | AD195: 0 | AE195: 0 | AF195: 0
K196: 0 | L196: 0 | M196: 0 | N196: 0 | T196: 0 | U196: 0 | V196: 0 | W196: 0 | AC196: 0 | AD196: 0 | AE196: 0 | AF196: 0
K197: 0 | L197: 0 | M197: 0 | N197: 0 | T197: 0 | U197: 0 | V197: 0 | W197: 0 | AC197: 0 | AD197: 0 | AE197: 0 | AF197: 0
K198: 0 | L198: 0 | M198: 0 | N198: 0 | T198: 0 | U198: 0 | V198: 0 | W198: 0 | AC198: 0 | AD198: 0 | AE198: 0 | AF198: 0
K199: 0 | L199: 0 | M199: 0 | N199: 0 | T199: 0 | U199: 0 | V199: 0 | W199: 0 | AC199: 0 | AD199: 0 | AE199: 0 | AF199: 0
K200: 0 | L200: 0 | M200: 0 | N200: 0 | T200: 0 | U200: 0 | V200: 0 | W200: 0 | AC200: 0 | AD200: 0 | AE200: 0 | AF200: 0
... 3 more rows

Sheet 4 (hidden)
A1: Dados 1 | D1: Dados 2 | K1: Dados 1 | M1: Dados 2 | T1: Dados 1 | V1: Dados 2 | AC1: Dados 1 | AE1: Dados 2
A2: idade | B2: Comprimento médio | C2: Desvio padrão | D2: idade | E2: Comprimento médio | F2: Desvio padrão | H2: Dados 1 | K2: L(t) | L2: SQ | M2: L(t) | N2: SQ | O2: SSQTOTAL | P2: Likelihood ratio x^2 | Q2: GL | R2: p | T2: L(t) | U2: SQ | V2: L(t) | W2: SQ | X2: SSQTOTAL | Y2: Likelihood ratio x^2 | Z2: GL | AA2: p | AC2: L(t) | AD2: SQ | AE2: L(t) | AF2: SQ | AG2: SSQTOTAL | AH2: Likelihood ratio x^2 | AI2: GL | AJ2: p
A3: 1 | B3: 15.4 | D3: 1 | E3: 15.4 | H3: Linf | I3: 58.12557574 | K3: =IF(B3>0,$I$3*(1-EXP(-$I$4*(A3-$I$5))),0) -> -11.80288583 | L3: =IF(C3<>0,((1/(C3)^2)*(K3-B3)^2),((K3-B3)^2)) -> 739.9969972 | M3: =IF(E3>0,$I$7*(1-EXP(-$I$8*(D3-$I$9))),0) -> -10.6676403 | N3: =IF(F3<>0,((1/(F3)^2)*(M3-E3)^2),((M3-E3)^2)) -> 679.5218707 | O3: =SUM($L$3:$L$103,$N$3:$N$103) -> 2039.795495 | P3: =-(COUNT($B$3:$B$203)+COUNT($E$3:$E$203))*LN(SUM($I$11,$I$12)/$O$3) -> 77.62711002 | Q3: 1 | R3: =CHIDIST($P$3,$Q$3) -> 1.244502106e-18 | T3: =IF(B3>0,$I$3/(1+EXP(-$I$4*(A3-$I$5))),0) -> 26.38403776 | U3: =IF(C3<>0,((1/(C3)^2)*(T3-B3)^2),((T3-B3)^2)) -> 120.6490855 | V3: =IF(E3>0,$I$7/(1+EXP(-$I$8*(D3-$I$9))),0) -> 26.62003402 | W3: =IF(F3<>0,((1/(F3)^2)*(V3-E3)^2),((V3-E3)^2)) -> 125.8891635 | X3: =SUM($U$3:$U$103,$W$3:$W$103) -> 385.6368249 | Y3: =-(COUNT($B$3:$B$203)+COUNT($E$3:$E$203))*LN(SUM($I$11,$I$12)/$X$3) -> 37.6500994 | Z3: 1 | AA3: =CHIDIST($Y$3,$Z$3) -> 8.46423645e-10 | AC3: =IF(B3>0,$I$3*(EXP(-EXP(-$I$4*(A3-$I$5)))),0) -> 17.45362527 | AD3: =IF(C3<>0,((1/(C3)^2)*(AC3-B3)^2),((AC3-B3)^2)) -> 4.217376767 | AE3: =IF(E3>0,$I$7*(EXP(-EXP(-$I$8*(D3-$I$9)))),0) -> 17.79786118 | AF3: =IF(F3<>0,((1/(F3)^2)*(AE3-E3)^2),((AE3-E3)^2)) -> 5.749738231 | AG3: =SUM($AD$3:$AD$103,$AF$3:$AF$103) -> 114.5712689 | AH3: =-(COUNT($B$3:$B$203)+COUNT($E$3:$E$203))*LN(SUM($I$11,$I$12)/$AG$3) -> 8.521323557 | AI3: 1 | AJ3: =CHIDIST($AH$3,$AI$3) -> 0.003510091271
A4: 2 | B4: 28.03 | D4: 2 | E4: 26.93 | H4: k | I4: 0.464857239 | K4: 14.19478303 | L4: =IF(C4<>0,((1/(C4)^2)*(K4-B4)^2),((K4-B4)^2)) -> 191.4132287 | M4: =IF(E4>0,$I$7*(1-EXP(-$I$8*(D4-$I$9))),0) -> 13.05638809 | N4: =IF(F4<>0,((1/(F4)^2)*(M4-E4)^2),((M4-E4)^2)) -> 192.4771074 | T4: =IF(B4>0,$I$3/(1+EXP(-$I$4*(A4-$I$5))),0) -> 33.10506347 | U4: =IF(C4<>0,((1/(C4)^2)*(T4-B4)^2),((T4-B4)^2)) -> 25.75626923 | V4: =IF(E4>0,$I$7/(1+EXP(-$I$8*(D4-$I$9))),0) -> 32.73986435 | W4: =IF(F4<>0,((1/(F4)^2)*(V4-E4)^2),((V4-E4)^2)) -> 33.75452381 | AC4: =IF(B4>0,$I$3*(EXP(-EXP(-$I$4*(A4-$I$5)))),0) -> 27.29803362 | AD4: =IF(C4<>0,((1/(C4)^2)*(AC4-B4)^2),((AC4-B4)^2)) -> 0.5357747811 | AE4: =IF(E4>0,$I$7*(EXP(-EXP(-$I$8*(D4-$I$9)))),0) -> 26.76860046 | AF4: =IF(F4<>0,((1/(F4)^2)*(AE4-E4)^2),((AE4-E4)^2)) -> 0.02604981269
A5: 3.3 | B5: 41.18 | D5: 3.3 | E5: 42.23 | H5: t0 | I5: 1.397685477 | K5: 34.11964073 | L5: 49.84867306 | M5: 32.11714898 | N5: 102.2697557 | T5: 41.13625239 | U5: 0.00191385366 | V5: 40.15715947 | W5: 4.296667854 | AC5: 38.45945334 | AD5: 7.401374115 | AE5: 37.15704526 | AF5: 25.73486979
A6: 4.3 | B6: 46.2 | D6: 4.3 | E6: 44.59 | H6: Dados 2 | K6: 43.04445238 | L6: 9.957480751 | M6: 41.086415 | N6: 12.27510784 | T6: 46.15127573 | U6: 0.002374054524 | V6: 44.94903745 | W6: 0.1289078934 | AC6: 44.84213238 | AD6: 1.843804483 | AE6: 43.35672489 | AF6: 1.520967496
A7: 5.3 | B7: 48.23 | D7: 5.3 | E7: 47.63 | H7: Linf | I7: =I3 -> 58.12557574 | K7: 48.65124027 | L7: 0.177443363 | M7: 46.96253995 | N7: 0.4455029161 | T7: 49.97909752 | U7: 3.059342152 | V7: 48.7610082 | W7: 1.279179557 | AC7: 49.38309028 | AD7: 1.329617202 | AE7: 47.96902273 | AF7: 0.1149364106
A8: 6.3 | B8: 50.26 | D8: 6.3 | E8: 49.67 | H8: k | I8: 0.4229063237 | K8: 52.17356338 | L8: 3.661724803 | M8: 50.81222446 | N8: 1.304676716 | T8: 52.72643143 | U8: 6.083283992 | V8: 51.62955307 | W8: 3.839848217 | AC8: 52.46816321 | AD8: 4.875984779 | AE8: 51.253603 | AF8: 2.507798471
A9: 7.3 | B9: 51.82 | D9: 7.3 | E9: 50.87 | H9: t0 | I9: 1.398431893 | K9: 54.38637406 | L9: 6.586275798 | M9: 53.33430677 | N9: 6.072807874 | T9: 54.61237712 | U9: 7.797369984 | V9: 53.69917342 | W9: 8.004222259 | AC9: 54.5041069 | AD9: 7.20442983 | AE9: 53.52646218 | AF9: 7.056791289
A10: 8.3 | B10: 54.27 | D10: 8.3 | E10: 52.3 | K10: 55.77651657 | L10: 2.269592171 | M10: 54.98662378 | N10: 7.217947357 | T10: 55.86776274 | U10: 2.552845779 | V10: 55.14745126 | W10: 8.107978683 | AC10: 55.82335042 | AD10: 2.412897523 | AE10: 55.06987478 | AF10: 7.672206305
A11: 9.3 | B11: 56.98 | D11: 9.3 | E11: 54.77 | H11: SSQ1 | I11: 52.48529724 | K11: 56.64983855 | L11: 0.1090065837 | M11: 56.06912275 | N11: 1.687719926 | T11: 56.68637802 | U11: 0.08621386889 | V11: 56.13939288 | W11: 1.875236863 | AC11: 56.66841459 | AD11: 0.09708546804 | AE11: 56.10507563 | AF11: 1.782426944
A12: 10.3 | B12: 58.93 | D12: 10.3 | E12: 56.43 | H12: SSQ2 | I12: 27.8446037 | K12: 57.19848106 | L12: 2.998157832 | M12: 56.77831113 | N12: 0.1213206421 | T12: 57.21303594 | U12: 2.947965575 | V12: 56.80883131 | W12: 0.1435131621 | AC12: 57.20583542 | AD12: 2.972743484 | AE12: 56.79380499 | AF12: 0.1323540684
A13: 11.3 | B13: 59 | D13: 11.3 | E13: 55.88 | K13: 57.54315189 | L13: 2.122406425 | M13: 57.2429288 | N13: 1.857574919 | T13: 57.54892993 | U13: 2.105604338 | V13: 57.25613146 | W13: 1.893737806 | AC13: 57.54606014 | AD13: 2.113941126 | AE13: 57.24959658 | AF13: 1.875794797
A14: 12.3 | B14: 60.91 | K14: 57.75968264 | L14: 9.924499458 | M14: 0 | N14: 0 | T14: 57.76197148 | U14: 9.910083536 | V14: 0 | W14: 0 | AC14: 57.76083185 | AD14: 9.91726001 | AE14: 0 | AF14: 0
A15: 13.3 | B15: 61.83 | K15: 57.89571263 | L15: 15.47861712 | M15: 0 | N15: 0 | T15: 57.89661806 | U15: 15.47149346 | V15: 0 | W15: 0 | AC15: 57.89616654 | AD15: 15.47504571 | AE15: 0 | AF15: 0
K16: 0 | L16: 0 | M16: 0 | N16: 0 | T16: 0 | U16: 0 | V16: 0 | W16: 0 | AC16: 0 | AD16: 0 | AE16: 0 | AF16: 0
K17: 0 | L17: 0 | M17: 0 | N17: 0 | T17: 0 | U17: 0 | V17: 0 | W17: 0 | AC17: 0 | AD17: 0 | AE17: 0 | AF17: 0
K18: 0 | L18: 0 | M18: 0 | N18: 0 | T18: 0 | U18: 0 | V18: 0 | W18: 0 | AC18: 0 | AD18: 0 | AE18: 0 | AF18: 0
K19: 0 | L19: 0 | M19: 0 | N19: 0 | T19: 0 | U19: 0 | V19: 0 | W19: 0 | AC19: 0 | AD19: 0 | AE19: 0 | AF19: 0
K20: 0 | L20: 0 | M20: 0 | N20: 0 | T20: 0 | U20: 0 | V20: 0 | W20: 0 | AC20: 0 | AD20: 0 | AE20: 0 | AF20: 0
K21: 0 | L21: 0 | M21: 0 | N21: 0 | T21: 0 | U21: 0 | V21: 0 | W21: 0 | AC21: 0 | AD21: 0 | AE21: 0 | AF21: 0
K22: 0 | L22: 0 | M22: 0 | N22: 0 | T22: 0 | U22: 0 | V22: 0 | W22: 0 | AC22: 0 | AD22: 0 | AE22: 0 | AF22: 0
K23: 0 | L23: 0 | M23: 0 | N23: 0 | T23: 0 | U23: 0 | V23: 0 | W23: 0 | AC23: 0 | AD23: 0 | AE23: 0 | AF23: 0
K24: 0 | L24: 0 | M24: 0 | N24: 0 | T24: 0 | U24: 0 | V24: 0 | W24: 0 | AC24: 0 | AD24: 0 | AE24: 0 | AF24: 0
K25: 0 | L25: 0 | M25: 0 | N25: 0 | T25: 0 | U25: 0 | V25: 0 | W25: 0 | AC25: 0 | AD25: 0 | AE25: 0 | AF25: 0
K26: 0 | L26: 0 | M26: 0 | N26: 0 | T26: 0 | U26: 0 | V26: 0 | W26: 0 | AC26: 0 | AD26: 0 | AE26: 0 | AF26: 0
K27: 0 | L27: 0 | M27: 0 | N27: 0 | T27: 0 | U27: 0 | V27: 0 | W27: 0 | AC27: 0 | AD27: 0 | AE27: 0 | AF27: 0
K28: 0 | L28: 0 | M28: 0 | N28: 0 | T28: 0 | U28: 0 | V28: 0 | W28: 0 | AC28: 0 | AD28: 0 | AE28: 0 | AF28: 0
K29: 0 | L29: 0 | M29: 0 | N29: 0 | T29: 0 | U29: 0 | V29: 0 | W29: 0 | AC29: 0 | AD29: 0 | AE29: 0 | AF29: 0
K30: 0 | L30: 0 | M30: 0 | N30: 0 | T30: 0 | U30: 0 | V30: 0 | W30: 0 | AC30: 0 | AD30: 0 | AE30: 0 | AF30: 0
K31: 0 | L31: 0 | M31: 0 | N31: 0 | T31: 0 | U31: 0 | V31: 0 | W31: 0 | AC31: 0 | AD31: 0 | AE31: 0 | AF31: 0
K32: 0 | L32: 0 | M32: 0 | N32: 0 | T32: 0 | U32: 0 | V32: 0 | W32: 0 | AC32: 0 | AD32: 0 | AE32: 0 | AF32: 0
K33: 0 | L33: 0 | M33: 0 | N33: 0 | T33: 0 | U33: 0 | V33: 0 | W33: 0 | AC33: 0 | AD33: 0 | AE33: 0 | AF33: 0
K34: 0 | L34: 0 | M34: 0 | N34: 0 | T34: 0 | U34: 0 | V34: 0 | W34: 0 | AC34: 0 | AD34: 0 | AE34: 0 | AF34: 0
K35: 0 | L35: 0 | M35: 0 | N35: 0 | T35: 0 | U35: 0 | V35: 0 | W35: 0 | AC35: 0 | AD35: 0 | AE35: 0 | AF35: 0
K36: 0 | L36: 0 | M36: 0 | N36: 0 | T36: 0 | U36: 0 | V36: 0 | W36: 0 | AC36: 0 | AD36: 0 | AE36: 0 | AF36: 0
K37: 0 | L37: 0 | M37: 0 | N37: 0 | T37: 0 | U37: 0 | V37: 0 | W37: 0 | AC37: 0 | AD37: 0 | AE37: 0 | AF37: 0
K38: 0 | L38: 0 | M38: 0 | N38: 0 | T38: 0 | U38: 0 | V38: 0 | W38: 0 | AC38: 0 | AD38: 0 | AE38: 0 | AF38: 0
K39: 0 | L39: 0 | M39: 0 | N39: 0 | T39: 0 | U39: 0 | V39: 0 | W39: 0 | AC39: 0 | AD39: 0 | AE39: 0 | AF39: 0
K40: 0 | L40: 0 | M40: 0 | N40: 0 | T40: 0 | U40: 0 | V40: 0 | W40: 0 | AC40: 0 | AD40: 0 | AE40: 0 | AF40: 0
K41: 0 | L41: 0 | M41: 0 | N41: 0 | T41: 0 | U41: 0 | V41: 0 | W41: 0 | AC41: 0 | AD41: 0 | AE41: 0 | AF41: 0
K42: 0 | L42: 0 | M42: 0 | N42: 0 | T42: 0 | U42: 0 | V42: 0 | W42: 0 | AC42: 0 | AD42: 0 | AE42: 0 | AF42: 0
K43: 0 | L43: 0 | M43: 0 | N43: 0 | T43: 0 | U43: 0 | V43: 0 | W43: 0 | AC43: 0 | AD43: 0 | AE43: 0 | AF43: 0
K44: 0 | L44: 0 | M44: 0 | N44: 0 | T44: 0 | U44: 0 | V44: 0 | W44: 0 | AC44: 0 | AD44: 0 | AE44: 0 | AF44: 0
K45: 0 | L45: 0 | M45: 0 | N45: 0 | T45: 0 | U45: 0 | V45: 0 | W45: 0 | AC45: 0 | AD45: 0 | AE45: 0 | AF45: 0
K46: 0 | L46: 0 | M46: 0 | N46: 0 | T46: 0 | U46: 0 | V46: 0 | W46: 0 | AC46: 0 | AD46: 0 | AE46: 0 | AF46: 0
K47: 0 | L47: 0 | M47: 0 | N47: 0 | T47: 0 | U47: 0 | V47: 0 | W47: 0 | AC47: 0 | AD47: 0 | AE47: 0 | AF47: 0
K48: 0 | L48: 0 | M48: 0 | N48: 0 | T48: 0 | U48: 0 | V48: 0 | W48: 0 | AC48: 0 | AD48: 0 | AE48: 0 | AF48: 0
K49: 0 | L49: 0 | M49: 0 | N49: 0 | T49: 0 | U49: 0 | V49: 0 | W49: 0 | AC49: 0 | AD49: 0 | AE49: 0 | AF49: 0
K50: 0 | L50: 0 | M50: 0 | N50: 0 | T50: 0 | U50: 0 | V50: 0 | W50: 0 | AC50: 0 | AD50: 0 | AE50: 0 | AF50: 0
K51: 0 | L51: 0 | M51: 0 | N51: 0 | T51: 0 | U51: 0 | V51: 0 | W51: 0 | AC51: 0 | AD51: 0 | AE51: 0 | AF51: 0
K52: 0 | L52: 0 | M52: 0 | N52: 0 | T52: 0 | U52: 0 | V52: 0 | W52: 0 | AC52: 0 | AD52: 0 | AE52: 0 | AF52: 0
K53: 0 | L53: 0 | M53: 0 | N53: 0 | T53: 0 | U53: 0 | V53: 0 | W53: 0 | AC53: 0 | AD53: 0 | AE53: 0 | AF53: 0
K54: 0 | L54: 0 | M54: 0 | N54: 0 | T54: 0 | U54: 0 | V54: 0 | W54: 0 | AC54: 0 | AD54: 0 | AE54: 0 | AF54: 0
K55: 0 | L55: 0 | M55: 0 | N55: 0 | T55: 0 | U55: 0 | V55: 0 | W55: 0 | AC55: 0 | AD55: 0 | AE55: 0 | AF55: 0
K56: 0 | L56: 0 | M56: 0 | N56: 0 | T56: 0 | U56: 0 | V56: 0 | W56: 0 | AC56: 0 | AD56: 0 | AE56: 0 | AF56: 0
K57: 0 | L57: 0 | M57: 0 | N57: 0 | T57: 0 | U57: 0 | V57: 0 | W57: 0 | AC57: 0 | AD57: 0 | AE57: 0 | AF57: 0
K58: 0 | L58: 0 | M58: 0 | N58: 0 | T58: 0 | U58: 0 | V58: 0 | W58: 0 | AC58: 0 | AD58: 0 | AE58: 0 | AF58: 0
K59: 0 | L59: 0 | M59: 0 | N59: 0 | T59: 0 | U59: 0 | V59: 0 | W59: 0 | AC59: 0 | AD59: 0 | AE59: 0 | AF59: 0
K60: 0 | L60: 0 | M60: 0 | N60: 0 | T60: 0 | U60: 0 | V60: 0 | W60: 0 | AC60: 0 | AD60: 0 | AE60: 0 | AF60: 0
K61: 0 | L61: 0 | M61: 0 | N61: 0 | T61: 0 | U61: 0 | V61: 0 | W61: 0 | AC61: 0 | AD61: 0 | AE61: 0 | AF61: 0
K62: 0 | L62: 0 | M62: 0 | N62: 0 | T62: 0 | U62: 0 | V62: 0 | W62: 0 | AC62: 0 | AD62: 0 | AE62: 0 | AF62: 0
K63: 0 | L63: 0 | M63: 0 | N63: 0 | T63: 0 | U63: 0 | V63: 0 | W63: 0 | AC63: 0 | AD63: 0 | AE63: 0 | AF63: 0
K64: 0 | L64: 0 | M64: 0 | N64: 0 | T64: 0 | U64: 0 | V64: 0 | W64: 0 | AC64: 0 | AD64: 0 | AE64: 0 | AF64: 0
K65: 0 | L65: 0 | M65: 0 | N65: 0 | T65: 0 | U65: 0 | V65: 0 | W65: 0 | AC65: 0 | AD65: 0 | AE65: 0 | AF65: 0
K66: 0 | L66: 0 | M66: 0 | N66: 0 | T66: 0 | U66: 0 | V66: 0 | W66: 0 | AC66: 0 | AD66: 0 | AE66: 0 | AF66: 0
K67: =IF(B67>0,$I$3*(1-EXP(-$I$4*(A67-$I$5))),0) -> 0 | L67: 0 | M67: 0 | N67: 0 | T67: 0 | U67: 0 | V67: 0 | W67: 0 | AC67: 0 | AD67: 0 | AE67: 0 | AF67: 0
K68: 0 | L68: =IF(C68<>0,((1/(C68)^2)*(K68-B68)^2),((K68-B68)^2)) -> 0 | M68: =IF(E68>0,$I$7*(1-EXP(-$I$8*(D68-$I$9))),0) -> 0 | N68: =IF(F68<>0,((1/(F68)^2)*(M68-E68)^2),((M68-E68)^2)) -> 0 | T68: =IF(B68>0,$I$3/(1+EXP(-$I$4*(A68-$I$5))),0) -> 0 | U68: =IF(C68<>0,((1/(C68)^2)*(T68-B68)^2),((T68-B68)^2)) -> 0 | V68: =IF(E68>0,$I$7/(1+EXP(-$I$8*(D68-$I$9))),0) -> 0 | W68: =IF(F68<>0,((1/(F68)^2)*(V68-E68)^2),((V68-E68)^2)) -> 0 | AC68: =IF(B68>0,$I$3*(EXP(-EXP(-$I$4*(A68-$I$5)))),0) -> 0 | AD68: =IF(C68<>0,((1/(C68)^2)*(AC68-B68)^2),((AC68-B68)^2)) -> 0 | AE68: =IF(E68>0,$I$7*(EXP(-EXP(-$I$8*(D68-$I$9)))),0) -> 0 | AF68: =IF(F68<>0,((1/(F68)^2)*(AE68-E68)^2),((AE68-E68)^2)) -> 0
K69: 0 | L69: 0 | M69: 0 | N69: 0 | T69: 0 | U69: 0 | V69: 0 | W69: 0 | AC69: 0 | AD69: 0 | AE69: 0 | AF69: 0
K70: 0 | L70: 0 | M70: 0 | N70: 0 | T70: 0 | U70: 0 | V70: 0 | W70: 0 | AC70: 0 | AD70: 0 | AE70: 0 | AF70: 0
K71: 0 | L71: 0 | M71: 0 | N71: 0 | T71: 0 | U71: 0 | V71: 0 | W71: 0 | AC71: 0 | AD71: 0 | AE71: 0 | AF71: 0
K72: 0 | L72: 0 | M72: 0 | N72: 0 | T72: 0 | U72: 0 | V72: 0 | W72: 0 | AC72: 0 | AD72: 0 | AE72: 0 | AF72: 0
K73: 0 | L73: 0 | M73: 0 | N73: 0 | T73: 0 | U73: 0 | V73: 0 | W73: 0 | AC73: 0 | AD73: 0 | AE73: 0 | AF73: 0
K74: 0 | L74: 0 | M74: 0 | N74: 0 | T74: 0 | U74: 0 | V74: 0 | W74: 0 | AC74: 0 | AD74: 0 | AE74: 0 | AF74: 0
K75: 0 | L75: 0 | M75: 0 | N75: 0 | T75: 0 | U75: 0 | V75: 0 | W75: 0 | AC75: 0 | AD75: 0 | AE75: 0 | AF75: 0
K76: 0 | L76: 0 | M76: 0 | N76: 0 | T76: 0 | U76: 0 | V76: 0 | W76: 0 | AC76: 0 | AD76: 0 | AE76: 0 | AF76: 0
K77: 0 | L77: 0 | M77: 0 | N77: 0 | T77: 0 | U77: 0 | V77: 0 | W77: 0 | AC77: 0 | AD77: 0 | AE77: 0 | AF77: 0
K78: 0 | L78: 0 | M78: 0 | N78: 0 | T78: 0 | U78: 0 | V78: 0 | W78: 0 | AC78: 0 | AD78: 0 | AE78: 0 | AF78: 0
K79: 0 | L79: 0 | M79: 0 | N79: 0 | T79: 0 | U79: 0 | V79: 0 | W79: 0 | AC79: 0 | AD79: 0 | AE79: 0 | AF79: 0
K80: 0 | L80: 0 | M80: 0 | N80: 0 | T80: 0 | U80: 0 | V80: 0 | W80: 0 | AC80: 0 | AD80: 0 | AE80: 0 | AF80: 0
K81: 0 | L81: 0 | M81: 0 | N81: 0 | T81: 0 | U81: 0 | V81: 0 | W81: 0 | AC81: 0 | AD81: 0 | AE81: 0 | AF81: 0
K82: 0 | L82: 0 | M82: 0 | N82: 0 | T82: 0 | U82: 0 | V82: 0 | W82: 0 | AC82: 0 | AD82: 0 | AE82: 0 | AF82: 0
K83: 0 | L83: 0 | M83: 0 | N83: 0 | T83: 0 | U83: 0 | V83: 0 | W83: 0 | AC83: 0 | AD83: 0 | AE83: 0 | AF83: 0
K84: 0 | L84: 0 | M84: 0 | N84: 0 | T84: 0 | U84: 0 | V84: 0 | W84: 0 | AC84: 0 | AD84: 0 | AE84: 0 | AF84: 0
K85: 0 | L85: 0 | M85: 0 | N85: 0 | T85: 0 | U85: 0 | V85: 0 | W85: 0 | AC85: 0 | AD85: 0 | AE85: 0 | AF85: 0
K86: 0 | L86: 0 | M86: 0 | N86: 0 | T86: 0 | U86: 0 | V86: 0 | W86: 0 | AC86: 0 | AD86: 0 | AE86: 0 | AF86: 0
K87: 0 | L87: 0 | M87: 0 | N87: 0 | T87: 0 | U87: 0 | V87: 0 | W87: 0 | AC87: 0 | AD87: 0 | AE87: 0 | AF87: 0
K88: 0 | L88: 0 | M88: 0 | N88: 0 | T88: 0 | U88: 0 | V88: 0 | W88: 0 | AC88: 0 | AD88: 0 | AE88: 0 | AF88: 0
K89: 0 | L89: 0 | M89: 0 | N89: 0 | T89: 0 | U89: 0 | V89: 0 | W89: 0 | AC89: 0 | AD89: 0 | AE89: 0 | AF89: 0
K90: 0 | L90: 0 | M90: 0 | N90: 0 | T90: 0 | U90: 0 | V90: 0 | W90: 0 | AC90: 0 | AD90: 0 | AE90: 0 | AF90: 0
K91: 0 | L91: 0 | M91: 0 | N91: 0 | T91: 0 | U91: 0 | V91: 0 | W91: 0 | AC91: 0 | AD91: 0 | AE91: 0 | AF91: 0
K92: 0 | L92: 0 | M92: 0 | N92: 0 | T92: 0 | U92: 0 | V92: 0 | W92: 0 | AC92: 0 | AD92: 0 | AE92: 0 | AF92: 0
K93: 0 | L93: 0 | M93: 0 | N93: 0 | T93: 0 | U93: 0 | V93: 0 | W93: 0 | AC93: 0 | AD93: 0 | AE93: 0 | AF93: 0
K94: 0 | L94: 0 | M94: 0 | N94: 0 | T94: 0 | U94: 0 | V94: 0 | W94: 0 | AC94: 0 | AD94: 0 | AE94: 0 | AF94: 0
K95: 0 | L95: 0 | M95: 0 | N95: 0 | T95: 0 | U95: 0 | V95: 0 | W95: 0 | AC95: 0 | AD95: 0 | AE95: 0 | AF95: 0
K96: 0 | L96: 0 | M96: 0 | N96: 0 | T96: 0 | U96: 0 | V96: 0 | W96: 0 | AC96: 0 | AD96: 0 | AE96: 0 | AF96: 0
K97: 0 | L97: 0 | M97: 0 | N97: 0 | T97: 0 | U97: 0 | V97: 0 | W97: 0 | AC97: 0 | AD97: 0 | AE97: 0 | AF97: 0
K98: 0 | L98: 0 | M98: 0 | N98: 0 | T98: 0 | U98: 0 | V98: 0 | W98: 0 | AC98: 0 | AD98: 0 | AE98: 0 | AF98: 0
K99: 0 | L99: 0 | M99: 0 | N99: 0 | T99: 0 | U99: 0 | V99: 0 | W99: 0 | AC99: 0 | AD99: 0 | AE99: 0 | AF99: 0
K100: 0 | L100: 0 | M100: 0 | N100: 0 | T100: 0 | U100: 0 | V100: 0 | W100: 0 | AC100: 0 | AD100: 0 | AE100: 0 | AF100: 0
K101: 0 | L101: 0 | M101: 0 | N101: 0 | T101: 0 | U101: 0 | V101: 0 | W101: 0 | AC101: 0 | AD101: 0 | AE101: 0 | AF101: 0
K102: 0 | L102: 0 | M102: 0 | N102: 0 | T102: 0 | U102: 0 | V102: 0 | W102: 0 | AC102: 0 | AD102: 0 | AE102: 0 | AF102: 0
K103: 0 | L103: 0 | M103: 0 | N103: 0 | T103: 0 | U103: 0 | V103: 0 | W103: 0 | AC103: 0 | AD103: 0 | AE103: 0 | AF103: 0
K104: =IF(B104>0,$I$3*(1-EXP(-$I$4*(A104-$I$5))),0) -> 0 | L104: =IF(C104<>0,((1/(C104)^2)*(K104-B104)^2),((K104-B104)^2)) -> 0 | M104: =IF(E104>0,$I$7*(1-EXP(-$I$8*(D104-$I$9))),0) -> 0 | N104: =IF(F104<>0,((1/(F104)^2)*(M104-E104)^2),((M104-E104)^2)) -> 0 | T104: =IF(B104>0,$I$3/(1+EXP(-$I$4*(A104-$I$5))),0) -> 0 | U104: =IF(C104<>0,((1/(C104)^2)*(T104-B104)^2),((T104-B104)^2)) -> 0 | V104: =IF(E104>0,$I$7/(1+EXP(-$I$8*(D104-$I$9))),0) -> 0 | W104: =IF(F104<>0,((1/(F104)^2)*(V104-E104)^2),((V104-E104)^2)) -> 0 | AC104: =IF(B104>0,$I$3*(EXP(-EXP(-$I$4*(A104-$I$5)))),0) -> 0 | AD104: =IF(C104<>0,((1/(C104)^2)*(AC104-B104)^2),((AC104-B104)^2)) -> 0 | AE104: =IF(E104>0,$I$7*(EXP(-EXP(-$I$8*(D104-$I$9)))),0) -> 0 | AF104: =IF(F104<>0,((1/(F104)^2)*(AE104-E104)^2),((AE104-E104)^2)) -> 0
K105: 0 | L105: 0 | M105: 0 | N105: 0 | T105: 0 | U105: 0 | V105: 0 | W105: 0 | AC105: 0 | AD105: 0 | AE105: 0 | AF105: 0
K106: 0 | L106: 0 | M106: 0 | N106: 0 | T106: 0 | U106: 0 | V106: 0 | W106: 0 | AC106: 0 | AD106: 0 | AE106: 0 | AF106: 0
K107: 0 | L107: 0 | M107: 0 | N107: 0 | T107: 0 | U107: 0 | V107: 0 | W107: 0 | AC107: 0 | AD107: 0 | AE107: 0 | AF107: 0
K108: 0 | L108: 0 | M108: 0 | N108: 0 | T108: 0 | U108: 0 | V108: 0 | W108: 0 | AC108: 0 | AD108: 0 | AE108: 0 | AF108: 0
K109: 0 | L109: 0 | M109: 0 | N109: 0 | T109: 0 | U109: 0 | V109: 0 | W109: 0 | AC109: 0 | AD109: 0 | AE109: 0 | AF109: 0
K110: 0 | L110: 0 | M110: 0 | N110: 0 | T110: 0 | U110: 0 | V110: 0 | W110: 0 | AC110: 0 | AD110: 0 | AE110: 0 | AF110: 0
K111: 0 | L111: 0 | M111: 0 | N111: 0 | T111: 0 | U111: 0 | V111: 0 | W111: 0 | AC111: 0 | AD111: 0 | AE111: 0 | AF111: 0
K112: 0 | L112: 0 | M112: 0 | N112: 0 | T112: 0 | U112: 0 | V112: 0 | W112: 0 | AC112: 0 | AD112: 0 | AE112: 0 | AF112: 0
K113: 0 | L113: 0 | M113: 0 | N113: 0 | T113: 0 | U113: 0 | V113: 0 | W113: 0 | AC113: 0 | AD113: 0 | AE113: 0 | AF113: 0
K114: 0 | L114: 0 | M114: 0 | N114: 0 | T114: 0 | U114: 0 | V114: 0 | W114: 0 | AC114: 0 | AD114: 0 | AE114: 0 | AF114: 0
K115: 0 | L115: 0 | M115: 0 | N115: 0 | T115: 0 | U115: 0 | V115: 0 | W115: 0 | AC115: 0 | AD115: 0 | AE115: 0 | AF115: 0
K116: 0 | L116: 0 | M116: 0 | N116: 0 | T116: 0 | U116: 0 | V116: 0 | W116: 0 | AC116: 0 | AD116: 0 | AE116: 0 | AF116: 0
K117: 0 | L117: 0 | M117: 0 | N117: 0 | T117: 0 | U117: 0 | V117: 0 | W117: 0 | AC117: 0 | AD117: 0 | AE117: 0 | AF117: 0
K118: 0 | L118: 0 | M118: 0 | N118: 0 | T118: 0 | U118: 0 | V118: 0 | W118: 0 | AC118: 0 | AD118: 0 | AE118: 0 | AF118: 0
K119: 0 | L119: 0 | M119: 0 | N119: 0 | T119: 0 | U119: 0 | V119: 0 | W119: 0 | AC119: 0 | AD119: 0 | AE119: 0 | AF119: 0
K120: 0 | L120: 0 | M120: 0 | N120: 0 | T120: 0 | U120: 0 | V120: 0 | W120: 0 | AC120: 0 | AD120: 0 | AE120: 0 | AF120: 0
K121: 0 | L121: 0 | M121: 0 | N121: 0 | T121: 0 | U121: 0 | V121: 0 | W121: 0 | AC121: 0 | AD121: 0 | AE121: 0 | AF121: 0
K122: 0 | L122: 0 | M122: 0 | N122: 0 | T122: 0 | U122: 0 | V122: 0 | W122: 0 | AC122: 0 | AD122: 0 | AE122: 0 | AF122: 0
K123: 0 | L123: 0 | M123: 0 | N123: 0 | T123: 0 | U123: 0 | V123: 0 | W123: 0 | AC123: 0 | AD123: 0 | AE123: 0 | AF123: 0
K124: 0 | L124: 0 | M124: 0 | N124: 0 | T124: 0 | U124: 0 | V124: 0 | W124: 0 | AC124: 0 | AD124: 0 | AE124: 0 | AF124: 0
K125: 0 | L125: 0 | M125: 0 | N125: 0 | T125: 0 | U125: 0 | V125: 0 | W125: 0 | AC125: 0 | AD125: 0 | AE125: 0 | AF125: 0
K126: 0 | L126: 0 | M126: 0 | N126: 0 | T126: 0 | U126: 0 | V126: 0 | W126: 0 | AC126: 0 | AD126: 0 | AE126: 0 | AF126: 0
K127: 0 | L127: 0 | M127: 0 | N127: 0 | T127: 0 | U127: 0 | V127: 0 | W127: 0 | AC127: 0 | AD127: 0 | AE127: 0 | AF127: 0
K128: 0 | L128: 0 | M128: 0 | N128: 0 | T128: 0 | U128: 0 | V128: 0 | W128: 0 | AC128: 0 | AD128: 0 | AE128: 0 | AF128: 0
K129: 0 | L129: 0 | M129: 0 | N129: 0 | T129: 0 | U129: 0 | V129: 0 | W129: 0 | AC129: 0 | AD129: 0 | AE129: 0 | AF129: 0
K130: 0 | L130: 0 | M130: 0 | N130: 0 | T130: 0 | U130: 0 | V130: 0 | W130: 0 | AC130: 0 | AD130: 0 | AE130: 0 | AF130: 0
K131: 0 | L131: 0 | M131: 0 | N131: 0 | T131: 0 | U131: 0 | V131: 0 | W131: 0 | AC131: 0 | AD131: 0 | AE131: 0 | AF131: 0
K132: 0 | L132: 0 | M132: 0 | N132: 0 | T132: 0 | U132: 0 | V132: 0 | W132: 0 | AC132: 0 | AD132: 0 | AE132: 0 | AF132: 0
K133: 0 | L133: 0 | M133: 0 | N133: 0 | T133: 0 | U133: 0 | V133: 0 | W133: 0 | AC133: 0 | AD133: 0 | AE133: 0 | AF133: 0
K134: 0 | L134: 0 | M134: 0 | N134: 0 | T134: 0 | U134: 0 | V134: 0 | W134: 0 | AC134: 0 | AD134: 0 | AE134: 0 | AF134: 0
K135: 0 | L135: 0 | M135: 0 | N135: 0 | T135: 0 | U135: 0 | V135: 0 | W135: 0 | AC135: 0 | AD135: 0 | AE135: 0 | AF135: 0
K136: 0 | L136: 0 | M136: 0 | N136: 0 | T136: 0 | U136: 0 | V136: 0 | W136: 0 | AC136: 0 | AD136: 0 | AE136: 0 | AF136: 0
K137: 0 | L137: 0 | M137: 0 | N137: 0 | T137: 0 | U137: 0 | V137: 0 | W137: 0 | AC137: 0 | AD137: 0 | AE137: 0 | AF137: 0
K138: 0 | L138: 0 | M138: 0 | N138: 0 | T138: 0 | U138: 0 | V138: 0 | W138: 0 | AC138: 0 | AD138: 0 | AE138: 0 | AF138: 0
K139: 0 | L139: 0 | M139: 0 | N139: 0 | T139: 0 | U139: 0 | V139: 0 | W139: 0 | AC139: 0 | AD139: 0 | AE139: 0 | AF139: 0
K140: 0 | L140: 0 | M140: 0 | N140: 0 | T140: 0 | U140: 0 | V140: 0 | W140: 0 | AC140: 0 | AD140: 0 | AE140: 0 | AF140: 0
K141: 0 | L141: 0 | M141: 0 | N141: 0 | T141: 0 | U141: 0 | V141: 0 | W141: 0 | AC141: 0 | AD141: 0 | AE141: 0 | AF141: 0
K142: 0 | L142: 0 | M142: 0 | N142: 0 | T142: 0 | U142: 0 | V142: 0 | W142: 0 | AC142: 0 | AD142: 0 | AE142: 0 | AF142: 0
K143: 0 | L143: 0 | M143: 0 | N143: 0 | T143: 0 | U143: 0 | V143: 0 | W143: 0 | AC143: 0 | AD143: 0 | AE143: 0 | AF143: 0
K144: 0 | L144: 0 | M144: 0 | N144: 0 | T144: 0 | U144: 0 | V144: 0 | W144: 0 | AC144: 0 | AD144: 0 | AE144: 0 | AF144: 0
K145: 0 | L145: 0 | M145: 0 | N145: 0 | T145: 0 | U145: 0 | V145: 0 | W145: 0 | AC145: 0 | AD145: 0 | AE145: 0 | AF145: 0
K146: 0 | L146: 0 | M146: 0 | N146: 0 | T146: 0 | U146: 0 | V146: 0 | W146: 0 | AC146: 0 | AD146: 0 | AE146: 0 | AF146: 0
K147: 0 | L147: 0 | M147: 0 | N147: 0 | T147: 0 | U147: 0 | V147: 0 | W147: 0 | AC147: 0 | AD147: 0 | AE147: 0 | AF147: 0
K148: 0 | L148: 0 | M148: 0 | N148: 0 | T148: 0 | U148: 0 | V148: 0 | W148: 0 | AC148: 0 | AD148: 0 | AE148: 0 | AF148: 0
K149: 0 | L149: 0 | M149: 0 | N149: 0 | T149: 0 | U149: 0 | V149: 0 | W149: 0 | AC149: 0 | AD149: 0 | AE149: 0 | AF149: 0
K150: 0 | L150: 0 | M150: 0 | N150: 0 | T150: 0 | U150: 0 | V150: 0 | W150: 0 | AC150: 0 | AD150: 0 | AE150: 0 | AF150: 0
K151: 0 | L151: 0 | M151: 0 | N151: 0 | T151: 0 | U151: 0 | V151: 0 | W151: 0 | AC151: 0 | AD151: 0 | AE151: 0 | AF151: 0
K152: 0 | L152: 0 | M152: 0 | N152: 0 | T152: 0 | U152: 0 | V152: 0 | W152: 0 | AC152: 0 | AD152: 0 | AE152: 0 | AF152: 0
K153: 0 | L153: 0 | M153: 0 | N153: 0 | T153: 0 | U153: 0 | V153: 0 | W153: 0 | AC153: 0 | AD153: 0 | AE153: 0 | AF153: 0
K154: 0 | L154: 0 | M154: 0 | N154: 0 | T154: 0 | U154: 0 | V154: 0 | W154: 0 | AC154: 0 | AD154: 0 | AE154: 0 | AF154: 0
K155: 0 | L155: 0 | M155: 0 | N155: 0 | T155: 0 | U155: 0 | V155: 0 | W155: 0 | AC155: 0 | AD155: 0 | AE155: 0 | AF155: 0
K156: 0 | L156: 0 | M156: 0 | N156: 0 | T156: 0 | U156: 0 | V156: 0 | W156: 0 | AC156: 0 | AD156: 0 | AE156: 0 | AF156: 0
K157: 0 | L157: 0 | M157: 0 | N157: 0 | T157: 0 | U157: 0 | V157: 0 | W157: 0 | AC157: 0 | AD157: 0 | AE157: 0 | AF157: 0
K158: 0 | L158: 0 | M158: 0 | N158: 0 | T158: 0 | U158: 0 | V158: 0 | W158: 0 | AC158: 0 | AD158: 0 | AE158: 0 | AF158: 0
K159: 0 | L159: 0 | M159: 0 | N159: 0 | T159: 0 | U159: 0 | V159: 0 | W159: 0 | AC159: 0 | AD159: 0 | AE159: 0 | AF159: 0
K160: 0 | L160: 0 | M160: 0 | N160: 0 | T160: 0 | U160: 0 | V160: 0 | W160: 0 | AC160: 0 | AD160: 0 | AE160: 0 | AF160: 0
K161: 0 | L161: 0 | M161: 0 | N161: 0 | T161: 0 | U161: 0 | V161: 0 | W161: 0 | AC161: 0 | AD161: 0 | AE161: 0 | AF161: 0
K162: 0 | L162: 0 | M162: 0 | N162: 0 | T162: 0 | U162: 0 | V162: 0 | W162: 0 | AC162: 0 | AD162: 0 | AE162: 0 | AF162: 0
K163: 0 | L163: 0 | M163: 0 | N163: 0 | T163: 0 | U163: 0 | V163: 0 | W163: 0 | AC163: 0 | AD163: 0 | AE163: 0 | AF163: 0
K164: 0 | L164: 0 | M164: 0 | N164: 0 | T164: 0 | U164: 0 | V164: 0 | W164: 0 | AC164: 0 | AD164: 0 | AE164: 0 | AF164: 0
K165: 0 | L165: 0 | M165: 0 | N165: 0 | T165: 0 | U165: 0 | V165: 0 | W165: 0 | AC165: 0 | AD165: 0 | AE165: 0 | AF165: 0
K166: 0 | L166: 0 | M166: 0 | N166: 0 | T166: 0 | U166: 0 | V166: 0 | W166: 0 | AC166: 0 | AD166: 0 | AE166: 0 | AF166: 0
K167: 0 | L167: 0 | M167: 0 | N167: 0 | T167: 0 | U167: 0 | V167: 0 | W167: 0 | AC167: 0 | AD167: 0 | AE167: 0 | AF167: 0
K168: =IF(B168>0,$I$3*(1-EXP(-$I$4*(A168-$I$5))),0) -> 0 | L168: =IF(C168<>0,((1/(C168)^2)*(K168-B168)^2),((K168-B168)^2)) -> 0 | M168: =IF(E168>0,$I$7*(1-EXP(-$I$8*(D168-$I$9))),0) -> 0 | N168: =IF(F168<>0,((1/(F168)^2)*(M168-E168)^2),((M168-E168)^2)) -> 0 | T168: =IF(B168>0,$I$3/(1+EXP(-$I$4*(A168-$I$5))),0) -> 0 | U168: =IF(C168<>0,((1/(C168)^2)*(T168-B168)^2),((T168-B168)^2)) -> 0 | V168: =IF(E168>0,$I$7/(1+EXP(-$I$8*(D168-$I$9))),0) -> 0 | W168: =IF(F168<>0,((1/(F168)^2)*(V168-E168)^2),((V168-E168)^2)) -> 0 | AC168: =IF(B168>0,$I$3*(EXP(-EXP(-$I$4*(A168-$I$5)))),0) -> 0 | AD168: =IF(C168<>0,((1/(C168)^2)*(AC168-B168)^2),((AC168-B168)^2)) -> 0 | AE168: =IF(E168>0,$I$7*(EXP(-EXP(-$I$8*(D168-$I$9)))),0) -> 0 | AF168: =IF(F168<>0,((1/(F168)^2)*(AE168-E168)^2),((AE168-E168)^2)) -> 0
K169: 0 | L169: 0 | M169: 0 | N169: 0 | T169: 0 | U169: 0 | V169: 0 | W169: 0 | AC169: 0 | AD169: 0 | AE169: 0 | AF169: 0
K170: 0 | L170: 0 | M170: 0 | N170: 0 | T170: 0 | U170: 0 | V170: 0 | W170: 0 | AC170: 0 | AD170: 0 | AE170: 0 | AF170: 0
K171: 0 | L171: 0 | M171: 0 | N171: 0 | T171: 0 | U171: 0 | V171: 0 | W171: 0 | AC171: 0 | AD171: 0 | AE171: 0 | AF171: 0
K172: 0 | L172: 0 | M172: 0 | N172: 0 | T172: 0 | U172: 0 | V172: 0 | W172: 0 | AC172: 0 | AD172: 0 | AE172: 0 | AF172: 0
K173: 0 | L173: 0 | M173: 0 | N173: 0 | T173: 0 | U173: 0 | V173: 0 | W173: 0 | AC173: 0 | AD173: 0 | AE173: 0 | AF173: 0
K174: 0 | L174: 0 | M174: 0 | N174: 0 | T174: 0 | U174: 0 | V174: 0 | W174: 0 | AC174: 0 | AD174: 0 | AE174: 0 | AF174: 0
K175: 0 | L175: 0 | M175: 0 | N175: 0 | T175: 0 | U175: 0 | V175: 0 | W175: 0 | AC175: 0 | AD175: 0 | AE175: 0 | AF175: 0
K176: 0 | L176: 0 | M176: 0 | N176: 0 | T176: 0 | U176: 0 | V176: 0 | W176: 0 | AC176: 0 | AD176: 0 | AE176: 0 | AF176: 0
K177: 0 | L177: 0 | M177: 0 | N177: 0 | T177: 0 | U177: 0 | V177: 0 | W177: 0 | AC177: 0 | AD177: 0 | AE177: 0 | AF177: 0
K178: 0 | L178: 0 | M178: 0 | N178: 0 | T178: 0 | U178: 0 | V178: 0 | W178: 0 | AC178: 0 | AD178: 0 | AE178: 0 | AF178: 0
K179: 0 | L179: 0 | M179: 0 | N179: 0 | T179: 0 | U179: 0 | V179: 0 | W179: 0 | AC179: 0 | AD179: 0 | AE179: 0 | AF179: 0
K180: 0 | L180: 0 | M180: 0 | N180: 0 | T180: 0 | U180: 0 | V180: 0 | W180: 0 | AC180: 0 | AD180: 0 | AE180: 0 | AF180: 0
K181: 0 | L181: 0 | M181: 0 | N181: 0 | T181: 0 | U181: 0 | V181: 0 | W181: 0 | AC181: 0 | AD181: 0 | AE181: 0 | AF181: 0
K182: 0 | L182: 0 | M182: 0 | N182: 0 | T182: 0 | U182: 0 | V182: 0 | W182: 0 | AC182: 0 | AD182: 0 | AE182: 0 | AF182: 0
K183: 0 | L183: 0 | M183: 0 | N183: 0 | T183: 0 | U183: 0 | V183: 0 | W183: 0 | AC183: 0 | AD183: 0 | AE183: 0 | AF183: 0
K184: 0 | L184: 0 | M184: 0 | N184: 0 | T184: 0 | U184: 0 | V184: 0 | W184: 0 | AC184: 0 | AD184: 0 | AE184: 0 | AF184: 0
K185: 0 | L185: 0 | M185: 0 | N185: 0 | T185: 0 | U185: 0 | V185: 0 | W185: 0 | AC185: 0 | AD185: 0 | AE185: 0 | AF185: 0
K186: 0 | L186: 0 | M186: 0 | N186: 0 | T186: 0 | U186: 0 | V186: 0 | W186: 0 | AC186: 0 | AD186: 0 | AE186: 0 | AF186: 0
K187: 0 | L187: 0 | M187: 0 | N187: 0 | T187: 0 | U187: 0 | V187: 0 | W187: 0 | AC187: 0 | AD187: 0 | AE187: 0 | AF187: 0
K188: 0 | L188: 0 | M188: 0 | N188: 0 | T188: 0 | U188: 0 | V188: 0 | W188: 0 | AC188: 0 | AD188: 0 | AE188: 0 | AF188: 0
K189: 0 | L189: 0 | M189: 0 | N189: 0 | T189: 0 | U189: 0 | V189: 0 | W189: 0 | AC189: 0 | AD189: 0 | AE189: 0 | AF189: 0
K190: 0 | L190: 0 | M190: 0 | N190: 0 | T190: 0 | U190: 0 | V190: 0 | W190: 0 | AC190: 0 | AD190: 0 | AE190: 0 | AF190: 0
K191: 0 | L191: 0 | M191: 0 | N191: 0 | T191: 0 | U191: 0 | V191: 0 | W191: 0 | AC191: 0 | AD191: 0 | AE191: 0 | AF191: 0
K192: 0 | L192: 0 | M192: 0 | N192: 0 | T192: 0 | U192: 0 | V192: 0 | W192: 0 | AC192: 0 | AD192: 0 | AE192: 0 | AF192: 0
K193: 0 | L193: 0 | M193: 0 | N193: 0 | T193: 0 | U193: 0 | V193: 0 | W193: 0 | AC193: 0 | AD193: 0 | AE193: 0 | AF193: 0
K194: 0 | L194: 0 | M194: 0 | N194: 0 | T194: 0 | U194: 0 | V194: 0 | W194: 0 | AC194: 0 | AD194: 0 | AE194: 0 | AF194: 0
K195: 0 | L195: 0 | M195: 0 | N195: 0 | T195: 0 | U195: 0 | V195: 0 | W195: 0 | AC195: 0 | AD195: 0 | AE195: 0 | AF195: 0
K196: 0 | L196: 0 | M196: 0 | N196: 0 | T196: 0 | U196: 0 | V196: 0 | W196: 0 | AC196: 0 | AD196: 0 | AE196: 0 | AF196: 0
K197: 0 | L197: 0 | M197: 0 | N197: 0 | T197: 0 | U197: 0 | V197: 0 | W197: 0 | AC197: 0 | AD197: 0 | AE197: 0 | AF197: 0
K198: 0 | L198: 0 | M198: 0 | N198: 0 | T198: 0 | U198: 0 | V198: 0 | W198: 0 | AC198: 0 | AD198: 0 | AE198: 0 | AF198: 0
K199: 0 | L199: 0 | M199: 0 | N199: 0 | T199: 0 | U199: 0 | V199: 0 | W199: 0 | AC199: 0 | AD199: 0 | AE199: 0 | AF199: 0
K200: 0 | L200: 0 | M200: 0 | N200: 0 | T200: 0 | U200: 0 | V200: 0 | W200: 0 | AC200: 0 | AD200: 0 | AE200: 0 | AF200: 0
... 4 more rows

Sheet 5 (hidden)
A1: Dados 1 | D1: Dados 2 | K1: Dados 1 | M1: Dados 2 | T1: Dados 1 | V1: Dados 2 | AC1: Dados 1 | AE1: Dados 2
A2: idade | B2: Comprimento médio | C2: Desvio padrão | D2: idade | E2: Comprimento médio | F2: Desvio padrão | H2: Dados 1 | K2: L(t) | L2: SQ | M2: L(t) | N2: SQ | O2: SSQTOTAL | P2: Likelihood ratio x^2 | Q2: GL | R2: p | T2: L(t) | U2: SQ | V2: L(t) | W2: SQ | X2: SSQTOTAL | Y2: Likelihood ratio x^2 | Z2: GL | AA2: p | AC2: L(t) | AD2: SQ | AE2: L(t) | AF2: SQ | AG2: SSQTOTAL | AH2: Likelihood ratio x^2 | AI2: GL | AJ2: p
A3: 1 | B3: 15.4 | D3: 1 | E3: 15.4 | H3: Linf | I3: 59.72755973 | K3: =IF(B3>0,$I$3*(1-EXP(-$I$4*(A3-$I$5))),0) -> -14.89996626 | L3: =IF(C3<>0,((1/(C3)^2)*(K3-B3)^2),(K3-B3)^2) -> 918.0879554 | M3: =IF(E3>0,$I$7*(1-EXP(-$I$8*(D3-$I$9))),0) -> -10.48524475 | N3: =IF(F3<>0,((1/(F3)^2)*(M3-E3)^2),(M3-E3)^2) -> 670.0458956 | O3: =SUM(L3:L103,N3:N103) -> 2036.885861 | P3: =-(COUNT(B3:B203)+COUNT(E3:E203))*LN(SUM($I$11,$I$12)/$O$3) -> 77.59285116 | Q3: 1 | R3: =CHIDIST($P$3,$Q$3) -> 1.26627602e-18 | T3: =IF(B3>0,$I$3/(1+EXP(-$I$4*(A3-$I$5))),0) -> 26.55188951 | U3: =IF(C3<>0,((1/(C3)^2)*(T3-B3)^2),((T3-B3)^2)) -> 124.3646397 | V3: =IF(E3>0,$I$7/(1+EXP(-$I$8*(D3-$I$9))),0) -> 24.94869681 | W3: =IF(F3<>0,((1/(F3)^2)*(V3-E3)^2),((V3-E3)^2)) -> 91.17761071 | X3: =SUM($U$3:$U$103,$W$3:$W$103) -> 407.4957137 | Y3: =-(COUNT($B$3:$B$203)+COUNT($E$3:$E$203))*LN(SUM($I$11,$I$12)/$X$3) -> 38.97332393 | Z3: 1 | AA3: =CHIDIST($Y$3,$Z$3) -> 4.296363832e-10 | AC3: =IF(B3>0,$I$3*(EXP(-EXP(-$I$4*(A3-$I$5)))),0) -> 17.1213811 | AD3: =IF(C3<>0,((1/(C3)^2)*(AC3-B3)^2),((AC3-B3)^2)) -> 2.963152882 | AE3: =IF(E3>0,$I$7*(EXP(-EXP(-$I$8*(D3-$I$9)))),0) -> 16.6061141 | AF3: =IF(F3<>0,((1/(F3)^2)*(AE3-E3)^2),((AE3-E3)^2)) -> 1.454711214 | AG3: =SUM($AD$3:$AD$103,$AF$3:$AF$103) -> 128.1336183 | AH3: =-(COUNT($B$3:$B$103)+COUNT($E$3:$E$103))*LN(SUM($I$11,$I$12)/$AG$3) -> 11.2063607 | AI3: 1 | AJ3: =CHIDIST($AH$3,$AI$3) -> 0.0008151743251
A4: 2 | B4: 28.03 | D4: 2 | E4: 26.93 | H4: k | I4: 0.5203652205 | K4: 15.37616308 | L4: =IF(C4<>0,((1/(C4)^2)*(K4-B4)^2),(K4-B4)^2) -> 160.1195887 | M4: =IF(E4>0,$I$7*(1-EXP(-$I$8*(D4-$I$9))),0) -> 15.95261748 | N4: =IF(F4<>0,((1/(F4)^2)*(M4-E4)^2),(M4-E4)^2) -> 120.5029269 | T4: =IF(B4>0,$I$3/(1+EXP(-$I$4*(A4-$I$5))),0) -> 34.27572216 | U4: =IF(C4<>0,((1/(C4)^2)*(T4-B4)^2),((T4-B4)^2)) -> 39.00904528 | V4: =IF(E4>0,$I$7/(1+EXP(-$I$8*(D4-$I$9))),0) -> 32.00992822 | W4: =IF(F4<>0,((1/(F4)^2)*(V4-E4)^2),((V4-E4)^2)) -> 25.80567076 | AC4: =IF(B4>0,$I$3*(EXP(-EXP(-$I$4*(A4-$I$5)))),0) -> 28.42394371 | AD4: =IF(C4<>0,((1/(C4)^2)*(AC4-B4)^2),((AC4-B4)^2)) -> 0.1551916478 | AE4: =IF(E4>0,$I$7*(EXP(-EXP(-$I$8*(D4-$I$9)))),0) -> 26.93052802 | AF4: =IF(F4<>0,((1/(F4)^2)*(AE4-E4)^2),((AE4-E4)^2)) -> 2.788051069e-07
A5: 3.3 | B5: 41.18 | D5: 3.3 | E5: 42.23 | H5: t0 | I5: 1.427999145 | K5: 37.17904015 | L5: 16.00767969 | M5: 34.99142703 | N5: 52.39693871 | T5: 43.35867024 | U5: 4.746604016 | V5: 40.20436813 | W5: 4.103184465 | AC5: 40.94667802 | AD5: 0.05443914783 | AE5: 38.1466484 | AF5: 16.67376032
A6: 4.3 | B6: 46.2 | D6: 4.3 | E6: 44.59 | H6: Dados 2 | K6: 46.32689661 | L6: 0.0161027488 | M6: 42.97956071 | N6: 2.593514714 | T6: 48.78255278 | U6: 6.669578879 | V6: 45.04231149 | W6: 0.2045856796 | AC6: 47.72380864 | AD6: 2.321992766 | AE6: 44.14691544 | AF6: 0.1963239277
A7: 5.3 | B7: 48.23 | D7: 5.3 | E7: 47.63 | H7: Linf | I7: 54.68134998 | K7: 51.76349932 | L7: 12.48561742 | M7: 47.72693617 | N7: 0.00939662039 | T7: 52.70048765 | U7: 19.98525982 | V7: 48.51160838 | W7: 0.7772333424 | AC7: 52.27162906 | AD7: 16.33476547 | AE7: 48.15100324 | AF7: 0.2714443802
A8: 6.3 | B8: 50.26 | D8: 6.3 | E8: 49.67 | H8: k | I8: =I4 -> 0.5203652205 | K8: 54.9944911 | L8: 22.41540596 | M8: 50.54831781 | N8: 0.7714421772 | T8: 55.34202011 | U8: 25.82692843 | V8: 50.83875621 | W8: 1.365991074 | AC8: 55.17716838 | AD8: 24.17854486 | AE8: 50.70065121 | AF8: 1.06224192
A9: 7.3 | B9: 51.82 | D9: 7.3 | E9: 50.87 | H9: t0 | I9: 1.337117624 | K9: 56.91468068 | L9: 25.95577125 | M9: 52.22507467 | N9: 1.836227373 | T9: 57.04119544 | U9: 27.26088183 | V9: 52.33066689 | W9: 2.133547759 | AC9: 56.9798895 | AD9: 26.62445965 | AE9: 52.27942553 | AF9: 1.986480311
A10: 8.3 | B10: 54.27 | D10: 8.3 | E10: 52.3 | K10: 58.05585599 | L10: 14.33270557 | M10: 53.22157707 | N10: 0.8493043035 | T10: 58.10137109 | U10: 14.67940439 | V10: 53.25953387 | W10: 0.9207052403 | AC10: 58.07903375 | AD10: 14.50873812 | AE10: 53.24088988 | AF10: 0.8852737615
A11: 9.3 | B11: 56.98 | D11: 9.3 | E11: 54.77 | H11: SSQ1 | I11: 52.48529724 | K11: 58.73406042 | L11: 3.076727951 | M11: 53.81380189 | N11: 0.9143148167 | T11: 58.75031575 | U11: 3.13401785 | V11: 53.82735103 | W11: 0.8885870761 | AC11: 58.74227765 | AD11: 3.105622527 | AE11: 53.82064769 | AF11: 0.9012698014
A12: 10.3 | B12: 58.93 | D12: 10.3 | E12: 56.43 | H12: SSQ2 | I12: 27.8446037 | K12: 59.13711965 | L12: 0.04289855141 | M12: 54.16576315 | N12: 5.126768501 | T12: 59.14289935 | U12: 0.04532613203 | V12: 54.17057918 | W12: 5.104982458 | AC12: 59.14002848 | AD12: 0.04411196062 | AE12: 54.16818625 | AF12: 5.11580145
A13: 11.3 | B13: 59 | D13: 11.3 | E13: 55.88 | K13: 59.37665915 | L13: 0.141872117 | M13: 54.37493494 | N13: 2.265220821 | T13: 59.37870866 | U13: 0.1434202485 | V13: 54.37664242 | W13: 2.260084018 | AC13: 59.37768791 | AD13: 0.1426481578 | AE13: 54.37579186 | AF13: 2.262642116
A14: 12.3 | B14: 60.91 | K14: 59.5190183 | L14: 1.93483008 | M14: 0 | N14: 0 | T14: 59.5197439 | U14: 1.932812019 | V14: 0 | W14: 0 | AC14: 59.51938195 | AD14: 1.933818572 | AE14: 0 | AF14: 0
A15: 13.3 | B15: 61.83 | K15: 59.60362284 | L15: 4.956755262 | M15: 0 | N15: 0 | T15: 59.60387948 | U15: 4.955612568 | V15: 0 | W15: 0 | AC15: 59.60375134 | AD15: 4.956183108 | AE15: 0 | AF15: 0
K16: 0 | L16: 0 | M16: 0 | N16: 0 | T16: 0 | U16: 0 | V16: 0 | W16: 0 | AC16: 0 | AD16: 0 | AE16: 0 | AF16: 0
K17: 0 | L17: 0 | M17: 0 | N17: 0 | T17: 0 | U17: 0 | V17: 0 | W17: 0 | AC17: 0 | AD17: 0 | AE17: 0 | AF17: 0
K18: 0 | L18: 0 | M18: 0 | N18: 0 | T18: 0 | U18: 0 | V18: 0 | W18: 0 | AC18: 0 | AD18: 0 | AE18: 0 | AF18: 0
K19: 0 | L19: 0 | M19: 0 | N19: 0 | T19: 0 | U19: 0 | V19: 0 | W19: 0 | AC19: 0 | AD19: 0 | AE19: 0 | AF19: 0
K20: 0 | L20: 0 | M20: 0 | N20: 0 | T20: 0 | U20: 0 | V20: 0 | W20: 0 | AC20: 0 | AD20: 0 | AE20: 0 | AF20: 0
K21: 0 | L21: 0 | M21: 0 | N21: 0 | T21: 0 | U21: 0 | V21: 0 | W21: 0 | AC21: 0 | AD21: 0 | AE21: 0 | AF21: 0
K22: 0 | L22: 0 | M22: 0 | N22: 0 | T22: 0 | U22: 0 | V22: 0 | W22: 0 | AC22: 0 | AD22: 0 | AE22: 0 | AF22: 0
K23: 0 | L23: 0 | M23: 0 | N23: 0 | T23: 0 | U23: 0 | V23: 0 | W23: 0 | AC23: 0 | AD23: 0 | AE23: 0 | AF23: 0
K24: 0 | L24: 0 | M24: 0 | N24: 0 | T24: 0 | U24: 0 | V24: 0 | W24: 0 | AC24: 0 | AD24: 0 | AE24: 0 | AF24: 0
K25: 0 | L25: 0 | M25: 0 | N25: 0 | T25: 0 | U25: 0 | V25: 0 | W25: 0 | AC25: 0 | AD25: 0 | AE25: 0 | AF25: 0
K26: 0 | L26: 0 | M26: 0 | N26: 0 | T26: 0 | U26: 0 | V26: 0 | W26: 0 | AC26: 0 | AD26: 0 | AE26: 0 | AF26: 0
K27: 0 | L27: 0 | M27: 0 | N27: 0 | T27: 0 | U27: 0 | V27: 0 | W27: 0 | AC27: 0 | AD27: 0 | AE27: 0 | AF27: 0
K28: 0 | L28: 0 | M28: 0 | N28: 0 | T28: 0 | U28: 0 | V28: 0 | W28: 0 | AC28: 0 | AD28: 0 | AE28: 0 | AF28: 0
K29: 0 | L29: 0 | M29: 0 | N29: 0 | T29: 0 | U29: 0 | V29: 0 | W29: 0 | AC29: 0 | AD29: 0 | AE29: 0 | AF29: 0
K30: 0 | L30: 0 | M30: 0 | N30: 0 | T30: 0 | U30: 0 | V30: 0 | W30: 0 | AC30: 0 | AD30: 0 | AE30: 0 | AF30: 0
K31: 0 | L31: 0 | M31: 0 | N31: 0 | T31: 0 | U31: 0 | V31: 0 | W31: 0 | AC31: 0 | AD31: 0 | AE31: 0 | AF31: 0
K32: 0 | L32: 0 | M32: 0 | N32: 0 | T32: 0 | U32: 0 | V32: 0 | W32: 0 | AC32: 0 | AD32: 0 | AE32: 0 | AF32: 0
K33: 0 | L33: 0 | M33: 0 | N33: 0 | T33: 0 | U33: 0 | V33: 0 | W33: 0 | AC33: 0 | AD33: 0 | AE33: 0 | AF33: 0
K34: 0 | L34: 0 | M34: 0 | N34: 0 | T34: 0 | U34: 0 | V34: 0 | W34: 0 | AC34: 0 | AD34: 0 | AE34: 0 | AF34: 0
K35: 0 | L35: 0 | M35: 0 | N35: 0 | T35: 0 | U35: 0 | V35: 0 | W35: 0 | AC35: 0 | AD35: 0 | AE35: 0 | AF35: 0
K36: 0 | L36: 0 | M36: 0 | N36: 0 | T36: 0 | U36: 0 | V36: 0 | W36: 0 | AC36: 0 | AD36: 0 | AE36: 0 | AF36: 0
K37: 0 | L37: 0 | M37: 0 | N37: 0 | T37: 0 | U37: 0 | V37: 0 | W37: 0 | AC37: 0 | AD37: 0 | AE37: 0 | AF37: 0
K38: 0 | L38: 0 | M38: 0 | N38: 0 | T38: 0 | U38: 0 | V38: 0 | W38: 0 | AC38: 0 | AD38: 0 | AE38: 0 | AF38: 0
K39: 0 | L39: 0 | M39: 0 | N39: 0 | T39: 0 | U39: 0 | V39: 0 | W39: 0 | AC39: 0 | AD39: 0 | AE39: 0 | AF39: 0
K40: 0 | L40: 0 | M40: 0 | N40: 0 | T40: 0 | U40: 0 | V40: 0 | W40: 0 | AC40: 0 | AD40: 0 | AE40: 0 | AF40: 0
K41: 0 | L41: 0 | M41: 0 | N41: 0 | T41: 0 | U41: 0 | V41: 0 | W41: 0 | AC41: 0 | AD41: 0 | AE41: 0 | AF41: 0
K42: 0 | L42: 0 | M42: 0 | N42: 0 | T42: 0 | U42: 0 | V42: 0 | W42: 0 | AC42: 0 | AD42: 0 | AE42: 0 | AF42: 0
K43: 0 | L43: 0 | M43: 0 | N43: 0 | T43: 0 | U43: 0 | V43: 0 | W43: 0 | AC43: 0 | AD43: 0 | AE43: 0 | AF43: 0
K44: 0 | L44: 0 | M44: 0 | N44: 0 | T44: 0 | U44: 0 | V44: 0 | W44: 0 | AC44: 0 | AD44: 0 | AE44: 0 | AF44: 0
K45: 0 | L45: 0 | M45: 0 | N45: 0 | T45: 0 | U45: 0 | V45: 0 | W45: 0 | AC45: 0 | AD45: 0 | AE45: 0 | AF45: 0
K46: 0 | L46: 0 | M46: 0 | N46: 0 | T46: 0 | U46: 0 | V46: 0 | W46: 0 | AC46: 0 | AD46: 0 | AE46: 0 | AF46: 0
K47: 0 | L47: 0 | M47: 0 | N47: 0 | T47: 0 | U47: 0 | V47: 0 | W47: 0 | AC47: 0 | AD47: 0 | AE47: 0 | AF47: 0
K48: 0 | L48: 0 | M48: 0 | N48: 0 | T48: 0 | U48: 0 | V48: 0 | W48: 0 | AC48: 0 | AD48: 0 | AE48: 0 | AF48: 0
K49: 0 | L49: 0 | M49: 0 | N49: 0 | T49: 0 | U49: 0 | V49: 0 | W49: 0 | AC49: 0 | AD49: 0 | AE49: 0 | AF49: 0
K50: 0 | L50: 0 | M50: 0 | N50: 0 | T50: 0 | U50: 0 | V50: 0 | W50: 0 | AC50: 0 | AD50: 0 | AE50: 0 | AF50: 0
K51: 0 | L51: 0 | M51: 0 | N51: 0 | T51: 0 | U51: 0 | V51: 0 | W51: 0 | AC51: 0 | AD51: 0 | AE51: 0 | AF51: 0
K52: 0 | L52: 0 | M52: 0 | N52: 0 | T52: 0 | U52: 0 | V52: 0 | W52: 0 | AC52: 0 | AD52: 0 | AE52: 0 | AF52: 0
K53: 0 | L53: 0 | M53: 0 | N53: 0 | T53: 0 | U53: 0 | V53: 0 | W53: 0 | AC53: 0 | AD53: 0 | AE53: 0 | AF53: 0
K54: 0 | L54: 0 | M54: 0 | N54: 0 | T54: 0 | U54: 0 | V54: 0 | W54: 0 | AC54: 0 | AD54: 0 | AE54: 0 | AF54: 0
K55: 0 | L55: 0 | M55: 0 | N55: 0 | T55: 0 | U55: 0 | V55: 0 | W55: 0 | AC55: 0 | AD55: 0 | AE55: 0 | AF55: 0
K56: 0 | L56: 0 | M56: 0 | N56: 0 | T56: 0 | U56: 0 | V56: 0 | W56: 0 | AC56: 0 | AD56: 0 | AE56: 0 | AF56: 0
K57: 0 | L57: 0 | M57: 0 | N57: 0 | T57: 0 | U57: 0 | V57: 0 | W57: 0 | AC57: 0 | AD57: 0 | AE57: 0 | AF57: 0
K58: 0 | L58: 0 | M58: 0 | N58: 0 | T58: 0 | U58: 0 | V58: 0 | W58: 0 | AC58: 0 | AD58: 0 | AE58: 0 | AF58: 0
K59: 0 | L59: 0 | M59: 0 | N59: 0 | T59: 0 | U59: 0 | V59: 0 | W59: 0 | AC59: 0 | AD59: 0 | AE59: 0 | AF59: 0
K60: 0 | L60: 0 | M60: 0 | N60: 0 | T60: 0 | U60: 0 | V60: 0 | W60: 0 | AC60: 0 | AD60: 0 | AE60: 0 | AF60: 0
K61: 0 | L61: 0 | M61: 0 | N61: 0 | T61: 0 | U61: 0 | V61: 0 | W61: 0 | AC61: 0 | AD61: 0 | AE61: 0 | AF61: 0
K62: 0 | L62: 0 | M62: 0 | N62: 0 | T62: 0 | U62: 0 | V62: 0 | W62: 0 | AC62: 0 | AD62: 0 | AE62: 0 | AF62: 0
K63: 0 | L63: 0 | M63: 0 | N63: 0 | T63: 0 | U63: 0 | V63: 0 | W63: 0 | AC63: 0 | AD63: 0 | AE63: 0 | AF63: 0
K64: 0 | L64: 0 | M64: 0 | N64: 0 | T64: 0 | U64: 0 | V64: 0 | W64: 0 | AC64: 0 | AD64: 0 | AE64: 0 | AF64: 0
K65: 0 | L65: 0 | M65: 0 | N65: 0 | T65: 0 | U65: 0 | V65: 0 | W65: 0 | AC65: 0 | AD65: 0 | AE65: 0 | AF65: 0
K66: 0 | L66: 0 | M66: 0 | N66: 0 | T66: 0 | U66: 0 | V66: 0 | W66: 0 | AC66: 0 | AD66: 0 | AE66: 0 | AF66: 0
K67: =IF(B67>0,$I$3*(1-EXP(-$I$4*(A67-$I$5))),0) -> 0 | L67: 0 | M67: 0 | N67: 0 | T67: 0 | U67: 0 | V67: 0 | W67: 0 | AC67: 0 | AD67: 0 | AE67: 0 | AF67: 0
K68: 0 | L68: =IF(C68<>0,((1/(C68)^2)*(K68-B68)^2),(K68-B68)^2) -> 0 | M68: =IF(E68>0,$I$7*(1-EXP(-$I$8*(D68-$I$9))),0) -> 0 | N68: =IF(F68<>0,((1/(F68)^2)*(M68-E68)^2),(M68-E68)^2) -> 0 | T68: =IF(B68>0,$I$3/(1+EXP(-$I$4*(A68-$I$5))),0) -> 0 | U68: =IF(C68<>0,((1/(C68)^2)*(T68-B68)^2),((T68-B68)^2)) -> 0 | V68: =IF(E68>0,$I$7/(1+EXP(-$I$8*(D68-$I$9))),0) -> 0 | W68: =IF(F68<>0,((1/(F68)^2)*(V68-E68)^2),((V68-E68)^2)) -> 0 | AC68: =IF(B68>0,$I$3*(EXP(-EXP(-$I$4*(A68-$I$5)))),0) -> 0 | AD68: =IF(C68<>0,((1/(C68)^2)*(AC68-B68)^2),((AC68-B68)^2)) -> 0 | AE68: =IF(E68>0,$I$7*(EXP(-EXP(-$I$8*(D68-$I$9)))),0) -> 0 | AF68: =IF(F68<>0,((1/(F68)^2)*(AE68-E68)^2),((AE68-E68)^2)) -> 0
K69: 0 | L69: 0 | M69: 0 | N69: 0 | T69: 0 | U69: 0 | V69: 0 | W69: 0 | AC69: 0 | AD69: 0 | AE69: 0 | AF69: 0
K70: 0 | L70: 0 | M70: 0 | N70: 0 | T70: 0 | U70: 0 | V70: 0 | W70: 0 | AC70: 0 | AD70: 0 | AE70: 0 | AF70: 0
K71: 0 | L71: 0 | M71: 0 | N71: 0 | T71: 0 | U71: 0 | V71: 0 | W71: 0 | AC71: 0 | AD71: 0 | AE71: 0 | AF71: 0
K72: 0 | L72: 0 | M72: 0 | N72: 0 | T72: 0 | U72: 0 | V72: 0 | W72: 0 | AC72: 0 | AD72: 0 | AE72: 0 | AF72: 0
K73: 0 | L73: 0 | M73: 0 | N73: 0 | T73: 0 | U73: 0 | V73: 0 | W73: 0 | AC73: 0 | AD73: 0 | AE73: 0 | AF73: 0
K74: 0 | L74: 0 | M74: 0 | N74: 0 | T74: 0 | U74: 0 | V74: 0 | W74: 0 | AC74: 0 | AD74: 0 | AE74: 0 | AF74: 0
K75: 0 | L75: 0 | M75: 0 | N75: 0 | T75: 0 | U75: 0 | V75: 0 | W75: 0 | AC75: 0 | AD75: 0 | AE75: 0 | AF75: 0
K76: 0 | L76: 0 | M76: 0 | N76: 0 | T76: 0 | U76: 0 | V76: 0 | W76: 0 | AC76: 0 | AD76: 0 | AE76: 0 | AF76: 0
K77: 0 | L77: 0 | M77: 0 | N77: 0 | T77: 0 | U77: 0 | V77: 0 | W77: 0 | AC77: 0 | AD77: 0 | AE77: 0 | AF77: 0
K78: 0 | L78: 0 | M78: 0 | N78: 0 | T78: 0 | U78: 0 | V78: 0 | W78: 0 | AC78: 0 | AD78: 0 | AE78: 0 | AF78: 0
K79: 0 | L79: 0 | M79: 0 | N79: 0 | T79: 0 | U79: 0 | V79: 0 | W79: 0 | AC79: 0 | AD79: 0 | AE79: 0 | AF79: 0
K80: 0 | L80: 0 | M80: 0 | N80: 0 | T80: 0 | U80: 0 | V80: 0 | W80: 0 | AC80: 0 | AD80: 0 | AE80: 0 | AF80: 0
K81: 0 | L81: 0 | M81: 0 | N81: 0 | T81: 0 | U81: 0 | V81: 0 | W81: 0 | AC81: 0 | AD81: 0 | AE81: 0 | AF81: 0
K82: 0 | L82: 0 | M82: 0 | N82: 0 | T82: 0 | U82: 0 | V82: 0 | W82: 0 | AC82: 0 | AD82: 0 | AE82: 0 | AF82: 0
K83: 0 | L83: 0 | M83: 0 | N83: 0 | T83: 0 | U83: 0 | V83: 0 | W83: 0 | AC83: 0 | AD83: 0 | AE83: 0 | AF83: 0
K84: 0 | L84: 0 | M84: 0 | N84: 0 | T84: 0 | U84: 0 | V84: 0 | W84: 0 | AC84: 0 | AD84: 0 | AE84: 0 | AF84: 0
K85: 0 | L85: 0 | M85: 0 | N85: 0 | T85: 0 | U85: 0 | V85: 0 | W85: 0 | AC85: 0 | AD85: 0 | AE85: 0 | AF85: 0
K86: 0 | L86: 0 | M86: 0 | N86: 0 | T86: 0 | U86: 0 | V86: 0 | W86: 0 | AC86: 0 | AD86: 0 | AE86: 0 | AF86: 0
K87: 0 | L87: 0 | M87: 0 | N87: 0 | T87: 0 | U87: 0 | V87: 0 | W87: 0 | AC87: 0 | AD87: 0 | AE87: 0 | AF87: 0
K88: 0 | L88: 0 | M88: 0 | N88: 0 | T88: 0 | U88: 0 | V88: 0 | W88: 0 | AC88: 0 | AD88: 0 | AE88: 0 | AF88: 0
K89: 0 | L89: 0 | M89: 0 | N89: 0 | T89: 0 | U89: 0 | V89: 0 | W89: 0 | AC89: 0 | AD89: 0 | AE89: 0 | AF89: 0
K90: 0 | L90: 0 | M90: 0 | N90: 0 | T90: 0 | U90: 0 | V90: 0 | W90: 0 | AC90: 0 | AD90: 0 | AE90: 0 | AF90: 0
K91: 0 | L91: 0 | M91: 0 | N91: 0 | T91: 0 | U91: 0 | V91: 0 | W91: 0 | AC91: 0 | AD91: 0 | AE91: 0 | AF91: 0
K92: 0 | L92: 0 | M92: 0 | N92: 0 | T92: 0 | U92: 0 | V92: 0 | W92: 0 | AC92: 0 | AD92: 0 | AE92: 0 | AF92: 0
K93: 0 | L93: 0 | M93: 0 | N93: 0 | T93: 0 | U93: 0 | V93: 0 | W93: 0 | AC93: 0 | AD93: 0 | AE93: 0 | AF93: 0
K94: 0 | L94: 0 | M94: 0 | N94: 0 | T94: 0 | U94: 0 | V94: 0 | W94: 0 | AC94: 0 | AD94: 0 | AE94: 0 | AF94: 0
K95: 0 | L95: 0 | M95: 0 | N95: 0 | T95: 0 | U95: 0 | V95: 0 | W95: 0 | AC95: 0 | AD95: 0 | AE95: 0 | AF95: 0
K96: 0 | L96: 0 | M96: 0 | N96: 0 | T96: 0 | U96: 0 | V96: 0 | W96: 0 | AC96: 0 | AD96: 0 | AE96: 0 | AF96: 0
K97: 0 | L97: 0 | M97: 0 | N97: 0 | T97: 0 | U97: 0 | V97: 0 | W97: 0 | AC97: 0 | AD97: 0 | AE97: 0 | AF97: 0
K98: 0 | L98: 0 | M98: 0 | N98: 0 | T98: 0 | U98: 0 | V98: 0 | W98: 0 | AC98: 0 | AD98: 0 | AE98: 0 | AF98: 0
K99: 0 | L99: 0 | M99: 0 | N99: 0 | T99: 0 | U99: 0 | V99: 0 | W99: 0 | AC99: 0 | AD99: 0 | AE99: 0 | AF99: 0
K100: 0 | L100: 0 | M100: 0 | N100: 0 | T100: 0 | U100: 0 | V100: 0 | W100: 0 | AC100: 0 | AD100: 0 | AE100: 0 | AF100: 0
K101: 0 | L101: 0 | M101: 0 | N101: 0 | T101: 0 | U101: 0 | V101: 0 | W101: 0 | AC101: 0 | AD101: 0 | AE101: 0 | AF101: 0
K102: 0 | L102: 0 | M102: 0 | N102: 0 | T102: 0 | U102: 0 | V102: 0 | W102: 0 | AC102: 0 | AD102: 0 | AE102: 0 | AF102: 0
K103: 0 | L103: 0 | M103: 0 | N103: 0 | T103: 0 | U103: 0 | V103: 0 | W103: 0 | AC103: 0 | AD103: 0 | AE103: 0 | AF103: 0
K104: =IF(B104>0,$I$3*(1-EXP(-$I$4*(A104-$I$5))),0) -> 0 | L104: =IF(C104<>0,((1/(C104)^2)*(K104-B104)^2),(K104-B104)^2) -> 0 | M104: =IF(E104>0,$I$7*(1-EXP(-$I$8*(D104-$I$9))),0) -> 0 | N104: =IF(F104<>0,((1/(F104)^2)*(M104-E104)^2),(M104-E104)^2) -> 0 | T104: =IF(B104>0,$I$3/(1+EXP(-$I$4*(A104-$I$5))),0) -> 0 | U104: =IF(C104<>0,((1/(C104)^2)*(T104-B104)^2),((T104-B104)^2)) -> 0 | V104: =IF(E104>0,$I$7/(1+EXP(-$I$8*(D104-$I$9))),0) -> 0 | W104: =IF(F104<>0,((1/(F104)^2)*(V104-E104)^2),((V104-E104)^2)) -> 0 | AC104: =IF(B104>0,$I$3*(EXP(-EXP(-$I$4*(A104-$I$5)))),0) -> 0 | AD104: =IF(C104<>0,((1/(C104)^2)*(AC104-B104)^2),((AC104-B104)^2)) -> 0 | AE104: =IF(E104>0,$I$7*(EXP(-EXP(-$I$8*(D104-$I$9)))),0) -> 0 | AF104: =IF(F104<>0,((1/(F104)^2)*(AE104-E104)^2),((AE104-E104)^2)) -> 0
K105: 0 | L105: 0 | M105: 0 | N105: 0 | T105: 0 | U105: 0 | V105: 0 | W105: 0 | AC105: 0 | AD105: 0 | AE105: 0 | AF105: 0
K106: 0 | L106: 0 | M106: 0 | N106: 0 | T106: 0 | U106: 0 | V106: 0 | W106: 0 | AC106: 0 | AD106: 0 | AE106: 0 | AF106: 0
K107: 0 | L107: 0 | M107: 0 | N107: 0 | T107: 0 | U107: 0 | V107: 0 | W107: 0 | AC107: 0 | AD107: 0 | AE107: 0 | AF107: 0
K108: 0 | L108: 0 | M108: 0 | N108: 0 | T108: 0 | U108: 0 | V108: 0 | W108: 0 | AC108: 0 | AD108: 0 | AE108: 0 | AF108: 0
K109: 0 | L109: 0 | M109: 0 | N109: 0 | T109: 0 | U109: 0 | V109: 0 | W109: 0 | AC109: 0 | AD109: 0 | AE109: 0 | AF109: 0
K110: 0 | L110: 0 | M110: 0 | N110: 0 | T110: 0 | U110: 0 | V110: 0 | W110: 0 | AC110: 0 | AD110: 0 | AE110: 0 | AF110: 0
K111: 0 | L111: 0 | M111: 0 | N111: 0 | T111: 0 | U111: 0 | V111: 0 | W111: 0 | AC111: 0 | AD111: 0 | AE111: 0 | AF111: 0
K112: 0 | L112: 0 | M112: 0 | N112: 0 | T112: 0 | U112: 0 | V112: 0 | W112: 0 | AC112: 0 | AD112: 0 | AE112: 0 | AF112: 0
K113: 0 | L113: 0 | M113: 0 | N113: 0 | T113: 0 | U113: 0 | V113: 0 | W113: 0 | AC113: 0 | AD113: 0 | AE113: 0 | AF113: 0
K114: 0 | L114: 0 | M114: 0 | N114: 0 | T114: 0 | U114: 0 | V114: 0 | W114: 0 | AC114: 0 | AD114: 0 | AE114: 0 | AF114: 0
K115: 0 | L115: 0 | M115: 0 | N115: 0 | T115: 0 | U115: 0 | V115: 0 | W115: 0 | AC115: 0 | AD115: 0 | AE115: 0 | AF115: 0
K116: 0 | L116: 0 | M116: 0 | N116: 0 | T116: 0 | U116: 0 | V116: 0 | W116: 0 | AC116: 0 | AD116: 0 | AE116: 0 | AF116: 0
K117: 0 | L117: 0 | M117: 0 | N117: 0 | T117: 0 | U117: 0 | V117: 0 | W117: 0 | AC117: 0 | AD117: 0 | AE117: 0 | AF117: 0
K118: 0 | L118: 0 | M118: 0 | N118: 0 | T118: 0 | U118: 0 | V118: 0 | W118: 0 | AC118: 0 | AD118: 0 | AE118: 0 | AF118: 0
K119: 0 | L119: 0 | M119: 0 | N119: 0 | T119: 0 | U119: 0 | V119: 0 | W119: 0 | AC119: 0 | AD119: 0 | AE119: 0 | AF119: 0
K120: 0 | L120: 0 | M120: 0 | N120: 0 | T120: 0 | U120: 0 | V120: 0 | W120: 0 | AC120: 0 | AD120: 0 | AE120: 0 | AF120: 0
K121: 0 | L121: 0 | M121: 0 | N121: 0 | T121: 0 | U121: 0 | V121: 0 | W121: 0 | AC121: 0 | AD121: 0 | AE121: 0 | AF121: 0
K122: 0 | L122: 0 | M122: 0 | N122: 0 | T122: 0 | U122: 0 | V122: 0 | W122: 0 | AC122: 0 | AD122: 0 | AE122: 0 | AF122: 0
K123: 0 | L123: 0 | M123: 0 | N123: 0 | T123: 0 | U123: 0 | V123: 0 | W123: 0 | AC123: 0 | AD123: 0 | AE123: 0 | AF123: 0
K124: 0 | L124: 0 | M124: 0 | N124: 0 | T124: 0 | U124: 0 | V124: 0 | W124: 0 | AC124: 0 | AD124: 0 | AE124: 0 | AF124: 0
K125: 0 | L125: 0 | M125: 0 | N125: 0 | T125: 0 | U125: 0 | V125: 0 | W125: 0 | AC125: 0 | AD125: 0 | AE125: 0 | AF125: 0
K126: 0 | L126: 0 | M126: 0 | N126: 0 | T126: 0 | U126: 0 | V126: 0 | W126: 0 | AC126: 0 | AD126: 0 | AE126: 0 | AF126: 0
K127: 0 | L127: 0 | M127: 0 | N127: 0 | T127: 0 | U127: 0 | V127: 0 | W127: 0 | AC127: 0 | AD127: 0 | AE127: 0 | AF127: 0
K128: 0 | L128: 0 | M128: 0 | N128: 0 | T128: 0 | U128: 0 | V128: 0 | W128: 0 | AC128: 0 | AD128: 0 | AE128: 0 | AF128: 0
K129: 0 | L129: 0 | M129: 0 | N129: 0 | T129: 0 | U129: 0 | V129: 0 | W129: 0 | AC129: 0 | AD129: 0 | AE129: 0 | AF129: 0
K130: 0 | L130: 0 | M130: 0 | N130: 0 | T130: 0 | U130: 0 | V130: 0 | W130: 0 | AC130: 0 | AD130: 0 | AE130: 0 | AF130: 0
K131: 0 | L131: 0 | M131: 0 | N131: 0 | T131: 0 | U131: 0 | V131: 0 | W131: 0 | AC131: 0 | AD131: 0 | AE131: 0 | AF131: 0
K132: 0 | L132: 0 | M132: 0 | N132: 0 | T132: 0 | U132: 0 | V132: 0 | W132: 0 | AC132: 0 | AD132: 0 | AE132: 0 | AF132: 0
K133: 0 | L133: 0 | M133: 0 | N133: 0 | T133: 0 | U133: 0 | V133: 0 | W133: 0 | AC133: 0 | AD133: 0 | AE133: 0 | AF133: 0
K134: 0 | L134: 0 | M134: 0 | N134: 0 | T134: 0 | U134: 0 | V134: 0 | W134: 0 | AC134: 0 | AD134: 0 | AE134: 0 | AF134: 0
K135: 0 | L135: 0 | M135: 0 | N135: 0 | T135: 0 | U135: 0 | V135: 0 | W135: 0 | AC135: 0 | AD135: 0 | AE135: 0 | AF135: 0
K136: 0 | L136: 0 | M136: 0 | N136: 0 | T136: 0 | U136: 0 | V136: 0 | W136: 0 | AC136: 0 | AD136: 0 | AE136: 0 | AF136: 0
K137: 0 | L137: 0 | M137: 0 | N137: 0 | T137: 0 | U137: 0 | V137: 0 | W137: 0 | AC137: 0 | AD137: 0 | AE137: 0 | AF137: 0
K138: 0 | L138: 0 | M138: 0 | N138: 0 | T138: 0 | U138: 0 | V138: 0 | W138: 0 | AC138: 0 | AD138: 0 | AE138: 0 | AF138: 0
K139: 0 | L139: 0 | M139: 0 | N139: 0 | T139: 0 | U139: 0 | V139: 0 | W139: 0 | AC139: 0 | AD139: 0 | AE139: 0 | AF139: 0
K140: 0 | L140: 0 | M140: 0 | N140: 0 | T140: 0 | U140: 0 | V140: 0 | W140: 0 | AC140: 0 | AD140: 0 | AE140: 0 | AF140: 0
K141: 0 | L141: 0 | M141: 0 | N141: 0 | T141: 0 | U141: 0 | V141: 0 | W141: 0 | AC141: 0 | AD141: 0 | AE141: 0 | AF141: 0
K142: 0 | L142: 0 | M142: 0 | N142: 0 | T142: 0 | U142: 0 | V142: 0 | W142: 0 | AC142: 0 | AD142: 0 | AE142: 0 | AF142: 0
K143: 0 | L143: 0 | M143: 0 | N143: 0 | T143: 0 | U143: 0 | V143: 0 | W143: 0 | AC143: 0 | AD143: 0 | AE143: 0 | AF143: 0
K144: 0 | L144: 0 | M144: 0 | N144: 0 | T144: 0 | U144: 0 | V144: 0 | W144: 0 | AC144: 0 | AD144: 0 | AE144: 0 | AF144: 0
K145: 0 | L145: 0 | M145: 0 | N145: 0 | T145: 0 | U145: 0 | V145: 0 | W145: 0 | AC145: 0 | AD145: 0 | AE145: 0 | AF145: 0
K146: 0 | L146: 0 | M146: 0 | N146: 0 | T146: 0 | U146: 0 | V146: 0 | W146: 0 | AC146: 0 | AD146: 0 | AE146: 0 | AF146: 0
K147: 0 | L147: 0 | M147: 0 | N147: 0 | T147: 0 | U147: 0 | V147: 0 | W147: 0 | AC147: 0 | AD147: 0 | AE147: 0 | AF147: 0
K148: 0 | L148: 0 | M148: 0 | N148: 0 | T148: 0 | U148: 0 | V148: 0 | W148: 0 | AC148: 0 | AD148: 0 | AE148: 0 | AF148: 0
K149: 0 | L149: 0 | M149: 0 | N149: 0 | T149: 0 | U149: 0 | V149: 0 | W149: 0 | AC149: 0 | AD149: 0 | AE149: 0 | AF149: 0
K150: 0 | L150: 0 | M150: 0 | N150: 0 | T150: 0 | U150: 0 | V150: 0 | W150: 0 | AC150: 0 | AD150: 0 | AE150: 0 | AF150: 0
K151: 0 | L151: 0 | M151: 0 | N151: 0 | T151: 0 | U151: 0 | V151: 0 | W151: 0 | AC151: 0 | AD151: 0 | AE151: 0 | AF151: 0
K152: 0 | L152: 0 | M152: 0 | N152: 0 | T152: 0 | U152: 0 | V152: 0 | W152: 0 | AC152: 0 | AD152: 0 | AE152: 0 | AF152: 0
K153: 0 | L153: 0 | M153: 0 | N153: 0 | T153: 0 | U153: 0 | V153: 0 | W153: 0 | AC153: 0 | AD153: 0 | AE153: 0 | AF153: 0
K154: 0 | L154: 0 | M154: 0 | N154: 0 | T154: 0 | U154: 0 | V154: 0 | W154: 0 | AC154: 0 | AD154: 0 | AE154: 0 | AF154: 0
K155: 0 | L155: 0 | M155: 0 | N155: 0 | T155: 0 | U155: 0 | V155: 0 | W155: 0 | AC155: 0 | AD155: 0 | AE155: 0 | AF155: 0
K156: 0 | L156: 0 | M156: 0 | N156: 0 | T156: 0 | U156: 0 | V156: 0 | W156: 0 | AC156: 0 | AD156: 0 | AE156: 0 | AF156: 0
K157: 0 | L157: 0 | M157: 0 | N157: 0 | T157: 0 | U157: 0 | V157: 0 | W157: 0 | AC157: 0 | AD157: 0 | AE157: 0 | AF157: 0
K158: 0 | L158: 0 | M158: 0 | N158: 0 | T158: 0 | U158: 0 | V158: 0 | W158: 0 | AC158: 0 | AD158: 0 | AE158: 0 | AF158: 0
K159: 0 | L159: 0 | M159: 0 | N159: 0 | T159: 0 | U159: 0 | V159: 0 | W159: 0 | AC159: 0 | AD159: 0 | AE159: 0 | AF159: 0
K160: 0 | L160: 0 | M160: 0 | N160: 0 | T160: 0 | U160: 0 | V160: 0 | W160: 0 | AC160: 0 | AD160: 0 | AE160: 0 | AF160: 0
K161: 0 | L161: 0 | M161: 0 | N161: 0 | T161: 0 | U161: 0 | V161: 0 | W161: 0 | AC161: 0 | AD161: 0 | AE161: 0 | AF161: 0
K162: 0 | L162: 0 | M162: 0 | N162: 0 | T162: 0 | U162: 0 | V162: 0 | W162: 0 | AC162: 0 | AD162: 0 | AE162: 0 | AF162: 0
K163: 0 | L163: 0 | M163: 0 | N163: 0 | T163: 0 | U163: 0 | V163: 0 | W163: 0 | AC163: 0 | AD163: 0 | AE163: 0 | AF163: 0
K164: 0 | L164: 0 | M164: 0 | N164: 0 | T164: 0 | U164: 0 | V164: 0 | W164: 0 | AC164: 0 | AD164: 0 | AE164: 0 | AF164: 0
K165: 0 | L165: 0 | M165: 0 | N165: 0 | T165: 0 | U165: 0 | V165: 0 | W165: 0 | AC165: 0 | AD165: 0 | AE165: 0 | AF165: 0
K166: 0 | L166: 0 | M166: 0 | N166: 0 | T166: 0 | U166: 0 | V166: 0 | W166: 0 | AC166: 0 | AD166: 0 | AE166: 0 | AF166: 0
K167: 0 | L167: 0 | M167: 0 | N167: 0 | T167: 0 | U167: 0 | V167: 0 | W167: 0 | AC167: 0 | AD167: 0 | AE167: 0 | AF167: 0
K168: =IF(B168>0,$I$3*(1-EXP(-$I$4*(A168-$I$5))),0) -> 0 | L168: =IF(C168<>0,((1/(C168)^2)*(K168-B168)^2),(K168-B168)^2) -> 0 | M168: =IF(E168>0,$I$7*(1-EXP(-$I$8*(D168-$I$9))),0) -> 0 | N168: =IF(F168<>0,((1/(F168)^2)*(M168-E168)^2),(M168-E168)^2) -> 0 | T168: =IF(B168>0,$I$3/(1+EXP(-$I$4*(A168-$I$5))),0) -> 0 | U168: =IF(C168<>0,((1/(C168)^2)*(T168-B168)^2),((T168-B168)^2)) -> 0 | V168: =IF(E168>0,$I$7/(1+EXP(-$I$8*(D168-$I$9))),0) -> 0 | W168: =IF(F168<>0,((1/(F168)^2)*(V168-E168)^2),((V168-E168)^2)) -> 0 | AC168: =IF(B168>0,$I$3*(EXP(-EXP(-$I$4*(A168-$I$5)))),0) -> 0 | AD168: =IF(C168<>0,((1/(C168)^2)*(AC168-B168)^2),((AC168-B168)^2)) -> 0 | AE168: =IF(E168>0,$I$7*(EXP(-EXP(-$I$8*(D168-$I$9)))),0) -> 0 | AF168: =IF(F168<>0,((1/(F168)^2)*(AE168-E168)^2),((AE168-E168)^2)) -> 0
K169: 0 | L169: 0 | M169: 0 | N169: 0 | T169: 0 | U169: 0 | V169: 0 | W169: 0 | AC169: 0 | AD169: 0 | AE169: 0 | AF169: 0
K170: 0 | L170: 0 | M170: 0 | N170: 0 | T170: 0 | U170: 0 | V170: 0 | W170: 0 | AC170: 0 | AD170: 0 | AE170: 0 | AF170: 0
K171: 0 | L171: 0 | M171: 0 | N171: 0 | T171: 0 | U171: 0 | V171: 0 | W171: 0 | AC171: 0 | AD171: 0 | AE171: 0 | AF171: 0
K172: 0 | L172: 0 | M172: 0 | N172: 0 | T172: 0 | U172: 0 | V172: 0 | W172: 0 | AC172: 0 | AD172: 0 | AE172: 0 | AF172: 0
K173: 0 | L173: 0 | M173: 0 | N173: 0 | T173: 0 | U173: 0 | V173: 0 | W173: 0 | AC173: 0 | AD173: 0 | AE173: 0 | AF173: 0
K174: 0 | L174: 0 | M174: 0 | N174: 0 | T174: 0 | U174: 0 | V174: 0 | W174: 0 | AC174: 0 | AD174: 0 | AE174: 0 | AF174: 0
K175: 0 | L175: 0 | M175: 0 | N175: 0 | T175: 0 | U175: 0 | V175: 0 | W175: 0 | AC175: 0 | AD175: 0 | AE175: 0 | AF175: 0
K176: 0 | L176: 0 | M176: 0 | N176: 0 | T176: 0 | U176: 0 | V176: 0 | W176: 0 | AC176: 0 | AD176: 0 | AE176: 0 | AF176: 0
K177: 0 | L177: 0 | M177: 0 | N177: 0 | T177: 0 | U177: 0 | V177: 0 | W177: 0 | AC177: 0 | AD177: 0 | AE177: 0 | AF177: 0
K178: 0 | L178: 0 | M178: 0 | N178: 0 | T178: 0 | U178: 0 | V178: 0 | W178: 0 | AC178: 0 | AD178: 0 | AE178: 0 | AF178: 0
K179: 0 | L179: 0 | M179: 0 | N179: 0 | T179: 0 | U179: 0 | V179: 0 | W179: 0 | AC179: 0 | AD179: 0 | AE179: 0 | AF179: 0
K180: 0 | L180: 0 | M180: 0 | N180: 0 | T180: 0 | U180: 0 | V180: 0 | W180: 0 | AC180: 0 | AD180: 0 | AE180: 0 | AF180: 0
K181: 0 | L181: 0 | M181: 0 | N181: 0 | T181: 0 | U181: 0 | V181: 0 | W181: 0 | AC181: 0 | AD181: 0 | AE181: 0 | AF181: 0
K182: 0 | L182: 0 | M182: 0 | N182: 0 | T182: 0 | U182: 0 | V182: 0 | W182: 0 | AC182: 0 | AD182: 0 | AE182: 0 | AF182: 0
K183: 0 | L183: 0 | M183: 0 | N183: 0 | T183: 0 | U183: 0 | V183: 0 | W183: 0 | AC183: 0 | AD183: 0 | AE183: 0 | AF183: 0
K184: 0 | L184: 0 | M184: 0 | N184: 0 | T184: 0 | U184: 0 | V184: 0 | W184: 0 | AC184: 0 | AD184: 0 | AE184: 0 | AF184: 0
K185: 0 | L185: 0 | M185: 0 | N185: 0 | T185: 0 | U185: 0 | V185: 0 | W185: 0 | AC185: 0 | AD185: 0 | AE185: 0 | AF185: 0
K186: 0 | L186: 0 | M186: 0 | N186: 0 | T186: 0 | U186: 0 | V186: 0 | W186: 0 | AC186: 0 | AD186: 0 | AE186: 0 | AF186: 0
K187: 0 | L187: 0 | M187: 0 | N187: 0 | T187: 0 | U187: 0 | V187: 0 | W187: 0 | AC187: 0 | AD187: 0 | AE187: 0 | AF187: 0
K188: 0 | L188: 0 | M188: 0 | N188: 0 | T188: 0 | U188: 0 | V188: 0 | W188: 0 | AC188: 0 | AD188: 0 | AE188: 0 | AF188: 0
K189: 0 | L189: 0 | M189: 0 | N189: 0 | T189: 0 | U189: 0 | V189: 0 | W189: 0 | AC189: 0 | AD189: 0 | AE189: 0 | AF189: 0
K190: 0 | L190: 0 | M190: 0 | N190: 0 | T190: 0 | U190: 0 | V190: 0 | W190: 0 | AC190: 0 | AD190: 0 | AE190: 0 | AF190: 0
K191: 0 | L191: 0 | M191: 0 | N191: 0 | T191: 0 | U191: 0 | V191: 0 | W191: 0 | AC191: 0 | AD191: 0 | AE191: 0 | AF191: 0
K192: 0 | L192: 0 | M192: 0 | N192: 0 | T192: 0 | U192: 0 | V192: 0 | W192: 0 | AC192: 0 | AD192: 0 | AE192: 0 | AF192: 0
K193: 0 | L193: 0 | M193: 0 | N193: 0 | T193: 0 | U193: 0 | V193: 0 | W193: 0 | AC193: 0 | AD193: 0 | AE193: 0 | AF193: 0
K194: 0 | L194: 0 | M194: 0 | N194: 0 | T194: 0 | U194: 0 | V194: 0 | W194: 0 | AC194: 0 | AD194: 0 | AE194: 0 | AF194: 0
K195: 0 | L195: 0 | M195: 0 | N195: 0 | T195: 0 | U195: 0 | V195: 0 | W195: 0 | AC195: 0 | AD195: 0 | AE195: 0 | AF195: 0
K196: 0 | L196: 0 | M196: 0 | N196: 0 | T196: 0 | U196: 0 | V196: 0 | W196: 0 | AC196: 0 | AD196: 0 | AE196: 0 | AF196: 0
K197: 0 | L197: 0 | M197: 0 | N197: 0 | T197: 0 | U197: 0 | V197: 0 | W197: 0 | AC197: 0 | AD197: 0 | AE197: 0 | AF197: 0
K198: 0 | L198: 0 | M198: 0 | N198: 0 | T198: 0 | U198: 0 | V198: 0 | W198: 0 | AC198: 0 | AD198: 0 | AE198: 0 | AF198: 0
K199: 0 | L199: 0 | M199: 0 | N199: 0 | T199: 0 | U199: 0 | V199: 0 | W199: 0 | AC199: 0 | AD199: 0 | AE199: 0 | AF199: 0
K200: 0 | L200: 0 | M200: 0 | N200: 0 | T200: 0 | U200: 0 | V200: 0 | W200: 0 | AC200: 0 | AD200: 0 | AE200: 0 | AF200: 0
... 4 more rows

Sheet 6 (hidden)
A1: Dados 1 | D1: Dados 2 | K1: Dados 1 | M1: Dados 2 | T1: Dados 1 | V1: Dados 2 | AC1: Dados 1 | AE1: Dados 2
A2: idade | B2: Comprimento médio | C2: Desvio padrão | D2: idade | E2: Comprimento médio | F2: Desvio padrão | H2: Dados 1 | K2: L(t) | L2: SQ | M2: L(t) | N2: SQ | O2: SSQTOTAL | P2: Likelihood ratio x^2 | Q2: GL | R2: p | T2: L(t) | U2: SQ | V2: L(t) | W2: SQ | X2: SSQTOTAL | Y2: Likelihood ratio x^2 | Z2: GL | AA2: p | AC2: L(t) | AD2: SQ | AE2: L(t) | AF2: SQ | AG2: SSQTOTAL | AH2: Likelihood ratio x^2 | AI2: GL | AJ2: p
A3: 1 | B3: 15.4 | D3: 1 | E3: 15.4 | H3: Linf | I3: 59.71586414 | K3: =IF(B3>0,$I$3*(1-EXP(-$I$4*(A3-$I$5))),0) -> -10.31161398 | L3: =IF(C3<>0,((1/(C3)^2)*(K3-B3)^2),(K3-B3)^2) -> 661.0870933 | M3: =IF(E3>0,$I$7*(1-EXP(-$I$8*(D3-$I$9))),0) -> -13.17887689 | N3: =IF(F3<>0,((1/(F3)^2)*(M3-E3)^2),(M3-E3)^2) -> 816.7522045 | O3: =SUM(L3:L103,N3:N103) -> 1976.317733 | P3: =-(COUNT(B3:B203)+COUNT(E3:E203))*LN(SUM($I$11,$I$12)/$O$3) -> 76.86836986 | Q3: 1 | R3: =CHIDIST($P$3,$Q$3) -> 1.827405329e-18 | T3: =IF(B3>0,$I$3/(1+EXP(-$I$4*(A3-$I$5))),0) -> 27.48491266 | U3: =IF(C3<>0,((1/(C3)^2)*(T3-B3)^2),((T3-B3)^2)) -> 146.045114 | V3: =IF(E3>0,$I$7/(1+EXP(-$I$8*(D3-$I$9))),0) -> 24.41442443 | W3: =IF(F3<>0,((1/(F3)^2)*(V3-E3)^2),((V3-E3)^2)) -> 81.25984779 | X3: =SUM($U$3:$U$103,$W$3:$W$103) -> 342.1475683 | Y3: =-(COUNT($B$3:$B$203)+COUNT($E$3:$E$203))*LN(SUM($I$11,$I$12)/$X$3) -> 34.77840512 | Z3: 1 | AA3: =CHIDIST($Y$3,$Z$3) -> 3.694487801e-09 | AC3: =IF(B3>0,$I$3*(EXP(-EXP(-$I$4*(A3-$I$5)))),0) -> 18.48426353 | AD3: =IF(C3<>0,((1/(C3)^2)*(AC3-B3)^2),((AC3-B3)^2)) -> 9.512681495 | AE3: =IF(E3>0,$I$7*(EXP(-EXP(-$I$8*(D3-$I$9)))),0) -> 15.81817006 | AF3: =IF(F3<>0,((1/(F3)^2)*(AE3-E3)^2),((AE3-E3)^2)) -> 0.1748662005 | AG3: =SUM($AD$3:$AD$103,$AF$3:$AF$103) -> 80.94312631 | AH3: =-(COUNT($B$3:$B$203)+COUNT($E$3:$E$203))*LN(SUM($I$11,$I$12)/$AG$3) -> 0.1825163226 | AI3: 1 | AJ3: =CHIDIST($AH$3,$AI$3) -> 0.6692196119
A4: 2 | B4: 28.03 | D4: 2 | E4: 26.93 | H4: k | I4: 0.4151875314 | K4: 13.48257059 | L4: =IF(C4<>0,((1/(C4)^2)*(K4-B4)^2),(K4-B4)^2) -> 211.6277023 | M4: =IF(E4>0,$I$7*(1-EXP(-$I$8*(D4-$I$9))),0) -> 16.02990566 | N4: =IF(F4<>0,((1/(F4)^2)*(M4-E4)^2),(M4-E4)^2) -> 118.8120565 | T4: =IF(B4>0,$I$3/(1+EXP(-$I$4*(A4-$I$5))),0) -> 33.65750619 | U4: =IF(C4<>0,((1/(C4)^2)*(T4-B4)^2),((T4-B4)^2)) -> 31.66882587 | V4: =IF(E4>0,$I$7/(1+EXP(-$I$8*(D4-$I$9))),0) -> 32.05031341 | W4: =IF(F4<>0,((1/(F4)^2)*(V4-E4)^2),((V4-E4)^2)) -> 26.21760938 | AC4: =IF(B4>0,$I$3*(EXP(-EXP(-$I$4*(A4-$I$5)))),0) -> 27.532756 | AD4: =IF(C4<>0,((1/(C4)^2)*(AC4-B4)^2),((AC4-B4)^2)) -> 0.2472515944 | AE4: =IF(E4>0,$I$7*(EXP(-EXP(-$I$8*(D4-$I$9)))),0) -> 26.9785897 | AF4: =IF(F4<>0,((1/(F4)^2)*(AE4-E4)^2),((AE4-E4)^2)) -> 0.002360959226
A5: 3.3 | B5: 41.18 | D5: 3.3 | E5: 42.23 | H5: t0 | I5: 1.383657941 | K5: 32.76658936 | L5: 70.78547859 | M5: 36.09412768 | N5: 37.64892918 | T5: 41.14669952 | U5: 0.001108921843 | V5: 40.82028063 | W5: 1.987308707 | AC5: 38.0273638 | AD5: 9.939115038 | AE5: 38.93064242 | AF5: 10.88576043
A6: 4.3 | B6: 46.2 | D6: 4.3 | E6: 44.59 | H6: Dados 2 | K6: 41.92350941 | L6: 18.28837179 | M6: 44.10347932 | N6: 0.2367023767 | T6: 46.0078232 | U6: 0.03693192411 | V6: 45.82582115 | W6: 1.527253926 | AC6: 44.32937271 | AD6: 3.499246456 | AE6: 45.06826245 | AF6: 0.2287349708
A7: 5.3 | B7: 48.23 | D7: 5.3 | E7: 47.63 | H7: Linf | I7: 54.70994908 | K7: 47.96905872 | L7: 0.06809034915 | M7: 48.66685281 | N7: 1.075063754 | T7: 49.89996109 | U7: 2.788770036 | V7: 49.26795869 | W7: 2.682908665 | AC7: 49.05225109 | AD7: 0.6760968498 | AE7: 48.98864752 | AF7: 1.845923072
A8: 6.3 | B8: 50.26 | D8: 6.3 | E8: 49.67 | H8: k | I8: 0.562547662 | K8: 51.96042988 | L8: 2.891461778 | M8: 51.26686073 | N8: 2.549964187 | T8: 52.85187205 | U8: 6.717800722 | V8: 51.47071693 | W8: 3.24258147 | AC8: 52.44292606 | AD8: 4.765166201 | AE8: 51.37296604 | AF8: 2.900093329
A9: 7.3 | B9: 51.82 | D9: 7.3 | E9: 50.87 | H9: t0 | I9: =I5 -> 1.383657941 | K9: 54.59559881 | L9: 7.703948733 | M9: 52.74822998 | N9: 3.527747848 | T9: 54.99995849 | U9: 10.11213603 | V9: 52.8161359 | W9: 3.787444937 | AC9: 54.8089725 | AD9: 8.933956629 | AE9: 52.78298376 | AF9: 3.659506851
A10: 8.3 | B10: 54.27 | D10: 8.3 | E10: 52.3 | K10: 56.3353807 | L10: 4.265797436 | M10: 53.5922485 | N10: 1.669906195 | T10: 56.51649528 | U10: 5.046741031 | V10: 53.61462549 | W10: 1.72824018 | AC10: 56.42928412 | AD10: 4.662507913 | AE10: 53.60358822 | AF10: 1.699342247
A11: 9.3 | B11: 56.98 | D11: 9.3 | E11: 54.77 | H11: SSQ1 | I11: 52.48529724 | K11: 57.48401334 | L11: 0.2540294462 | M11: 54.07313284 | N11: 0.4856238343 | T11: 57.56442241 | U11: 0.34154955 | V11: 54.08046001 | W11: 0.4754653993 | AC11: 57.52520572 | AD11: 0.2972492791 | AE11: 54.07682473 | AF11: 0.480491953
A12: 10.3 | B12: 58.93 | D12: 10.3 | E12: 56.43 | H12: SSQ2 | I12: 27.8446037 | K12: 58.24235951 | L12: 0.4728494412 | M12: 54.34711942 | N12: 4.338391504 | T12: 58.27784306 | U12: 0.4253086749 | V12: 54.34950981 | W12: 4.328439429 | AC12: 58.26039046 | AD12: 0.4483769387 | AE12: 54.34831989 | AF12: 4.333392092
A13: 11.3 | B13: 59 | D13: 11.3 | E13: 55.88 | K13: 58.74303214 | L13: 0.06603248349 | M13: 54.50322483 | N13: 1.895509876 | T13: 58.75862651 | U13: 0.05826116286 | V13: 54.504003 | W13: 1.89336773 | AC13: 58.75091349 | AD13: 0.06204408994 | AE13: 54.50361489 | AF13: 1.894435957
A14: 12.3 | B14: 60.91 | K14: 59.07358444 | L14: 3.372422104 | M14: 0 | N14: 0 | T14: 59.08041903 | U14: 3.347366518 | V14: 0 | W14: 0 | AC14: 59.07702614 | AD14: 3.359793165 | AE14: 0 | AF14: 0
A15: 13.3 | B15: 61.83 | K15: 59.29182051 | L15: 6.442355103 | M15: 0 | N15: 0 | T15: 59.29481043 | U15: 6.427186179 | V15: 0 | W15: 0 | AC15: 59.29332253 | AD15: 6.434732596 | AE15: 0 | AF15: 0
K16: 0 | L16: 0 | M16: 0 | N16: 0 | T16: 0 | U16: 0 | V16: 0 | W16: 0 | AC16: 0 | AD16: 0 | AE16: 0 | AF16: 0
K17: 0 | L17: 0 | M17: 0 | N17: 0 | T17: 0 | U17: 0 | V17: 0 | W17: 0 | AC17: 0 | AD17: 0 | AE17: 0 | AF17: 0
K18: 0 | L18: 0 | M18: 0 | N18: 0 | T18: 0 | U18: 0 | V18: 0 | W18: 0 | AC18: 0 | AD18: 0 | AE18: 0 | AF18: 0
K19: 0 | L19: 0 | M19: 0 | N19: 0 | T19: 0 | U19: 0 | V19: 0 | W19: 0 | AC19: 0 | AD19: 0 | AE19: 0 | AF19: 0
K20: 0 | L20: 0 | M20: 0 | N20: 0 | T20: 0 | U20: 0 | V20: 0 | W20: 0 | AC20: 0 | AD20: 0 | AE20: 0 | AF20: 0
K21: 0 | L21: 0 | M21: 0 | N21: 0 | T21: 0 | U21: 0 | V21: 0 | W21: 0 | AC21: 0 | AD21: 0 | AE21: 0 | AF21: 0
K22: 0 | L22: 0 | M22: 0 | N22: 0 | T22: 0 | U22: 0 | V22: 0 | W22: 0 | AC22: 0 | AD22: 0 | AE22: 0 | AF22: 0
K23: 0 | L23: 0 | M23: 0 | N23: 0 | T23: 0 | U23: 0 | V23: 0 | W23: 0 | AC23: 0 | AD23: 0 | AE23: 0 | AF23: 0
K24: 0 | L24: 0 | M24: 0 | N24: 0 | T24: 0 | U24: 0 | V24: 0 | W24: 0 | AC24: 0 | AD24: 0 | AE24: 0 | AF24: 0
K25: 0 | L25: 0 | M25: 0 | N25: 0 | T25: 0 | U25: 0 | V25: 0 | W25: 0 | AC25: 0 | AD25: 0 | AE25: 0 | AF25: 0
K26: 0 | L26: 0 | M26: 0 | N26: 0 | T26: 0 | U26: 0 | V26: 0 | W26: 0 | AC26: 0 | AD26: 0 | AE26: 0 | AF26: 0
K27: 0 | L27: 0 | M27: 0 | N27: 0 | T27: 0 | U27: 0 | V27: 0 | W27: 0 | AC27: 0 | AD27: 0 | AE27: 0 | AF27: 0
K28: 0 | L28: 0 | M28: 0 | N28: 0 | T28: 0 | U28: 0 | V28: 0 | W28: 0 | AC28: 0 | AD28: 0 | AE28: 0 | AF28: 0
K29: 0 | L29: 0 | M29: 0 | N29: 0 | T29: 0 | U29: 0 | V29: 0 | W29: 0 | AC29: 0 | AD29: 0 | AE29: 0 | AF29: 0
K30: 0 | L30: 0 | M30: 0 | N30: 0 | T30: 0 | U30: 0 | V30: 0 | W30: 0 | AC30: 0 | AD30: 0 | AE30: 0 | AF30: 0
K31: 0 | L31: 0 | M31: 0 | N31: 0 | T31: 0 | U31: 0 | V31: 0 | W31: 0 | AC31: 0 | AD31: 0 | AE31: 0 | AF31: 0
K32: 0 | L32: 0 | M32: 0 | N32: 0 | T32: 0 | U32: 0 | V32: 0 | W32: 0 | AC32: 0 | AD32: 0 | AE32: 0 | AF32: 0
K33: 0 | L33: 0 | M33: 0 | N33: 0 | T33: 0 | U33: 0 | V33: 0 | W33: 0 | AC33: 0 | AD33: 0 | AE33: 0 | AF33: 0
K34: 0 | L34: 0 | M34: 0 | N34: 0 | T34: 0 | U34: 0 | V34: 0 | W34: 0 | AC34: 0 | AD34: 0 | AE34: 0 | AF34: 0
K35: 0 | L35: 0 | M35: 0 | N35: 0 | T35: 0 | U35: 0 | V35: 0 | W35: 0 | AC35: 0 | AD35: 0 | AE35: 0 | AF35: 0
K36: 0 | L36: 0 | M36: 0 | N36: 0 | T36: 0 | U36: 0 | V36: 0 | W36: 0 | AC36: 0 | AD36: 0 | AE36: 0 | AF36: 0
K37: 0 | L37: 0 | M37: 0 | N37: 0 | T37: 0 | U37: 0 | V37: 0 | W37: 0 | AC37: 0 | AD37: 0 | AE37: 0 | AF37: 0
K38: 0 | L38: 0 | M38: 0 | N38: 0 | T38: 0 | U38: 0 | V38: 0 | W38: 0 | AC38: 0 | AD38: 0 | AE38: 0 | AF38: 0
K39: 0 | L39: 0 | M39: 0 | N39: 0 | T39: 0 | U39: 0 | V39: 0 | W39: 0 | AC39: 0 | AD39: 0 | AE39: 0 | AF39: 0
K40: 0 | L40: 0 | M40: 0 | N40: 0 | T40: 0 | U40: 0 | V40: 0 | W40: 0 | AC40: 0 | AD40: 0 | AE40: 0 | AF40: 0
K41: 0 | L41: 0 | M41: 0 | N41: 0 | T41: 0 | U41: 0 | V41: 0 | W41: 0 | AC41: 0 | AD41: 0 | AE41: 0 | AF41: 0
K42: 0 | L42: 0 | M42: 0 | N42: 0 | T42: 0 | U42: 0 | V42: 0 | W42: 0 | AC42: 0 | AD42: 0 | AE42: 0 | AF42: 0
K43: 0 | L43: 0 | M43: 0 | N43: 0 | T43: 0 | U43: 0 | V43: 0 | W43: 0 | AC43: 0 | AD43: 0 | AE43: 0 | AF43: 0
K44: 0 | L44: 0 | M44: 0 | N44: 0 | T44: 0 | U44: 0 | V44: 0 | W44: 0 | AC44: 0 | AD44: 0 | AE44: 0 | AF44: 0
K45: 0 | L45: 0 | M45: 0 | N45: 0 | T45: 0 | U45: 0 | V45: 0 | W45: 0 | AC45: 0 | AD45: 0 | AE45: 0 | AF45: 0
K46: 0 | L46: 0 | M46: 0 | N46: 0 | T46: 0 | U46: 0 | V46: 0 | W46: 0 | AC46: 0 | AD46: 0 | AE46: 0 | AF46: 0
K47: 0 | L47: 0 | M47: 0 | N47: 0 | T47: 0 | U47: 0 | V47: 0 | W47: 0 | AC47: 0 | AD47: 0 | AE47: 0 | AF47: 0
K48: 0 | L48: 0 | M48: 0 | N48: 0 | T48: 0 | U48: 0 | V48: 0 | W48: 0 | AC48: 0 | AD48: 0 | AE48: 0 | AF48: 0
K49: 0 | L49: 0 | M49: 0 | N49: 0 | T49: 0 | U49: 0 | V49: 0 | W49: 0 | AC49: 0 | AD49: 0 | AE49: 0 | AF49: 0
K50: 0 | L50: 0 | M50: 0 | N50: 0 | T50: 0 | U50: 0 | V50: 0 | W50: 0 | AC50: 0 | AD50: 0 | AE50: 0 | AF50: 0
K51: 0 | L51: 0 | M51: 0 | N51: 0 | T51: 0 | U51: 0 | V51: 0 | W51: 0 | AC51: 0 | AD51: 0 | AE51: 0 | AF51: 0
K52: 0 | L52: 0 | M52: 0 | N52: 0 | T52: 0 | U52: 0 | V52: 0 | W52: 0 | AC52: 0 | AD52: 0 | AE52: 0 | AF52: 0
K53: 0 | L53: 0 | M53: 0 | N53: 0 | T53: 0 | U53: 0 | V53: 0 | W53: 0 | AC53: 0 | AD53: 0 | AE53: 0 | AF53: 0
K54: 0 | L54: 0 | M54: 0 | N54: 0 | T54: 0 | U54: 0 | V54: 0 | W54: 0 | AC54: 0 | AD54: 0 | AE54: 0 | AF54: 0
K55: 0 | L55: 0 | M55: 0 | N55: 0 | T55: 0 | U55: 0 | V55: 0 | W55: 0 | AC55: 0 | AD55: 0 | AE55: 0 | AF55: 0
K56: 0 | L56: 0 | M56: 0 | N56: 0 | T56: 0 | U56: 0 | V56: 0 | W56: 0 | AC56: 0 | AD56: 0 | AE56: 0 | AF56: 0
K57: 0 | L57: 0 | M57: 0 | N57: 0 | T57: 0 | U57: 0 | V57: 0 | W57: 0 | AC57: 0 | AD57: 0 | AE57: 0 | AF57: 0
K58: 0 | L58: 0 | M58: 0 | N58: 0 | T58: 0 | U58: 0 | V58: 0 | W58: 0 | AC58: 0 | AD58: 0 | AE58: 0 | AF58: 0
K59: 0 | L59: 0 | M59: 0 | N59: 0 | T59: 0 | U59: 0 | V59: 0 | W59: 0 | AC59: 0 | AD59: 0 | AE59: 0 | AF59: 0
K60: 0 | L60: 0 | M60: 0 | N60: 0 | T60: 0 | U60: 0 | V60: 0 | W60: 0 | AC60: 0 | AD60: 0 | AE60: 0 | AF60: 0
K61: 0 | L61: 0 | M61: 0 | N61: 0 | T61: 0 | U61: 0 | V61: 0 | W61: 0 | AC61: 0 | AD61: 0 | AE61: 0 | AF61: 0
K62: 0 | L62: 0 | M62: 0 | N62: 0 | T62: 0 | U62: 0 | V62: 0 | W62: 0 | AC62: 0 | AD62: 0 | AE62: 0 | AF62: 0
K63: 0 | L63: 0 | M63: 0 | N63: 0 | T63: 0 | U63: 0 | V63: 0 | W63: 0 | AC63: 0 | AD63: 0 | AE63: 0 | AF63: 0
K64: 0 | L64: 0 | M64: 0 | N64: 0 | T64: 0 | U64: 0 | V64: 0 | W64: 0 | AC64: 0 | AD64: 0 | AE64: 0 | AF64: 0
K65: 0 | L65: 0 | M65: 0 | N65: 0 | T65: 0 | U65: 0 | V65: 0 | W65: 0 | AC65: 0 | AD65: 0 | AE65: 0 | AF65: 0
K66: 0 | L66: 0 | M66: 0 | N66: 0 | T66: 0 | U66: 0 | V66: 0 | W66: 0 | AC66: 0 | AD66: 0 | AE66: 0 | AF66: 0
K67: =IF(B67>0,$I$3*(1-EXP(-$I$4*(A67-$I$5))),0) -> 0 | L67: 0 | M67: 0 | N67: 0 | T67: 0 | U67: 0 | V67: 0 | W67: 0 | AC67: 0 | AD67: 0 | AE67: 0 | AF67: 0
K68: 0 | L68: =IF(C68<>0,((1/(C68)^2)*(K68-B68)^2),(K68-B68)^2) -> 0 | M68: =IF(E68>0,$I$7*(1-EXP(-$I$8*(D68-$I$9))),0) -> 0 | N68: =IF(F68<>0,((1/(F68)^2)*(M68-E68)^2),(M68-E68)^2) -> 0 | T68: =IF(B68>0,$I$3/(1+EXP(-$I$4*(A68-$I$5))),0) -> 0 | U68: =IF(C68<>0,((1/(C68)^2)*(T68-B68)^2),((T68-B68)^2)) -> 0 | V68: =IF(E68>0,$I$7/(1+EXP(-$I$8*(D68-$I$9))),0) -> 0 | W68: =IF(F68<>0,((1/(F68)^2)*(V68-E68)^2),((V68-E68)^2)) -> 0 | AC68: =IF(B68>0,$I$3*(EXP(-EXP(-$I$4*(A68-$I$5)))),0) -> 0 | AD68: =IF(C68<>0,((1/(C68)^2)*(AC68-B68)^2),((AC68-B68)^2)) -> 0 | AE68: =IF(E68>0,$I$7*(EXP(-EXP(-$I$8*(D68-$I$9)))),0) -> 0 | AF68: =IF(F68<>0,((1/(F68)^2)*(AE68-E68)^2),((AE68-E68)^2)) -> 0
K69: 0 | L69: 0 | M69: 0 | N69: 0 | T69: 0 | U69: 0 | V69: 0 | W69: 0 | AC69: 0 | AD69: 0 | AE69: 0 | AF69: 0
K70: 0 | L70: 0 | M70: 0 | N70: 0 | T70: 0 | U70: 0 | V70: 0 | W70: 0 | AC70: 0 | AD70: 0 | AE70: 0 | AF70: 0
K71: 0 | L71: 0 | M71: 0 | N71: 0 | T71: 0 | U71: 0 | V71: 0 | W71: 0 | AC71: 0 | AD71: 0 | AE71: 0 | AF71: 0
K72: 0 | L72: 0 | M72: 0 | N72: 0 | T72: 0 | U72: 0 | V72: 0 | W72: 0 | AC72: 0 | AD72: 0 | AE72: 0 | AF72: 0
K73: 0 | L73: 0 | M73: 0 | N73: 0 | T73: 0 | U73: 0 | V73: 0 | W73: 0 | AC73: 0 | AD73: 0 | AE73: 0 | AF73: 0
K74: 0 | L74: 0 | M74: 0 | N74: 0 | T74: 0 | U74: 0 | V74: 0 | W74: 0 | AC74: 0 | AD74: 0 | AE74: 0 | AF74: 0
K75: 0 | L75: 0 | M75: 0 | N75: 0 | T75: 0 | U75: 0 | V75: 0 | W75: 0 | AC75: 0 | AD75: 0 | AE75: 0 | AF75: 0
K76: 0 | L76: 0 | M76: 0 | N76: 0 | T76: 0 | U76: 0 | V76: 0 | W76: 0 | AC76: 0 | AD76: 0 | AE76: 0 | AF76: 0
K77: 0 | L77: 0 | M77: 0 | N77: 0 | T77: 0 | U77: 0 | V77: 0 | W77: 0 | AC77: 0 | AD77: 0 | AE77: 0 | AF77: 0
K78: 0 | L78: 0 | M78: 0 | N78: 0 | T78: 0 | U78: 0 | V78: 0 | W78: 0 | AC78: 0 | AD78: 0 | AE78: 0 | AF78: 0
K79: 0 | L79: 0 | M79: 0 | N79: 0 | T79: 0 | U79: 0 | V79: 0 | W79: 0 | AC79: 0 | AD79: 0 | AE79: 0 | AF79: 0
K80: 0 | L80: 0 | M80: 0 | N80: 0 | T80: 0 | U80: 0 | V80: 0 | W80: 0 | AC80: 0 | AD80: 0 | AE80: 0 | AF80: 0
K81: 0 | L81: 0 | M81: 0 | N81: 0 | T81: 0 | U81: 0 | V81: 0 | W81: 0 | AC81: 0 | AD81: 0 | AE81: 0 | AF81: 0
K82: 0 | L82: 0 | M82: 0 | N82: 0 | T82: 0 | U82: 0 | V82: 0 | W82: 0 | AC82: 0 | AD82: 0 | AE82: 0 | AF82: 0
K83: 0 | L83: 0 | M83: 0 | N83: 0 | T83: 0 | U83: 0 | V83: 0 | W83: 0 | AC83: 0 | AD83: 0 | AE83: 0 | AF83: 0
K84: 0 | L84: 0 | M84: 0 | N84: 0 | T84: 0 | U84: 0 | V84: 0 | W84: 0 | AC84: 0 | AD84: 0 | AE84: 0 | AF84: 0
K85: 0 | L85: 0 | M85: 0 | N85: 0 | T85: 0 | U85: 0 | V85: 0 | W85: 0 | AC85: 0 | AD85: 0 | AE85: 0 | AF85: 0
K86: 0 | L86: 0 | M86: 0 | N86: 0 | T86: 0 | U86: 0 | V86: 0 | W86: 0 | AC86: 0 | AD86: 0 | AE86: 0 | AF86: 0
K87: 0 | L87: 0 | M87: 0 | N87: 0 | T87: 0 | U87: 0 | V87: 0 | W87: 0 | AC87: 0 | AD87: 0 | AE87: 0 | AF87: 0
K88: 0 | L88: 0 | M88: 0 | N88: 0 | T88: 0 | U88: 0 | V88: 0 | W88: 0 | AC88: 0 | AD88: 0 | AE88: 0 | AF88: 0
K89: 0 | L89: 0 | M89: 0 | N89: 0 | T89: 0 | U89: 0 | V89: 0 | W89: 0 | AC89: 0 | AD89: 0 | AE89: 0 | AF89: 0
K90: 0 | L90: 0 | M90: 0 | N90: 0 | T90: 0 | U90: 0 | V90: 0 | W90: 0 | AC90: 0 | AD90: 0 | AE90: 0 | AF90: 0
K91: 0 | L91: 0 | M91: 0 | N91: 0 | T91: 0 | U91: 0 | V91: 0 | W91: 0 | AC91: 0 | AD91: 0 | AE91: 0 | AF91: 0
K92: 0 | L92: 0 | M92: 0 | N92: 0 | T92: 0 | U92: 0 | V92: 0 | W92: 0 | AC92: 0 | AD92: 0 | AE92: 0 | AF92: 0
K93: 0 | L93: 0 | M93: 0 | N93: 0 | T93: 0 | U93: 0 | V93: 0 | W93: 0 | AC93: 0 | AD93: 0 | AE93: 0 | AF93: 0
K94: 0 | L94: 0 | M94: 0 | N94: 0 | T94: 0 | U94: 0 | V94: 0 | W94: 0 | AC94: 0 | AD94: 0 | AE94: 0 | AF94: 0
K95: 0 | L95: 0 | M95: 0 | N95: 0 | T95: 0 | U95: 0 | V95: 0 | W95: 0 | AC95: 0 | AD95: 0 | AE95: 0 | AF95: 0
K96: 0 | L96: 0 | M96: 0 | N96: 0 | T96: 0 | U96: 0 | V96: 0 | W96: 0 | AC96: 0 | AD96: 0 | AE96: 0 | AF96: 0
K97: 0 | L97: 0 | M97: 0 | N97: 0 | T97: 0 | U97: 0 | V97: 0 | W97: 0 | AC97: 0 | AD97: 0 | AE97: 0 | AF97: 0
K98: 0 | L98: 0 | M98: 0 | N98: 0 | T98: 0 | U98: 0 | V98: 0 | W98: 0 | AC98: 0 | AD98: 0 | AE98: 0 | AF98: 0
K99: 0 | L99: 0 | M99: 0 | N99: 0 | T99: 0 | U99: 0 | V99: 0 | W99: 0 | AC99: 0 | AD99: 0 | AE99: 0 | AF99: 0
K100: 0 | L100: 0 | M100: 0 | N100: 0 | T100: 0 | U100: 0 | V100: 0 | W100: 0 | AC100: 0 | AD100: 0 | AE100: 0 | AF100: 0
K101: 0 | L101: 0 | M101: 0 | N101: 0 | T101: 0 | U101: 0 | V101: 0 | W101: 0 | AC101: 0 | AD101: 0 | AE101: 0 | AF101: 0
K102: 0 | L102: 0 | M102: 0 | N102: 0 | T102: 0 | U102: 0 | V102: 0 | W102: 0 | AC102: 0 | AD102: 0 | AE102: 0 | AF102: 0
K103: 0 | L103: 0 | M103: 0 | N103: 0 | T103: 0 | U103: 0 | V103: 0 | W103: 0 | AC103: 0 | AD103: 0 | AE103: 0 | AF103: 0
K104: =IF(B104>0,$I$3*(1-EXP(-$I$4*(A104-$I$5))),0) -> 0 | L104: =IF(C104<>0,((1/(C104)^2)*(K104-B104)^2),(K104-B104)^2) -> 0 | M104: =IF(E104>0,$I$7*(1-EXP(-$I$8*(D104-$I$9))),0) -> 0 | N104: =IF(F104<>0,((1/(F104)^2)*(M104-E104)^2),(M104-E104)^2) -> 0 | T104: =IF(B104>0,$I$3/(1+EXP(-$I$4*(A104-$I$5))),0) -> 0 | U104: =IF(C104<>0,((1/(C104)^2)*(T104-B104)^2),((T104-B104)^2)) -> 0 | V104: =IF(E104>0,$I$7/(1+EXP(-$I$8*(D104-$I$9))),0) -> 0 | W104: =IF(F104<>0,((1/(F104)^2)*(V104-E104)^2),((V104-E104)^2)) -> 0 | AC104: =IF(B104>0,$I$3*(EXP(-EXP(-$I$4*(A104-$I$5)))),0) -> 0 | AD104: =IF(C104<>0,((1/(C104)^2)*(AC104-B104)^2),((AC104-B104)^2)) -> 0 | AE104: =IF(E104>0,$I$7*(EXP(-EXP(-$I$8*(D104-$I$9)))),0) -> 0 | AF104: =IF(F104<>0,((1/(F104)^2)*(AE104-E104)^2),((AE104-E104)^2)) -> 0
K105: 0 | L105: 0 | M105: 0 | N105: 0 | T105: 0 | U105: 0 | V105: 0 | W105: 0 | AC105: 0 | AD105: 0 | AE105: 0 | AF105: 0
K106: 0 | L106: 0 | M106: 0 | N106: 0 | T106: 0 | U106: 0 | V106: 0 | W106: 0 | AC106: 0 | AD106: 0 | AE106: 0 | AF106: 0
K107: 0 | L107: 0 | M107: 0 | N107: 0 | T107: 0 | U107: 0 | V107: 0 | W107: 0 | AC107: 0 | AD107: 0 | AE107: 0 | AF107: 0
K108: 0 | L108: 0 | M108: 0 | N108: 0 | T108: 0 | U108: 0 | V108: 0 | W108: 0 | AC108: 0 | AD108: 0 | AE108: 0 | AF108: 0
K109: 0 | L109: 0 | M109: 0 | N109: 0 | T109: 0 | U109: 0 | V109: 0 | W109: 0 | AC109: 0 | AD109: 0 | AE109: 0 | AF109: 0
K110: 0 | L110: 0 | M110: 0 | N110: 0 | T110: 0 | U110: 0 | V110: 0 | W110: 0 | AC110: 0 | AD110: 0 | AE110: 0 | AF110: 0
K111: 0 | L111: 0 | M111: 0 | N111: 0 | T111: 0 | U111: 0 | V111: 0 | W111: 0 | AC111: 0 | AD111: 0 | AE111: 0 | AF111: 0
K112: 0 | L112: 0 | M112: 0 | N112: 0 | T112: 0 | U112: 0 | V112: 0 | W112: 0 | AC112: 0 | AD112: 0 | AE112: 0 | AF112: 0
K113: 0 | L113: 0 | M113: 0 | N113: 0 | T113: 0 | U113: 0 | V113: 0 | W113: 0 | AC113: 0 | AD113: 0 | AE113: 0 | AF113: 0
K114: 0 | L114: 0 | M114: 0 | N114: 0 | T114: 0 | U114: 0 | V114: 0 | W114: 0 | AC114: 0 | AD114: 0 | AE114: 0 | AF114: 0
K115: 0 | L115: 0 | M115: 0 | N115: 0 | T115: 0 | U115: 0 | V115: 0 | W115: 0 | AC115: 0 | AD115: 0 | AE115: 0 | AF115: 0
K116: 0 | L116: 0 | M116: 0 | N116: 0 | T116: 0 | U116: 0 | V116: 0 | W116: 0 | AC116: 0 | AD116: 0 | AE116: 0 | AF116: 0
K117: 0 | L117: 0 | M117: 0 | N117: 0 | T117: 0 | U117: 0 | V117: 0 | W117: 0 | AC117: 0 | AD117: 0 | AE117: 0 | AF117: 0
K118: 0 | L118: 0 | M118: 0 | N118: 0 | T118: 0 | U118: 0 | V118: 0 | W118: 0 | AC118: 0 | AD118: 0 | AE118: 0 | AF118: 0
K119: 0 | L119: 0 | M119: 0 | N119: 0 | T119: 0 | U119: 0 | V119: 0 | W119: 0 | AC119: 0 | AD119: 0 | AE119: 0 | AF119: 0
K120: 0 | L120: 0 | M120: 0 | N120: 0 | T120: 0 | U120: 0 | V120: 0 | W120: 0 | AC120: 0 | AD120: 0 | AE120: 0 | AF120: 0
K121: 0 | L121: 0 | M121: 0 | N121: 0 | T121: 0 | U121: 0 | V121: 0 | W121: 0 | AC121: 0 | AD121: 0 | AE121: 0 | AF121: 0
K122: 0 | L122: 0 | M122: 0 | N122: 0 | T122: 0 | U122: 0 | V122: 0 | W122: 0 | AC122: 0 | AD122: 0 | AE122: 0 | AF122: 0
K123: 0 | L123: 0 | M123: 0 | N123: 0 | T123: 0 | U123: 0 | V123: 0 | W123: 0 | AC123: 0 | AD123: 0 | AE123: 0 | AF123: 0
K124: 0 | L124: 0 | M124: 0 | N124: 0 | T124: 0 | U124: 0 | V124: 0 | W124: 0 | AC124: 0 | AD124: 0 | AE124: 0 | AF124: 0
K125: 0 | L125: 0 | M125: 0 | N125: 0 | T125: 0 | U125: 0 | V125: 0 | W125: 0 | AC125: 0 | AD125: 0 | AE125: 0 | AF125: 0
K126: 0 | L126: 0 | M126: 0 | N126: 0 | T126: 0 | U126: 0 | V126: 0 | W126: 0 | AC126: 0 | AD126: 0 | AE126: 0 | AF126: 0
K127: 0 | L127: 0 | M127: 0 | N127: 0 | T127: 0 | U127: 0 | V127: 0 | W127: 0 | AC127: 0 | AD127: 0 | AE127: 0 | AF127: 0
K128: 0 | L128: 0 | M128: 0 | N128: 0 | T128: 0 | U128: 0 | V128: 0 | W128: 0 | AC128: 0 | AD128: 0 | AE128: 0 | AF128: 0
K129: 0 | L129: 0 | M129: 0 | N129: 0 | T129: 0 | U129: 0 | V129: 0 | W129: 0 | AC129: 0 | AD129: 0 | AE129: 0 | AF129: 0
K130: 0 | L130: 0 | M130: 0 | N130: 0 | T130: 0 | U130: 0 | V130: 0 | W130: 0 | AC130: 0 | AD130: 0 | AE130: 0 | AF130: 0
K131: 0 | L131: 0 | M131: 0 | N131: 0 | T131: 0 | U131: 0 | V131: 0 | W131: 0 | AC131: 0 | AD131: 0 | AE131: 0 | AF131: 0
K132: 0 | L132: 0 | M132: 0 | N132: 0 | T132: 0 | U132: 0 | V132: 0 | W132: 0 | AC132: 0 | AD132: 0 | AE132: 0 | AF132: 0
K133: 0 | L133: 0 | M133: 0 | N133: 0 | T133: 0 | U133: 0 | V133: 0 | W133: 0 | AC133: 0 | AD133: 0 | AE133: 0 | AF133: 0
K134: 0 | L134: 0 | M134: 0 | N134: 0 | T134: 0 | U134: 0 | V134: 0 | W134: 0 | AC134: 0 | AD134: 0 | AE134: 0 | AF134: 0
K135: 0 | L135: 0 | M135: 0 | N135: 0 | T135: 0 | U135: 0 | V135: 0 | W135: 0 | AC135: 0 | AD135: 0 | AE135: 0 | AF135: 0
K136: 0 | L136: 0 | M136: 0 | N136: 0 | T136: 0 | U136: 0 | V136: 0 | W136: 0 | AC136: 0 | AD136: 0 | AE136: 0 | AF136: 0
K137: 0 | L137: 0 | M137: 0 | N137: 0 | T137: 0 | U137: 0 | V137: 0 | W137: 0 | AC137: 0 | AD137: 0 | AE137: 0 | AF137: 0
K138: 0 | L138: 0 | M138: 0 | N138: 0 | T138: 0 | U138: 0 | V138: 0 | W138: 0 | AC138: 0 | AD138: 0 | AE138: 0 | AF138: 0
K139: 0 | L139: 0 | M139: 0 | N139: 0 | T139: 0 | U139: 0 | V139: 0 | W139: 0 | AC139: 0 | AD139: 0 | AE139: 0 | AF139: 0
K140: 0 | L140: 0 | M140: 0 | N140: 0 | T140: 0 | U140: 0 | V140: 0 | W140: 0 | AC140: 0 | AD140: 0 | AE140: 0 | AF140: 0
K141: 0 | L141: 0 | M141: 0 | N141: 0 | T141: 0 | U141: 0 | V141: 0 | W141: 0 | AC141: 0 | AD141: 0 | AE141: 0 | AF141: 0
K142: 0 | L142: 0 | M142: 0 | N142: 0 | T142: 0 | U142: 0 | V142: 0 | W142: 0 | AC142: 0 | AD142: 0 | AE142: 0 | AF142: 0
K143: 0 | L143: 0 | M143: 0 | N143: 0 | T143: 0 | U143: 0 | V143: 0 | W143: 0 | AC143: 0 | AD143: 0 | AE143: 0 | AF143: 0
K144: 0 | L144: 0 | M144: 0 | N144: 0 | T144: 0 | U144: 0 | V144: 0 | W144: 0 | AC144: 0 | AD144: 0 | AE144: 0 | AF144: 0
K145: 0 | L145: 0 | M145: 0 | N145: 0 | T145: 0 | U145: 0 | V145: 0 | W145: 0 | AC145: 0 | AD145: 0 | AE145: 0 | AF145: 0
K146: 0 | L146: 0 | M146: 0 | N146: 0 | T146: 0 | U146: 0 | V146: 0 | W146: 0 | AC146: 0 | AD146: 0 | AE146: 0 | AF146: 0
K147: 0 | L147: 0 | M147: 0 | N147: 0 | T147: 0 | U147: 0 | V147: 0 | W147: 0 | AC147: 0 | AD147: 0 | AE147: 0 | AF147: 0
K148: 0 | L148: 0 | M148: 0 | N148: 0 | T148: 0 | U148: 0 | V148: 0 | W148: 0 | AC148: 0 | AD148: 0 | AE148: 0 | AF148: 0
K149: 0 | L149: 0 | M149: 0 | N149: 0 | T149: 0 | U149: 0 | V149: 0 | W149: 0 | AC149: 0 | AD149: 0 | AE149: 0 | AF149: 0
K150: 0 | L150: 0 | M150: 0 | N150: 0 | T150: 0 | U150: 0 | V150: 0 | W150: 0 | AC150: 0 | AD150: 0 | AE150: 0 | AF150: 0
K151: 0 | L151: 0 | M151: 0 | N151: 0 | T151: 0 | U151: 0 | V151: 0 | W151: 0 | AC151: 0 | AD151: 0 | AE151: 0 | AF151: 0
K152: 0 | L152: 0 | M152: 0 | N152: 0 | T152: 0 | U152: 0 | V152: 0 | W152: 0 | AC152: 0 | AD152: 0 | AE152: 0 | AF152: 0
K153: 0 | L153: 0 | M153: 0 | N153: 0 | T153: 0 | U153: 0 | V153: 0 | W153: 0 | AC153: 0 | AD153: 0 | AE153: 0 | AF153: 0
K154: 0 | L154: 0 | M154: 0 | N154: 0 | T154: 0 | U154: 0 | V154: 0 | W154: 0 | AC154: 0 | AD154: 0 | AE154: 0 | AF154: 0
K155: 0 | L155: 0 | M155: 0 | N155: 0 | T155: 0 | U155: 0 | V155: 0 | W155: 0 | AC155: 0 | AD155: 0 | AE155: 0 | AF155: 0
K156: 0 | L156: 0 | M156: 0 | N156: 0 | T156: 0 | U156: 0 | V156: 0 | W156: 0 | AC156: 0 | AD156: 0 | AE156: 0 | AF156: 0
K157: 0 | L157: 0 | M157: 0 | N157: 0 | T157: 0 | U157: 0 | V157: 0 | W157: 0 | AC157: 0 | AD157: 0 | AE157: 0 | AF157: 0
K158: 0 | L158: 0 | M158: 0 | N158: 0 | T158: 0 | U158: 0 | V158: 0 | W158: 0 | AC158: 0 | AD158: 0 | AE158: 0 | AF158: 0
K159: 0 | L159: 0 | M159: 0 | N159: 0 | T159: 0 | U159: 0 | V159: 0 | W159: 0 | AC159: 0 | AD159: 0 | AE159: 0 | AF159: 0
K160: 0 | L160: 0 | M160: 0 | N160: 0 | T160: 0 | U160: 0 | V160: 0 | W160: 0 | AC160: 0 | AD160: 0 | AE160: 0 | AF160: 0
K161: 0 | L161: 0 | M161: 0 | N161: 0 | T161: 0 | U161: 0 | V161: 0 | W161: 0 | AC161: 0 | AD161: 0 | AE161: 0 | AF161: 0
K162: 0 | L162: 0 | M162: 0 | N162: 0 | T162: 0 | U162: 0 | V162: 0 | W162: 0 | AC162: 0 | AD162: 0 | AE162: 0 | AF162: 0
K163: 0 | L163: 0 | M163: 0 | N163: 0 | T163: 0 | U163: 0 | V163: 0 | W163: 0 | AC163: 0 | AD163: 0 | AE163: 0 | AF163: 0
K164: 0 | L164: 0 | M164: 0 | N164: 0 | T164: 0 | U164: 0 | V164: 0 | W164: 0 | AC164: 0 | AD164: 0 | AE164: 0 | AF164: 0
K165: 0 | L165: 0 | M165: 0 | N165: 0 | T165: 0 | U165: 0 | V165: 0 | W165: 0 | AC165: 0 | AD165: 0 | AE165: 0 | AF165: 0
K166: 0 | L166: 0 | M166: 0 | N166: 0 | T166: 0 | U166: 0 | V166: 0 | W166: 0 | AC166: 0 | AD166: 0 | AE166: 0 | AF166: 0
K167: 0 | L167: 0 | M167: 0 | N167: 0 | T167: 0 | U167: 0 | V167: 0 | W167: 0 | AC167: 0 | AD167: 0 | AE167: 0 | AF167: 0
K168: =IF(B168>0,$I$3*(1-EXP(-$I$4*(A168-$I$5))),0) -> 0 | L168: =IF(C168<>0,((1/(C168)^2)*(K168-B168)^2),(K168-B168)^2) -> 0 | M168: =IF(E168>0,$I$7*(1-EXP(-$I$8*(D168-$I$9))),0) -> 0 | N168: =IF(F168<>0,((1/(F168)^2)*(M168-E168)^2),(M168-E168)^2) -> 0 | T168: =IF(B168>0,$I$3/(1+EXP(-$I$4*(A168-$I$5))),0) -> 0 | U168: =IF(C168<>0,((1/(C168)^2)*(T168-B168)^2),((T168-B168)^2)) -> 0 | V168: =IF(E168>0,$I$7/(1+EXP(-$I$8*(D168-$I$9))),0) -> 0 | W168: =IF(F168<>0,((1/(F168)^2)*(V168-E168)^2),((V168-E168)^2)) -> 0 | AC168: =IF(B168>0,$I$3*(EXP(-EXP(-$I$4*(A168-$I$5)))),0) -> 0 | AD168: =IF(C168<>0,((1/(C168)^2)*(AC168-B168)^2),((AC168-B168)^2)) -> 0 | AE168: =IF(E168>0,$I$7*(EXP(-EXP(-$I$8*(D168-$I$9)))),0) -> 0 | AF168: =IF(F168<>0,((1/(F168)^2)*(AE168-E168)^2),((AE168-E168)^2)) -> 0
K169: 0 | L169: 0 | M169: 0 | N169: 0 | T169: 0 | U169: 0 | V169: 0 | W169: 0 | AC169: 0 | AD169: 0 | AE169: 0 | AF169: 0
K170: 0 | L170: 0 | M170: 0 | N170: 0 | T170: 0 | U170: 0 | V170: 0 | W170: 0 | AC170: 0 | AD170: 0 | AE170: 0 | AF170: 0
K171: 0 | L171: 0 | M171: 0 | N171: 0 | T171: 0 | U171: 0 | V171: 0 | W171: 0 | AC171: 0 | AD171: 0 | AE171: 0 | AF171: 0
K172: 0 | L172: 0 | M172: 0 | N172: 0 | T172: 0 | U172: 0 | V172: 0 | W172: 0 | AC172: 0 | AD172: 0 | AE172: 0 | AF172: 0
K173: 0 | L173: 0 | M173: 0 | N173: 0 | T173: 0 | U173: 0 | V173: 0 | W173: 0 | AC173: 0 | AD173: 0 | AE173: 0 | AF173: 0
K174: 0 | L174: 0 | M174: 0 | N174: 0 | T174: 0 | U174: 0 | V174: 0 | W174: 0 | AC174: 0 | AD174: 0 | AE174: 0 | AF174: 0
K175: 0 | L175: 0 | M175: 0 | N175: 0 | T175: 0 | U175: 0 | V175: 0 | W175: 0 | AC175: 0 | AD175: 0 | AE175: 0 | AF175: 0
K176: 0 | L176: 0 | M176: 0 | N176: 0 | T176: 0 | U176: 0 | V176: 0 | W176: 0 | AC176: 0 | AD176: 0 | AE176: 0 | AF176: 0
K177: 0 | L177: 0 | M177: 0 | N177: 0 | T177: 0 | U177: 0 | V177: 0 | W177: 0 | AC177: 0 | AD177: 0 | AE177: 0 | AF177: 0
K178: 0 | L178: 0 | M178: 0 | N178: 0 | T178: 0 | U178: 0 | V178: 0 | W178: 0 | AC178: 0 | AD178: 0 | AE178: 0 | AF178: 0
K179: 0 | L179: 0 | M179: 0 | N179: 0 | T179: 0 | U179: 0 | V179: 0 | W179: 0 | AC179: 0 | AD179: 0 | AE179: 0 | AF179: 0
K180: 0 | L180: 0 | M180: 0 | N180: 0 | T180: 0 | U180: 0 | V180: 0 | W180: 0 | AC180: 0 | AD180: 0 | AE180: 0 | AF180: 0
K181: 0 | L181: 0 | M181: 0 | N181: 0 | T181: 0 | U181: 0 | V181: 0 | W181: 0 | AC181: 0 | AD181: 0 | AE181: 0 | AF181: 0
K182: 0 | L182: 0 | M182: 0 | N182: 0 | T182: 0 | U182: 0 | V182: 0 | W182: 0 | AC182: 0 | AD182: 0 | AE182: 0 | AF182: 0
K183: 0 | L183: 0 | M183: 0 | N183: 0 | T183: 0 | U183: 0 | V183: 0 | W183: 0 | AC183: 0 | AD183: 0 | AE183: 0 | AF183: 0
K184: 0 | L184: 0 | M184: 0 | N184: 0 | T184: 0 | U184: 0 | V184: 0 | W184: 0 | AC184: 0 | AD184: 0 | AE184: 0 | AF184: 0
K185: 0 | L185: 0 | M185: 0 | N185: 0 | T185: 0 | U185: 0 | V185: 0 | W185: 0 | AC185: 0 | AD185: 0 | AE185: 0 | AF185: 0
K186: 0 | L186: 0 | M186: 0 | N186: 0 | T186: 0 | U186: 0 | V186: 0 | W186: 0 | AC186: 0 | AD186: 0 | AE186: 0 | AF186: 0
K187: 0 | L187: 0 | M187: 0 | N187: 0 | T187: 0 | U187: 0 | V187: 0 | W187: 0 | AC187: 0 | AD187: 0 | AE187: 0 | AF187: 0
K188: 0 | L188: 0 | M188: 0 | N188: 0 | T188: 0 | U188: 0 | V188: 0 | W188: 0 | AC188: 0 | AD188: 0 | AE188: 0 | AF188: 0
K189: 0 | L189: 0 | M189: 0 | N189: 0 | T189: 0 | U189: 0 | V189: 0 | W189: 0 | AC189: 0 | AD189: 0 | AE189: 0 | AF189: 0
K190: 0 | L190: 0 | M190: 0 | N190: 0 | T190: 0 | U190: 0 | V190: 0 | W190: 0 | AC190: 0 | AD190: 0 | AE190: 0 | AF190: 0
K191: 0 | L191: 0 | M191: 0 | N191: 0 | T191: 0 | U191: 0 | V191: 0 | W191: 0 | AC191: 0 | AD191: 0 | AE191: 0 | AF191: 0
K192: 0 | L192: 0 | M192: 0 | N192: 0 | T192: 0 | U192: 0 | V192: 0 | W192: 0 | AC192: 0 | AD192: 0 | AE192: 0 | AF192: 0
K193: 0 | L193: 0 | M193: 0 | N193: 0 | T193: 0 | U193: 0 | V193: 0 | W193: 0 | AC193: 0 | AD193: 0 | AE193: 0 | AF193: 0
K194: 0 | L194: 0 | M194: 0 | N194: 0 | T194: 0 | U194: 0 | V194: 0 | W194: 0 | AC194: 0 | AD194: 0 | AE194: 0 | AF194: 0
K195: 0 | L195: 0 | M195: 0 | N195: 0 | T195: 0 | U195: 0 | V195: 0 | W195: 0 | AC195: 0 | AD195: 0 | AE195: 0 | AF195: 0
K196: 0 | L196: 0 | M196: 0 | N196: 0 | T196: 0 | U196: 0 | V196: 0 | W196: 0 | AC196: 0 | AD196: 0 | AE196: 0 | AF196: 0
K197: 0 | L197: 0 | M197: 0 | N197: 0 | T197: 0 | U197: 0 | V197: 0 | W197: 0 | AC197: 0 | AD197: 0 | AE197: 0 | AF197: 0
K198: 0 | L198: 0 | M198: 0 | N198: 0 | T198: 0 | U198: 0 | V198: 0 | W198: 0 | AC198: 0 | AD198: 0 | AE198: 0 | AF198: 0
K199: 0 | L199: 0 | M199: 0 | N199: 0 | T199: 0 | U199: 0 | V199: 0 | W199: 0 | AC199: 0 | AD199: 0 | AE199: 0 | AF199: 0
K200: 0 | L200: 0 | M200: 0 | N200: 0 | T200: 0 | U200: 0 | V200: 0 | W200: 0 | AC200: 0 | AD200: 0 | AE200: 0 | AF200: 0
... 4 more rows

Sheet Likelihood Ratio Test
S1: Von Bertalanffy 1 | T1: Von Bertalanffy 2 | U1: Dados observados 1 | V1: Dados observados 2 | Y1: Logístico 1 | Z1: Logístico 2 | AA1: Dados Observados 1 | AB1: Dados Observados 2 | AE1: Gompertz 1 | AF1: Gompertz 2 | AG1: Dados Observados 1 | AH1: Dados Observados 2
A2: Data 1 | D2: Data 2 | H2: Conjunto de Dados 1 | K2: Qui Quadr | L2: p | Q2: Idade | S2: =IF(R2<>"",$I$3*(1-EXP(-$I$4*(R2-$I$5))),"") ->  | T2: =IF(R2<>"",$I$8*(1-EXP(-$I$9*(R2-$I$10))),"") ->  | W2: Idade | Y2: =IF(X2<>"",$I$3/(1+EXP(-$I$4*(X2-$I$5))),"") ->  | Z2: =IF(X2<>"",$I$8/(1+EXP(-$I$9*(X2-$I$10))),"") ->  | AC2: Idade | AE2: =IF(AD2<>"",$I$3*EXP(-EXP(-$I$4*(AD2-$I$5))),"") ->  | AF2: =IF(AD2<>"",$I$8*EXP(-EXP(-$I$9*(AD2-$I$10))),"") -> 
A3: Age | B3: Lenght | C3: Standard Deviation | D3: Age | E3: Length | F3: Standard Deviation | H3: Linf | I3: 0,000 | J3: curvas= | K3: 0,000 | L3: 0,000 | S3: =IF(R3<>"",$I$3*(1-EXP(-$I$4*(R3-$I$5))),"") ->  | Y3: =IF(X3<>"",$I$3/(1+EXP(-$I$4*(X3-$I$5))),"") ->  | Z3: =IF(X3<>"",$I$8/(1+EXP(-$I$9*(X3-$I$10))),"") ->  | AE3: =IF(AD3<>"",$I$3*EXP(-EXP(-$I$4*(AD3-$I$5))),"") ->  | AF3: =IF(AD3<>"",$I$8*EXP(-EXP(-$I$9*(AD3-$I$10))),"") -> 
H4: k | I4: 0,000 | J4: Linf= | K4: 0,000 | L4: 0,000
H5: t0 | I5: 0,000 | J5: k= | K5: 0,000 | L5: 0,000
H6: SSR | I6: 0,000 | J6: to= | K6: 0,000 | L6: 0,000
H7: Conjunto de Dados 2
H8: Linf | I8: 0,000 | T8: =IF(R8<>"",$I$8*(1-EXP(-$I$9*(R8-$I$10))),"") -> 
H9: k | I9: 0,000
H10: t0 | I10: 0,000 | P10: idademax
H11: SSR | I11: 0,000 | P11: =$I$5-LN(1-(($I$3-1)/$I$3))/$I$4 -> 
P12: =$I$5-LN(($I$3/($I$3-1))-1)/$I$4 -> 
P13: =$I$5-(LN(LN($I$3/($I$3-1))))/$I$4 -> 
P14: =$I$10-LN(1-(($I$8-1)/$I$8))/$I$9 -> 
P15: =$I$10-LN(($I$8/($I$8-1))-1)/$I$9 -> 
P16: =$I$10-(LN(LN($I$8/($I$8-1))))/$I$9 -> 
S67: =IF(R67<>"",$I$3*(1-EXP(-$I$4*(R67-$I$5))),"") ->  | Y67: =IF(X67<>"",$I$3/(1+EXP(-$I$4*(X67-$I$5))),"") ->  | Z67: =IF(X67<>"",$I$8/(1+EXP(-$I$9*(X67-$I$10))),"") ->  | AE67: =IF(AD67<>"",$I$3*EXP(-EXP(-$I$4*(AD67-$I$5))),"") ->  | AF67: =IF(AD67<>"",$I$8*EXP(-EXP(-$I$9*(AD67-$I$10))),"") -> 
T72: =IF(R72<>"",$I$8*(1-EXP(-$I$9*(R72-$I$10))),"") -> 
S131: =IF(R131<>"",$I$3*(1-EXP(-$I$4*(R131-$I$5))),"") ->  | Y131: =IF(X131<>"",$I$3/(1+EXP(-$I$4*(X131-$I$5))),"") ->  | Z131: =IF(X131<>"",$I$8/(1+EXP(-$I$9*(X131-$I$10))),"") ->  | AE131: =IF(AD131<>"",$I$3*EXP(-EXP(-$I$4*(AD131-$I$5))),"") ->  | AF131: =IF(AD131<>"",$I$8*EXP(-EXP(-$I$9*(AD131-$I$10))),"") -> 
T136: =IF(R136<>"",$I$8*(1-EXP(-$I$9*(R136-$I$10))),"") -> 
S195: =IF(R195<>"",$I$3*(1-EXP(-$I$4*(R195-$I$5))),"") ->  | Y195: =IF(X195<>"",$I$3/(1+EXP(-$I$4*(X195-$I$5))),"") ->  | Z195: =IF(X195<>"",$I$8/(1+EXP(-$I$9*(X195-$I$10))),"") ->  | AE195: =IF(AD195<>"",$I$3*EXP(-EXP(-$I$4*(AD195-$I$5))),"") ->  | AF195: =IF(AD195<>"",$I$8*EXP(-EXP(-$I$9*(AD195-$I$10))),"") -> 
T200: =IF(R200<>"",$I$8*(1-EXP(-$I$9*(R200-$I$10))),"") -> 
S259: =IF(R259<>"",$I$3*(1-EXP(-$I$4*(R259-$I$5))),"") ->  | Y259: =IF(X259<>"",$I$3/(1+EXP(-$I$4*(X259-$I$5))),"") ->  | Z259: =IF(X259<>"",$I$8/(1+EXP(-$I$9*(X259-$I$10))),"") ->  | AE259: =IF(AD259<>"",$I$3*EXP(-EXP(-$I$4*(AD259-$I$5))),"") ->  | AF259: =IF(AD259<>"",$I$8*EXP(-EXP(-$I$9*(AD259-$I$10))),"") -> 
T264: =IF(R264<>"",$I$8*(1-EXP(-$I$9*(R264-$I$10))),"") -> 
S323: =IF(R323<>"",$I$3*(1-EXP(-$I$4*(R323-$I$5))),"") ->  | Y323: =IF(X323<>"",$I$3/(1+EXP(-$I$4*(X323-$I$5))),"") ->  | Z323: =IF(X323<>"",$I$8/(1+EXP(-$I$9*(X323-$I$10))),"") ->  | AE323: =IF(AD323<>"",$I$3*EXP(-EXP(-$I$4*(AD323-$I$5))),"") ->  | AF323: =IF(AD323<>"",$I$8*EXP(-EXP(-$I$9*(AD323-$I$10))),"") -> 
T328: =IF(R328<>"",$I$8*(1-EXP(-$I$9*(R328-$I$10))),"") -> 
S387: =IF(R387<>"",$I$3*(1-EXP(-$I$4*(R387-$I$5))),"") ->  | Y387: =IF(X387<>"",$I$3/(1+EXP(-$I$4*(X387-$I$5))),"") ->  | Z387: =IF(X387<>"",$I$8/(1+EXP(-$I$9*(X387-$I$10))),"") ->  | AE387: =IF(AD387<>"",$I$3*EXP(-EXP(-$I$4*(AD387-$I$5))),"") ->  | AF387: =IF(AD387<>"",$I$8*EXP(-EXP(-$I$9*(AD387-$I$10))),"") -> 
T392: =IF(R392<>"",$I$8*(1-EXP(-$I$9*(R392-$I$10))),"") -> 
S451: =IF(R451<>"",$I$3*(1-EXP(-$I$4*(R451-$I$5))),"") ->  | Y451: =IF(X451<>"",$I$3/(1+EXP(-$I$4*(X451-$I$5))),"") ->  | Z451: =IF(X451<>"",$I$8/(1+EXP(-$I$9*(X451-$I$10))),"") ->  | AE451: =IF(AD451<>"",$I$3*EXP(-EXP(-$I$4*(AD451-$I$5))),"") ->  | AF451: =IF(AD451<>"",$I$8*EXP(-EXP(-$I$9*(AD451-$I$10))),"") -> 
T456: =IF(R456<>"",$I$8*(1-EXP(-$I$9*(R456-$I$10))),"") -> 
S515: =IF(R515<>"",$I$3*(1-EXP(-$I$4*(R515-$I$5))),"") ->  | Y515: =IF(X515<>"",$I$3/(1+EXP(-$I$4*(X515-$I$5))),"") ->  | Z515: =IF(X515<>"",$I$8/(1+EXP(-$I$9*(X515-$I$10))),"") ->  | AE515: =IF(AD515<>"",$I$3*EXP(-EXP(-$I$4*(AD515-$I$5))),"") ->  | AF515: =IF(AD515<>"",$I$8*EXP(-EXP(-$I$9*(AD515-$I$10))),"") -> 
T520: =IF(R520<>"",$I$8*(1-EXP(-$I$9*(R520-$I$10))),"") -> 
S579: =IF(R579<>"",$I$3*(1-EXP(-$I$4*(R579-$I$5))),"") ->  | Y579: =IF(X579<>"",$I$3/(1+EXP(-$I$4*(X579-$I$5))),"") ->  | Z579: =IF(X579<>"",$I$8/(1+EXP(-$I$9*(X579-$I$10))),"") ->  | AE579: =IF(AD579<>"",$I$3*EXP(-EXP(-$I$4*(AD579-$I$5))),"") ->  | AF579: =IF(AD579<>"",$I$8*EXP(-EXP(-$I$9*(AD579-$I$10))),"") -> 
T584: =IF(R584<>"",$I$8*(1-EXP(-$I$9*(R584-$I$10))),"") -> 
S643: =IF(R643<>"",$I$3*(1-EXP(-$I$4*(R643-$I$5))),"") ->  | Y643: =IF(X643<>"",$I$3/(1+EXP(-$I$4*(X643-$I$5))),"") ->  | Z643: =IF(X643<>"",$I$8/(1+EXP(-$I$9*(X643-$I$10))),"") ->  | AE643: =IF(AD643<>"",$I$3*EXP(-EXP(-$I$4*(AD643-$I$5))),"") ->  | AF643: =IF(AD643<>"",$I$8*EXP(-EXP(-$I$9*(AD643-$I$10))),"") -> 
T648: =IF(R648<>"",$I$8*(1-EXP(-$I$9*(R648-$I$10))),"") -> 
S707: =IF(R707<>"",$I$3*(1-EXP(-$I$4*(R707-$I$5))),"") ->  | Y707: =IF(X707<>"",$I$3/(1+EXP(-$I$4*(X707-$I$5))),"") ->  | Z707: =IF(X707<>"",$I$8/(1+EXP(-$I$9*(X707-$I$10))),"") ->  | AE707: =IF(AD707<>"",$I$3*EXP(-EXP(-$I$4*(AD707-$I$5))),"") ->  | AF707: =IF(AD707<>"",$I$8*EXP(-EXP(-$I$9*(AD707-$I$10))),"") -> 
T712: =IF(R712<>"",$I$8*(1-EXP(-$I$9*(R712-$I$10))),"") -> 
S771: =IF(R771<>"",$I$3*(1-EXP(-$I$4*(R771-$I$5))),"") ->  | Y771: =IF(X771<>"",$I$3/(1+EXP(-$I$4*(X771-$I$5))),"") ->  | Z771: =IF(X771<>"",$I$8/(1+EXP(-$I$9*(X771-$I$10))),"") ->  | AE771: =IF(AD771<>"",$I$3*EXP(-EXP(-$I$4*(AD771-$I$5))),"") ->  | AF771: =IF(AD771<>"",$I$8*EXP(-EXP(-$I$9*(AD771-$I$10))),"") -> 
T776: =IF(R776<>"",$I$8*(1-EXP(-$I$9*(R776-$I$10))),"") -> 
S835: =IF(R835<>"",$I$3*(1-EXP(-$I$4*(R835-$I$5))),"") ->  | Y835: =IF(X835<>"",$I$3/(1+EXP(-$I$4*(X835-$I$5))),"") ->  | Z835: =IF(X835<>"",$I$8/(1+EXP(-$I$9*(X835-$I$10))),"") ->  | AE835: =IF(AD835<>"",$I$3*EXP(-EXP(-$I$4*(AD835-$I$5))),"") ->  | AF835: =IF(AD835<>"",$I$8*EXP(-EXP(-$I$9*(AD835-$I$10))),"") -> 
T840: =IF(R840<>"",$I$8*(1-EXP(-$I$9*(R840-$I$10))),"") -> 
S899: =IF(R899<>"",$I$3*(1-EXP(-$I$4*(R899-$I$5))),"") ->  | Y899: =IF(X899<>"",$I$3/(1+EXP(-$I$4*(X899-$I$5))),"") ->  | Z899: =IF(X899<>"",$I$8/(1+EXP(-$I$9*(X899-$I$10))),"") ->  | AE899: =IF(AD899<>"",$I$3*EXP(-EXP(-$I$4*(AD899-$I$5))),"") ->  | AF899: =IF(AD899<>"",$I$8*EXP(-EXP(-$I$9*(AD899-$I$10))),"") -> 
T904: =IF(R904<>"",$I$8*(1-EXP(-$I$9*(R904-$I$10))),"") -> 
S963: =IF(R963<>"",$I$3*(1-EXP(-$I$4*(R963-$I$5))),"") ->  | Y963: =IF(X963<>"",$I$3/(1+EXP(-$I$4*(X963-$I$5))),"") ->  | Z963: =IF(X963<>"",$I$8/(1+EXP(-$I$9*(X963-$I$10))),"") ->  | AE963: =IF(AD963<>"",$I$3*EXP(-EXP(-$I$4*(AD963-$I$5))),"") ->  | AF963: =IF(AD963<>"",$I$8*EXP(-EXP(-$I$9*(AD963-$I$10))),"") -> 
T968: =IF(R968<>"",$I$8*(1-EXP(-$I$9*(R968-$I$10))),"") -> 
S1027: =IF(R1027<>"",$I$3*(1-EXP(-$I$4*(R1027-$I$5))),"") ->  | Y1027: =IF(X1027<>"",$I$3/(1+EXP(-$I$4*(X1027-$I$5))),"") ->  | Z1027: =IF(X1027<>"",$I$8/(1+EXP(-$I$9*(X1027-$I$10))),"") ->  | AE1027: =IF(AD1027<>"",$I$3*EXP(-EXP(-$I$4*(AD1027-$I$5))),"") ->  | AF1027: =IF(AD1027<>"",$I$8*EXP(-EXP(-$I$9*(AD1027-$I$10))),"") -> 
T1032: =IF(R1032<>"",$I$8*(1-EXP(-$I$9*(R1032-$I$10))),"") -> 
S1091: =IF(R1091<>"",$I$3*(1-EXP(-$I$4*(R1091-$I$5))),"") ->  | Y1091: =IF(X1091<>"",$I$3/(1+EXP(-$I$4*(X1091-$I$5))),"") ->  | Z1091: =IF(X1091<>"",$I$8/(1+EXP(-$I$9*(X1091-$I$10))),"") ->  | AE1091: =IF(AD1091<>"",$I$3*EXP(-EXP(-$I$4*(AD1091-$I$5))),"") ->  | AF1091: =IF(AD1091<>"",$I$8*EXP(-EXP(-$I$9*(AD1091-$I$10))),"") -> 
T1096: =IF(R1096<>"",$I$8*(1-EXP(-$I$9*(R1096-$I$10))),"") -> 
S1155: =IF(R1155<>"",$I$3*(1-EXP(-$I$4*(R1155-$I$5))),"") ->  | Y1155: =IF(X1155<>"",$I$3/(1+EXP(-$I$4*(X1155-$I$5))),"") ->  | Z1155: =IF(X1155<>"",$I$8/(1+EXP(-$I$9*(X1155-$I$10))),"") ->  | AE1155: =IF(AD1155<>"",$I$3*EXP(-EXP(-$I$4*(AD1155-$I$5))),"") ->  | AF1155: =IF(AD1155<>"",$I$8*EXP(-EXP(-$I$9*(AD1155-$I$10))),"") -> 
T1160: =IF(R1160<>"",$I$8*(1-EXP(-$I$9*(R1160-$I$10))),"") -> 
S1219: =IF(R1219<>"",$I$3*(1-EXP(-$I$4*(R1219-$I$5))),"") ->  | Y1219: =IF(X1219<>"",$I$3/(1+EXP(-$I$4*(X1219-$I$5))),"") ->  | Z1219: =IF(X1219<>"",$I$8/(1+EXP(-$I$9*(X1219-$I$10))),"") ->  | AE1219: =IF(AD1219<>"",$I$3*EXP(-EXP(-$I$4*(AD1219-$I$5))),"") ->  | AF1219: =IF(AD1219<>"",$I$8*EXP(-EXP(-$I$9*(AD1219-$I$10))),"") -> 
T1224: =IF(R1224<>"",$I$8*(1-EXP(-$I$9*(R1224-$I$10))),"") -> 
S1283: =IF(R1283<>"",$I$3*(1-EXP(-$I$4*(R1283-$I$5))),"") ->  | Y1283: =IF(X1283<>"",$I$3/(1+EXP(-$I$4*(X1283-$I$5))),"") ->  | Z1283: =IF(X1283<>"",$I$8/(1+EXP(-$I$9*(X1283-$I$10))),"") ->  | AE1283: =IF(AD1283<>"",$I$3*EXP(-EXP(-$I$4*(AD1283-$I$5))),"") ->  | AF1283: =IF(AD1283<>"",$I$8*EXP(-EXP(-$I$9*(AD1283-$I$10))),"") -> 
T1288: =IF(R1288<>"",$I$8*(1-EXP(-$I$9*(R1288-$I$10))),"") -> 
S1347: =IF(R1347<>"",$I$3*(1-EXP(-$I$4*(R1347-$I$5))),"") ->  | Y1347: =IF(X1347<>"",$I$3/(1+EXP(-$I$4*(X1347-$I$5))),"") ->  | Z1347: =IF(X1347<>"",$I$8/(1+EXP(-$I$9*(X1347-$I$10))),"") ->  | AE1347: =IF(AD1347<>"",$I$3*EXP(-EXP(-$I$4*(AD1347-$I$5))),"") ->  | AF1347: =IF(AD1347<>"",$I$8*EXP(-EXP(-$I$9*(AD1347-$I$10))),"") -> 
T1352: =IF(R1352<>"",$I$8*(1-EXP(-$I$9*(R1352-$I$10))),"") -> 
S1411: =IF(R1411<>"",$I$3*(1-EXP(-$I$4*(R1411-$I$5))),"") ->  | Y1411: =IF(X1411<>"",$I$3/(1+EXP(-$I$4*(X1411-$I$5))),"") ->  | Z1411: =IF(X1411<>"",$I$8/(1+EXP(-$I$9*(X1411-$I$10))),"") ->  | AE1411: =IF(AD1411<>"",$I$3*EXP(-EXP(-$I$4*(AD1411-$I$5))),"") ->  | AF1411: =IF(AD1411<>"",$I$8*EXP(-EXP(-$I$9*(AD1411-$I$10))),"") -> 
T1416: =IF(R1416<>"",$I$8*(1-EXP(-$I$9*(R1416-$I$10))),"") -> 
S1475: =IF(R1475<>"",$I$3*(1-EXP(-$I$4*(R1475-$I$5))),"") ->  | Y1475: =IF(X1475<>"",$I$3/(1+EXP(-$I$4*(X1475-$I$5))),"") ->  | Z1475: =IF(X1475<>"",$I$8/(1+EXP(-$I$9*(X1475-$I$10))),"") ->  | AE1475: =IF(AD1475<>"",$I$3*EXP(-EXP(-$I$4*(AD1475-$I$5))),"") ->  | AF1475: =IF(AD1475<>"",$I$8*EXP(-EXP(-$I$9*(AD1475-$I$10))),"") -> 
T1480: =IF(R1480<>"",$I$8*(1-EXP(-$I$9*(R1480-$I$10))),"") -> 
S1539: =IF(R1539<>"",$I$3*(1-EXP(-$I$4*(R1539-$I$5))),"") ->  | Y1539: =IF(X1539<>"",$I$3/(1+EXP(-$I$4*(X1539-$I$5))),"") ->  | Z1539: =IF(X1539<>"",$I$8/(1+EXP(-$I$9*(X1539-$I$10))),"") ->  | AE1539: =IF(AD1539<>"",$I$3*EXP(-EXP(-$I$4*(AD1539-$I$5))),"") ->  | AF1539: =IF(AD1539<>"",$I$8*EXP(-EXP(-$I$9*(AD1539-$I$10))),"") -> 
T1544: =IF(R1544<>"",$I$8*(1-EXP(-$I$9*(R1544-$I$10))),"") -> 
S1603: =IF(R1603<>"",$I$3*(1-EXP(-$I$4*(R1603-$I$5))),"") ->  | Y1603: =IF(X1603<>"",$I$3/(1+EXP(-$I$4*(X1603-$I$5))),"") ->  | Z1603: =IF(X1603<>"",$I$8/(1+EXP(-$I$9*(X1603-$I$10))),"") ->  | AE1603: =IF(AD1603<>"",$I$3*EXP(-EXP(-$I$4*(AD1603-$I$5))),"") ->  | AF1603: =IF(AD1603<>"",$I$8*EXP(-EXP(-$I$9*(AD1603-$I$10))),"") -> 
T1608: =IF(R1608<>"",$I$8*(1-EXP(-$I$9*(R1608-$I$10))),"") -> 
S1667: =IF(R1667<>"",$I$3*(1-EXP(-$I$4*(R1667-$I$5))),"") ->  | Y1667: =IF(X1667<>"",$I$3/(1+EXP(-$I$4*(X1667-$I$5))),"") ->  | Z1667: =IF(X1667<>"",$I$8/(1+EXP(-$I$9*(X1667-$I$10))),"") ->  | AE1667: =IF(AD1667<>"",$I$3*EXP(-EXP(-$I$4*(AD1667-$I$5))),"") ->  | AF1667: =IF(AD1667<>"",$I$8*EXP(-EXP(-$I$9*(AD1667-$I$10))),"") -> 
T1672: =IF(R1672<>"",$I$8*(1-EXP(-$I$9*(R1672-$I$10))),"") -> 
S1731: =IF(R1731<>"",$I$3*(1-EXP(-$I$4*(R1731-$I$5))),"") ->  | Y1731: =IF(X1731<>"",$I$3/(1+EXP(-$I$4*(X1731-$I$5))),"") ->  | Z1731: =IF(X1731<>"",$I$8/(1+EXP(-$I$9*(X1731-$I$10))),"") ->  | AE1731: =IF(AD1731<>"",$I$3*EXP(-EXP(-$I$4*(AD1731-$I$5))),"") ->  | AF1731: =IF(AD1731<>"",$I$8*EXP(-EXP(-$I$9*(AD1731-$I$10))),"") -> 
T1736: =IF(R1736<>"",$I$8*(1-EXP(-$I$9*(R1736-$I$10))),"") -> 
S1795: =IF(R1795<>"",$I$3*(1-EXP(-$I$4*(R1795-$I$5))),"") ->  | Y1795: =IF(X1795<>"",$I$3/(1+EXP(-$I$4*(X1795-$I$5))),"") ->  | Z1795: =IF(X1795<>"",$I$8/(1+EXP(-$I$9*(X1795-$I$10))),"") ->  | AE1795: =IF(AD1795<>"",$I$3*EXP(-EXP(-$I$4*(AD1795-$I$5))),"") ->  | AF1795: =IF(AD1795<>"",$I$8*EXP(-EXP(-$I$9*(AD1795-$I$10))),"") -> 
T1800: =IF(R1800<>"",$I$8*(1-EXP(-$I$9*(R1800-$I$10))),"") -> 
S1859: =IF(R1859<>"",$I$3*(1-EXP(-$I$4*(R1859-$I$5))),"") ->  | Y1859: =IF(X1859<>"",$I$3/(1+EXP(-$I$4*(X1859-$I$5))),"") ->  | Z1859: =IF(X1859<>"",$I$8/(1+EXP(-$I$9*(X1859-$I$10))),"") ->  | AE1859: =IF(AD1859<>"",$I$3*EXP(-EXP(-$I$4*(AD1859-$I$5))),"") ->  | AF1859: =IF(AD1859<>"",$I$8*EXP(-EXP(-$I$9*(AD1859-$I$10))),"") -> 
T1864: =IF(R1864<>"",$I$8*(1-EXP(-$I$9*(R1864-$I$10))),"") -> 
S1923: =IF(R1923<>"",$I$3*(1-EXP(-$I$4*(R1923-$I$5))),"") ->  | Y1923: =IF(X1923<>"",$I$3/(1+EXP(-$I$4*(X1923-$I$5))),"") ->  | Z1923: =IF(X1923<>"",$I$8/(1+EXP(-$I$9*(X1923-$I$10))),"") ->  | AE1923: =IF(AD1923<>"",$I$3*EXP(-EXP(-$I$4*(AD1923-$I$5))),"") ->  | AF1923: =IF(AD1923<>"",$I$8*EXP(-EXP(-$I$9*(AD1923-$I$10))),"") -> 
T1928: =IF(R1928<>"",$I$8*(1-EXP(-$I$9*(R1928-$I$10))),"") -> 
S1987: =IF(R1987<>"",$I$3*(1-EXP(-$I$4*(R1987-$I$5))),"") ->  | Y1987: =IF(X1987<>"",$I$3/(1+EXP(-$I$4*(X1987-$I$5))),"") ->  | Z1987: =IF(X1987<>"",$I$8/(1+EXP(-$I$9*(X1987-$I$10))),"") ->  | AE1987: =IF(AD1987<>"",$I$3*EXP(-EXP(-$I$4*(AD1987-$I$5))),"") ->  | AF1987: =IF(AD1987<>"",$I$8*EXP(-EXP(-$I$9*(AD1987-$I$10))),"") -> 
T1992: =IF(R1992<>"",$I$8*(1-EXP(-$I$9*(R1992-$I$10))),"") -> 
S2051: =IF(R2051<>"",$I$3*(1-EXP(-$I$4*(R2051-$I$5))),"") ->  | Y2051: =IF(X2051<>"",$I$3/(1+EXP(-$I$4*(X2051-$I$5))),"") ->  | Z2051: =IF(X2051<>"",$I$8/(1+EXP(-$I$9*(X2051-$I$10))),"") ->  | AE2051: =IF(AD2051<>"",$I$3*EXP(-EXP(-$I$4*(AD2051-$I$5))),"") ->  | AF2051: =IF(AD2051<>"",$I$8*EXP(-EXP(-$I$9*(AD2051-$I$10))),"") -> 
T2056: =IF(R2056<>"",$I$8*(1-EXP(-$I$9*(R2056-$I$10))),"") -> 
S2115: =IF(R2115<>"",$I$3*(1-EXP(-$I$4*(R2115-$I$5))),"") ->  | Y2115: =IF(X2115<>"",$I$3/(1+EXP(-$I$4*(X2115-$I$5))),"") ->  | Z2115: =IF(X2115<>"",$I$8/(1+EXP(-$I$9*(X2115-$I$10))),"") ->  | AE2115: =IF(AD2115<>"",$I$3*EXP(-EXP(-$I$4*(AD2115-$I$5))),"") ->  | AF2115: =IF(AD2115<>"",$I$8*EXP(-EXP(-$I$9*(AD2115-$I$10))),"") -> 
T2120: =IF(R2120<>"",$I$8*(1-EXP(-$I$9*(R2120-$I$10))),"") -> 
S2179: =IF(R2179<>"",$I$3*(1-EXP(-$I$4*(R2179-$I$5))),"") ->  | Y2179: =IF(X2179<>"",$I$3/(1+EXP(-$I$4*(X2179-$I$5))),"") ->  | Z2179: =IF(X2179<>"",$I$8/(1+EXP(-$I$9*(X2179-$I$10))),"") ->  | AE2179: =IF(AD2179<>"",$I$3*EXP(-EXP(-$I$4*(AD2179-$I$5))),"") ->  | AF2179: =IF(AD2179<>"",$I$8*EXP(-EXP(-$I$9*(AD2179-$I$10))),"") -> 
T2184: =IF(R2184<>"",$I$8*(1-EXP(-$I$9*(R2184-$I$10))),"") -> 
T2185: =IF(R2185<>"",$I$8*(1-EXP(-$I$9*(R2185-$I$10))),"") -> 
S2186: =IF(R2186<>"",$I$3*(1-EXP(-$I$4*(R2186-$I$5))),"") ->  | T2186: =IF(R2186<>"",$I$8*(1-EXP(-$I$9*(R2186-$I$10))),"") ->  | Y2186: =IF(X2186<>"",$I$3/(1+EXP(-$I$4*(X2186-$I$5))),"") ->  | Z2186: =IF(X2186<>"",$I$8/(1+EXP(-$I$9*(X2186-$I$10))),"") ->  | AE2186: =IF(AD2186<>"",$I$3*EXP(-EXP(-$I$4*(AD2186-$I$5))),"") ->  | AF2186: =IF(AD2186<>"",$I$8*EXP(-EXP(-$I$9*(AD2186-$I$10))),"") -> 
S2250: =IF(R2250<>"",$I$3*(1-EXP(-$I$4*(R2250-$I$5))),"") ->  | T2250: =IF(R2250<>"",$I$8*(1-EXP(-$I$9*(R2250-$I$10))),"") ->  | Y2250: =IF(X2250<>"",$I$3/(1+EXP(-$I$4*(X2250-$I$5))),"") ->  | Z2250: =IF(X2250<>"",$I$8/(1+EXP(-$I$9*(X2250-$I$10))),"") ->  | AE2250: =IF(AD2250<>"",$I$3*EXP(-EXP(-$I$4*(AD2250-$I$5))),"") ->  | AF2250: =IF(AD2250<>"",$I$8*EXP(-EXP(-$I$9*(AD2250-$I$10))),"") -> 
S2314: =IF(R2314<>"",$I$3*(1-EXP(-$I$4*(R2314-$I$5))),"") ->  | T2314: =IF(R2314<>"",$I$8*(1-EXP(-$I$9*(R2314-$I$10))),"") ->  | Y2314: =IF(X2314<>"",$I$3/(1+EXP(-$I$4*(X2314-$I$5))),"") ->  | Z2314: =IF(X2314<>"",$I$8/(1+EXP(-$I$9*(X2314-$I$10))),"") ->  | AE2314: =IF(AD2314<>"",$I$3*EXP(-EXP(-$I$4*(AD2314-$I$5))),"") ->  | AF2314: =IF(AD2314<>"",$I$8*EXP(-EXP(-$I$9*(AD2314-$I$10))),"") -> 
S2378: =IF(R2378<>"",$I$3*(1-EXP(-$I$4*(R2378-$I$5))),"") ->  | T2378: =IF(R2378<>"",$I$8*(1-EXP(-$I$9*(R2378-$I$10))),"") ->  | Y2378: =IF(X2378<>"",$I$3/(1+EXP(-$I$4*(X2378-$I$5))),"") ->  | Z2378: =IF(X2378<>"",$I$8/(1+EXP(-$I$9*(X2378-$I$10))),"") ->  | AE2378: =IF(AD2378<>"",$I$3*EXP(-EXP(-$I$4*(AD2378-$I$5))),"") ->  | AF2378: =IF(AD2378<>"",$I$8*EXP(-EXP(-$I$9*(AD2378-$I$10))),"") -> 
S2442: =IF(R2442<>"",$I$3*(1-EXP(-$I$4*(R2442-$I$5))),"") ->  | T2442: =IF(R2442<>"",$I$8*(1-EXP(-$I$9*(R2442-$I$10))),"") ->  | Y2442: =IF(X2442<>"",$I$3/(1+EXP(-$I$4*(X2442-$I$5))),"") ->  | Z2442: =IF(X2442<>"",$I$8/(1+EXP(-$I$9*(X2442-$I$10))),"") ->  | AE2442: =IF(AD2442<>"",$I$3*EXP(-EXP(-$I$4*(AD2442-$I$5))),"") ->  | AF2442: =IF(AD2442<>"",$I$8*EXP(-EXP(-$I$9*(AD2442-$I$10))),"") -> 
S2506: =IF(R2506<>"",$I$3*(1-EXP(-$I$4*(R2506-$I$5))),"") ->  | T2506: =IF(R2506<>"",$I$8*(1-EXP(-$I$9*(R2506-$I$10))),"") ->  | Y2506: =IF(X2506<>"",$I$3/(1+EXP(-$I$4*(X2506-$I$5))),"") ->  | Z2506: =IF(X2506<>"",$I$8/(1+EXP(-$I$9*(X2506-$I$10))),"") ->  | AE2506: =IF(AD2506<>"",$I$3*EXP(-EXP(-$I$4*(AD2506-$I$5))),"") ->  | AF2506: =IF(AD2506<>"",$I$8*EXP(-EXP(-$I$9*(AD2506-$I$10))),"") -> 
S2570: =IF(R2570<>"",$I$3*(1-EXP(-$I$4*(R2570-$I$5))),"") ->  | T2570: =IF(R2570<>"",$I$8*(1-EXP(-$I$9*(R2570-$I$10))),"") ->  | Y2570: =IF(X2570<>"",$I$3/(1+EXP(-$I$4*(X2570-$I$5))),"") ->  | Z2570: =IF(X2570<>"",$I$8/(1+EXP(-$I$9*(X2570-$I$10))),"") ->  | AE2570: =IF(AD2570<>"",$I$3*EXP(-EXP(-$I$4*(AD2570-$I$5))),"") ->  | AF2570: =IF(AD2570<>"",$I$8*EXP(-EXP(-$I$9*(AD2570-$I$10))),"") -> 
S2634: =IF(R2634<>"",$I$3*(1-EXP(-$I$4*(R2634-$I$5))),"") ->  | T2634: =IF(R2634<>"",$I$8*(1-EXP(-$I$9*(R2634-$I$10))),"") ->  | Y2634: =IF(X2634<>"",$I$3/(1+EXP(-$I$4*(X2634-$I$5))),"") ->  | Z2634: =IF(X2634<>"",$I$8/(1+EXP(-$I$9*(X2634-$I$10))),"") ->  | AE2634: =IF(AD2634<>"",$I$3*EXP(-EXP(-$I$4*(AD2634-$I$5))),"") ->  | AF2634: =IF(AD2634<>"",$I$8*EXP(-EXP(-$I$9*(AD2634-$I$10))),"") -> 
S2698: =IF(R2698<>"",$I$3*(1-EXP(-$I$4*(R2698-$I$5))),"") ->  | T2698: =IF(R2698<>"",$I$8*(1-EXP(-$I$9*(R2698-$I$10))),"") ->  | Y2698: =IF(X2698<>"",$I$3/(1+EXP(-$I$4*(X2698-$I$5))),"") ->  | Z2698: =IF(X2698<>"",$I$8/(1+EXP(-$I$9*(X2698-$I$10))),"") ->  | AE2698: =IF(AD2698<>"",$I$3*EXP(-EXP(-$I$4*(AD2698-$I$5))),"") ->  | AF2698: =IF(AD2698<>"",$I$8*EXP(-EXP(-$I$9*(AD2698-$I$10))),"") -> 
S2762: =IF(R2762<>"",$I$3*(1-EXP(-$I$4*(R2762-$I$5))),"") ->  | T2762: =IF(R2762<>"",$I$8*(1-EXP(-$I$9*(R2762-$I$10))),"") ->  | Y2762: =IF(X2762<>"",$I$3/(1+EXP(-$I$4*(X2762-$I$5))),"") ->  | Z2762: =IF(X2762<>"",$I$8/(1+EXP(-$I$9*(X2762-$I$10))),"") ->  | AE2762: =IF(AD2762<>"",$I$3*EXP(-EXP(-$I$4*(AD2762-$I$5))),"") ->  | AF2762: =IF(AD2762<>"",$I$8*EXP(-EXP(-$I$9*(AD2762-$I$10))),"") -> 
S2826: =IF(R2826<>"",$I$3*(1-EXP(-$I$4*(R2826-$I$5))),"") ->  | T2826: =IF(R2826<>"",$I$8*(1-EXP(-$I$9*(R2826-$I$10))),"") ->  | Y2826: =IF(X2826<>"",$I$3/(1+EXP(-$I$4*(X2826-$I$5))),"") ->  | Z2826: =IF(X2826<>"",$I$8/(1+EXP(-$I$9*(X2826-$I$10))),"") ->  | AE2826: =IF(AD2826<>"",$I$3*EXP(-EXP(-$I$4*(AD2826-$I$5))),"") ->  | AF2826: =IF(AD2826<>"",$I$8*EXP(-EXP(-$I$9*(AD2826-$I$10))),"") -> 
S2890: =IF(R2890<>"",$I$3*(1-EXP(-$I$4*(R2890-$I$5))),"") ->  | T2890: =IF(R2890<>"",$I$8*(1-EXP(-$I$9*(R2890-$I$10))),"") ->  | Y2890: =IF(X2890<>"",$I$3/(1+EXP(-$I$4*(X2890-$I$5))),"") ->  | Z2890: =IF(X2890<>"",$I$8/(1+EXP(-$I$9*(X2890-$I$10))),"") ->  | AE2890: =IF(AD2890<>"",$I$3*EXP(-EXP(-$I$4*(AD2890-$I$5))),"") ->  | AF2890: =IF(AD2890<>"",$I$8*EXP(-EXP(-$I$9*(AD2890-$I$10))),"") -> 
S2954: =IF(R2954<>"",$I$3*(1-EXP(-$I$4*(R2954-$I$5))),"") ->  | T2954: =IF(R2954<>"",$I$8*(1-EXP(-$I$9*(R2954-$I$10))),"") ->  | Y2954: =IF(X2954<>"",$I$3/(1+EXP(-$I$4*(X2954-$I$5))),"") ->  | Z2954: =IF(X2954<>"",$I$8/(1+EXP(-$I$9*(X2954-$I$10))),"") ->  | AE2954: =IF(AD2954<>"",$I$3*EXP(-EXP(-$I$4*(AD2954-$I$5))),"") ->  | AF2954: =IF(AD2954<>"",$I$8*EXP(-EXP(-$I$9*(AD2954-$I$10))),"") -> 

Sheet Punctual Comparison
S1: t1 | T1: L(t) | W1: c | X1: L-1(t) | AD1: Von Bertalanffy Curva 1 | AE1: Logístico Curva 1 | AF1: Gompertz Curva 1 | AG1: Von Bertalanffy Curva 2 | AH1: Logístico Cuva 2 | AI1: Gompertz Curva 2
H2: Conjunto de Dados 1 | P2: INP1 | Q2: 0,000 | S2: 0,000 | T2: =$I$3*(1-EXP(-$I$4*(S2-$I$5))) -> 0 | U2: VB | W2: 0,000 | X2: =$I$5-LN(1-($W$2/$I$3))/$I$4 ->  | Y2: VB | Z2: INP1 | AA2: 0,000 | AB2: Idade | AD2: =IF(AC2<>"",$I$3*(1-EXP(-$I$4*(AC2-$I$5))),"") ->  | AE2: =IF(AC2<>"",$I$3/(1+EXP(-$I$4*(AC2-$I$5))),"") ->  | AF2: =IF(AC2<>"",$I$3*EXP(-EXP(-$I$4*(AC2-$I$5))),"") ->  | AG2: =IF(AC2<>"",$I$8*(1-EXP(-$I$9*(AC2-$I$10))),"") ->  | AH2: =IF(AC2<>"",$I$8/(1+EXP(-$I$9*(AC2-$I$10))),"") ->  | AI2: =IF(AC2<>"",$I$8*EXP(-EXP(-$I$9*(AC2-$I$10))),"") -> 
H3: Linf | I3: 0,000 | P3: INP2 | Q3: 0,000 | T3: =$I$3/(1+EXP(-$I$4*(S2-$I$5))) -> 0 | U3: L | X3: =$I$5-LN(($I$3/$W$2)-1)/$I$4 ->  | Y3: L | Z3: INP2 | AA3: 0,000 | AD3: =IF(AC3<>"",$I$3*(1-EXP(-$I$4*(AC3-$I$5))),"") ->  | AE3: =IF(AC3<>"",$I$3/(1+EXP(-$I$4*(AC3-$I$5))),"") ->  | AF3: =IF(AC3<>"",$I$3*EXP(-EXP(-$I$4*(AC3-$I$5))),"") ->  | AG3: =IF(AC3<>"",$I$8*(1-EXP(-$I$9*(AC3-$I$10))),"") ->  | AH3: =IF(AC3<>"",$I$8/(1+EXP(-$I$9*(AC3-$I$10))),"") ->  | AI3: =IF(AC3<>"",$I$8*EXP(-EXP(-$I$9*(AC3-$I$10))),"") -> 
H4: k | I4: 0,000 | T4: =$I$3*EXP(-EXP(-$I$4*(S2-$I$5))) -> 0 | U4: G | X4: =$I$5-(LN(LN($I$3/$W$2)))/$I$4 ->  | Y4: G
H5: t0 | I5: 0,000 | T5: =$I$8*(1-EXP(-$I$9*(S2-$I$10))) -> 0 | U5: VB | X5: =$I$10-LN(1-($W$2/$I$8))/$I$9 ->  | Y5: VB
T6: =$I$8/(1+EXP(-$I$9*(S2-$I$10))) -> 0 | U6: L | X6: =$I$10-LN(($I$8/$W$2)-1)/$I$9 ->  | Y6: L
H7: Conjunto de Dados 2 | T7: =$I$8*EXP(-EXP(-$I$9*(S2-$I$10))) -> 0 | U7: G | X7: =$I$10-(LN(LN($I$8/$W$2)))/$I$9 ->  | Y7: G
H8: Linf | I8: 0,000
H9: k | I9: 0,000 | S9: t1 | T9: L'(t) | W9: t1 | X9: tvm
H10: t0 | I10: 0,000 | P10: INP1 | Q10: 0,000 | S10: 0,000 | T10: =$I$3*$I$4*EXP(-$I$4*(S10-$I$5)) -> 0 | U10: VB | W10: 0,000 | X10: =(($I$3*(1-EXP(-$I$4*($W$12-$I$5))))-($I$3*(1-EXP(-$I$4*($W$10-$I$5)))))/($W$12-$W$10) ->  | Y10: VB | Z10: INP1 | AA10: 0,000
P11: INP2 | Q11: 0,000 | T11: =($I$3*$I$4*EXP(-$I$4*(S10-$I$5)))/(1+EXP(-$I$4*(S10-$I$5)))^2 -> 0 | U11: L | W11: t2 | X11: =(($I$3/(1+EXP(-$I$4*($W$12-$I$5))))-($I$3/(1+EXP(-$I$4*($W$10-$I$5))))/($W$12-$W$10)) ->  | Y11: L | Z11: INP2 | AA11: 0,000
T12: =$I$3*$I$4*EXP(-EXP(-$I$4*(S10-$I$5))-$I$4*(S10-$I$5)) -> 0 | U12: G | W12: 0,000 | X12: =(($I$3*EXP(-EXP(-$I$4*($W$12-$I$5))))-($I$3*EXP(-EXP(-$I$4*($W$10-$I$5)))))/($W$12-$W$10) ->  | Y12: G
T13: =$I$8*$I$9*EXP(-$I$9*(S10-$I$10)) -> 0 | U13: VB | X13: =(($I$8*(1-EXP(-$I$9*($W$12-$I$10))))-($I$8*(1-EXP(-$I$9*($W$10-$I$10)))))/($W$12-$W10) ->  | Y13: VB
T14: =($I$8*$I$9*EXP(-$I$9*(S10-$I$10)))/(1+EXP(-$I$9*(S10-$I$10)))^2 -> 0 | U14: L | X14: =(($I$8/(1+EXP(-$I$9*($W$12-$I$10))))-($I$8/(1+EXP(-$I$9*($W$10-$I$10)))))/($W$12-$W$10) ->  | Y14: L
T15: =$I$8*$I$9*EXP(-EXP(-$I$9*(S10-$I$10))-$I$9*(S10-$I$10)) -> 0 | U15: G | X15: =(($I$8*EXP(-EXP(-$I$9*($W$12-$I$10))))-($I$8*EXP(-EXP(-$I$9*($W$10-$I$10)))))/($W$12-$W$10) ->  | Y15: G
S17: l1 | T17: taxa abs. em comp.
P18: INP1 | Q18: 0,000 | S18: 0,000 | T18: =$I$4*($I$3-S18) -> 0 | U18: VB
P19: INP2 | Q19: 0,000 | T19: =$I$4*(S18-S18^2/$I$3) ->  | U19: L
T20: =S18*$I$4*LN($I$3/S18) ->  | U20: G
T21: =$I$9*($I$8-S18) -> 0 | U21: VB
T22: =$I$9*(S18-S18^2/$I$8) ->  | U22: L
T23: =S18*$I$9*LN($I$8/S18) ->  | U23: G
S24: 0,000
S25: t1 | T25: taxa rel. Em idd
P26: INP1 | Q26: 0,000 | S26: 2 | T26: =($I$4*EXP(-$I$4*(S26-$I$5)))/(1-EXP(-$I$4*(S26-$I$5))) ->  | U26: VB
P27: INP2 | Q27: 0,000 | T27: =($I$4*EXP(-$I$4*(S26-$I$5)))/(1+EXP(-$I$4*(S26-$I$5))) -> 0 | U27: L
T28: =$I$4*EXP(-$I$4*(S26-$I$5)) -> 0 | U28: G
T29: =($I$9*EXP(-$I$9*(S26-$I$10)))/(1-EXP(-$I$9*(S26-$I$10))) ->  | U29: VB
T30: =($I$9*EXP(-$I$9*(S26-$I$10)))/(1+EXP(-$I$9*(S26-$I$10))) -> 0 | U30: L
T31: =$I$9*EXP(-$I$9*(S26-$I$10)) -> 0 | U31: G
S33: l1 | T33: taxa rel. em comp.
P34: INP1 | Q34: 0,000 | S34: 0,000 | T34: =$I$4*($I$3/S34-1) ->  | U34: VB
P35: INP2 | Q35: 0,000 | T35: =$I$4*(1-S34/$I$3) ->  | U35: L
T36: =($I$4)*LN($I$3/S34) ->  | U36: G
T37: =$I$9*($I$8/S34-1) ->  | U37: VB
T38: =$I$9*(1-S34/$I$8) ->  | U38: L
P39: idademax | T39: =($I$9)*LN($I$8/S34) ->  | U39: G
P40: =$I$5-LN(1-(($I$3-1)/$I$3))/$I$4 -> 
P41: =$I$5-LN(($I$3/($I$3-1))-1)/$I$4 -> 
P42: =$I$5-(LN(LN($I$3/($I$3-1))))/$I$4 -> 
P43: =$I$10-LN(1-(($I$8-1)/$I$8))/$I$9 -> 
P44: =$I$10-LN(($I$8/($I$8-1))-1)/$I$9 -> 
P45: =$I$10-(LN(LN($I$8/($I$8-1))))/$I$9 -> 
AD67: =IF(AC67<>"",$I$3*(1-EXP(-$I$4*(AC67-$I$5))),"") ->  | AE67: =IF(AC67<>"",$I$3/(1+EXP(-$I$4*(AC67-$I$5))),"") ->  | AF67: =IF(AC67<>"",$I$3*EXP(-EXP(-$I$4*(AC67-$I$5))),"") ->  | AG67: =IF(AC67<>"",$I$8*(1-EXP(-$I$9*(AC67-$I$10))),"") ->  | AH67: =IF(AC67<>"",$I$8/(1+EXP(-$I$9*(AC67-$I$10))),"") ->  | AI67: =IF(AC67<>"",$I$8*EXP(-EXP(-$I$9*(AC67-$I$10))),"") -> 
AD131: =IF(AC131<>"",$I$3*(1-EXP(-$I$4*(AC131-$I$5))),"") ->  | AE131: =IF(AC131<>"",$I$3/(1+EXP(-$I$4*(AC131-$I$5))),"") ->  | AF131: =IF(AC131<>"",$I$3*EXP(-EXP(-$I$4*(AC131-$I$5))),"") ->  | AG131: =IF(AC131<>"",$I$8*(1-EXP(-$I$9*(AC131-$I$10))),"") ->  | AH131: =IF(AC131<>"",$I$8/(1+EXP(-$I$9*(AC131-$I$10))),"") ->  | AI131: =IF(AC131<>"",$I$8*EXP(-EXP(-$I$9*(AC131-$I$10))),"") -> 
AD195: =IF(AC195<>"",$I$3*(1-EXP(-$I$4*(AC195-$I$5))),"") ->  | AE195: =IF(AC195<>"",$I$3/(1+EXP(-$I$4*(AC195-$I$5))),"") ->  | AF195: =IF(AC195<>"",$I$3*EXP(-EXP(-$I$4*(AC195-$I$5))),"") ->  | AG195: =IF(AC195<>"",$I$8*(1-EXP(-$I$9*(AC195-$I$10))),"") ->  | AH195: =IF(AC195<>"",$I$8/(1+EXP(-$I$9*(AC195-$I$10))),"") ->  | AI195: =IF(AC195<>"",$I$8*EXP(-EXP(-$I$9*(AC195-$I$10))),"") -> 
AD259: =IF(AC259<>"",$I$3*(1-EXP(-$I$4*(AC259-$I$5))),"") ->  | AE259: =IF(AC259<>"",$I$3/(1+EXP(-$I$4*(AC259-$I$5))),"") ->  | AF259: =IF(AC259<>"",$I$3*EXP(-EXP(-$I$4*(AC259-$I$5))),"") ->  | AG259: =IF(AC259<>"",$I$8*(1-EXP(-$I$9*(AC259-$I$10))),"") ->  | AH259: =IF(AC259<>"",$I$8/(1+EXP(-$I$9*(AC259-$I$10))),"") ->  | AI259: =IF(AC259<>"",$I$8*EXP(-EXP(-$I$9*(AC259-$I$10))),"") -> 
AD323: =IF(AC323<>"",$I$3*(1-EXP(-$I$4*(AC323-$I$5))),"") ->  | AE323: =IF(AC323<>"",$I$3/(1+EXP(-$I$4*(AC323-$I$5))),"") ->  | AF323: =IF(AC323<>"",$I$3*EXP(-EXP(-$I$4*(AC323-$I$5))),"") ->  | AG323: =IF(AC323<>"",$I$8*(1-EXP(-$I$9*(AC323-$I$10))),"") ->  | AH323: =IF(AC323<>"",$I$8/(1+EXP(-$I$9*(AC323-$I$10))),"") ->  | AI323: =IF(AC323<>"",$I$8*EXP(-EXP(-$I$9*(AC323-$I$10))),"") -> 
AD387: =IF(AC387<>"",$I$3*(1-EXP(-$I$4*(AC387-$I$5))),"") ->  | AE387: =IF(AC387<>"",$I$3/(1+EXP(-$I$4*(AC387-$I$5))),"") ->  | AF387: =IF(AC387<>"",$I$3*EXP(-EXP(-$I$4*(AC387-$I$5))),"") ->  | AG387: =IF(AC387<>"",$I$8*(1-EXP(-$I$9*(AC387-$I$10))),"") ->  | AH387: =IF(AC387<>"",$I$8/(1+EXP(-$I$9*(AC387-$I$10))),"") ->  | AI387: =IF(AC387<>"",$I$8*EXP(-EXP(-$I$9*(AC387-$I$10))),"") -> 
AD451: =IF(AC451<>"",$I$3*(1-EXP(-$I$4*(AC451-$I$5))),"") ->  | AE451: =IF(AC451<>"",$I$3/(1+EXP(-$I$4*(AC451-$I$5))),"") ->  | AF451: =IF(AC451<>"",$I$3*EXP(-EXP(-$I$4*(AC451-$I$5))),"") ->  | AG451: =IF(AC451<>"",$I$8*(1-EXP(-$I$9*(AC451-$I$10))),"") ->  | AH451: =IF(AC451<>"",$I$8/(1+EXP(-$I$9*(AC451-$I$10))),"") ->  | AI451: =IF(AC451<>"",$I$8*EXP(-EXP(-$I$9*(AC451-$I$10))),"") -> 
AD515: =IF(AC515<>"",$I$3*(1-EXP(-$I$4*(AC515-$I$5))),"") ->  | AE515: =IF(AC515<>"",$I$3/(1+EXP(-$I$4*(AC515-$I$5))),"") ->  | AF515: =IF(AC515<>"",$I$3*EXP(-EXP(-$I$4*(AC515-$I$5))),"") ->  | AG515: =IF(AC515<>"",$I$8*(1-EXP(-$I$9*(AC515-$I$10))),"") ->  | AH515: =IF(AC515<>"",$I$8/(1+EXP(-$I$9*(AC515-$I$10))),"") ->  | AI515: =IF(AC515<>"",$I$8*EXP(-EXP(-$I$9*(AC515-$I$10))),"") -> 
AD579: =IF(AC579<>"",$I$3*(1-EXP(-$I$4*(AC579-$I$5))),"") ->  | AE579: =IF(AC579<>"",$I$3/(1+EXP(-$I$4*(AC579-$I$5))),"") ->  | AF579: =IF(AC579<>"",$I$3*EXP(-EXP(-$I$4*(AC579-$I$5))),"") ->  | AG579: =IF(AC579<>"",$I$8*(1-EXP(-$I$9*(AC579-$I$10))),"") ->  | AH579: =IF(AC579<>"",$I$8/(1+EXP(-$I$9*(AC579-$I$10))),"") ->  | AI579: =IF(AC579<>"",$I$8*EXP(-EXP(-$I$9*(AC579-$I$10))),"") -> 
AD643: =IF(AC643<>"",$I$3*(1-EXP(-$I$4*(AC643-$I$5))),"") ->  | AE643: =IF(AC643<>"",$I$3/(1+EXP(-$I$4*(AC643-$I$5))),"") ->  | AF643: =IF(AC643<>"",$I$3*EXP(-EXP(-$I$4*(AC643-$I$5))),"") ->  | AG643: =IF(AC643<>"",$I$8*(1-EXP(-$I$9*(AC643-$I$10))),"") ->  | AH643: =IF(AC643<>"",$I$8/(1+EXP(-$I$9*(AC643-$I$10))),"") ->  | AI643: =IF(AC643<>"",$I$8*EXP(-EXP(-$I$9*(AC643-$I$10))),"") -> 
AD707: =IF(AC707<>"",$I$3*(1-EXP(-$I$4*(AC707-$I$5))),"") ->  | AE707: =IF(AC707<>"",$I$3/(1+EXP(-$I$4*(AC707-$I$5))),"") ->  | AF707: =IF(AC707<>"",$I$3*EXP(-EXP(-$I$4*(AC707-$I$5))),"") ->  | AG707: =IF(AC707<>"",$I$8*(1-EXP(-$I$9*(AC707-$I$10))),"") ->  | AH707: =IF(AC707<>"",$I$8/(1+EXP(-$I$9*(AC707-$I$10))),"") ->  | AI707: =IF(AC707<>"",$I$8*EXP(-EXP(-$I$9*(AC707-$I$10))),"") -> 
AD771: =IF(AC771<>"",$I$3*(1-EXP(-$I$4*(AC771-$I$5))),"") ->  | AE771: =IF(AC771<>"",$I$3/(1+EXP(-$I$4*(AC771-$I$5))),"") ->  | AF771: =IF(AC771<>"",$I$3*EXP(-EXP(-$I$4*(AC771-$I$5))),"") ->  | AG771: =IF(AC771<>"",$I$8*(1-EXP(-$I$9*(AC771-$I$10))),"") ->  | AH771: =IF(AC771<>"",$I$8/(1+EXP(-$I$9*(AC771-$I$10))),"") ->  | AI771: =IF(AC771<>"",$I$8*EXP(-EXP(-$I$9*(AC771-$I$10))),"") -> 
AD835: =IF(AC835<>"",$I$3*(1-EXP(-$I$4*(AC835-$I$5))),"") ->  | AE835: =IF(AC835<>"",$I$3/(1+EXP(-$I$4*(AC835-$I$5))),"") ->  | AF835: =IF(AC835<>"",$I$3*EXP(-EXP(-$I$4*(AC835-$I$5))),"") ->  | AG835: =IF(AC835<>"",$I$8*(1-EXP(-$I$9*(AC835-$I$10))),"") ->  | AH835: =IF(AC835<>"",$I$8/(1+EXP(-$I$9*(AC835-$I$10))),"") ->  | AI835: =IF(AC835<>"",$I$8*EXP(-EXP(-$I$9*(AC835-$I$10))),"") -> 
AD899: =IF(AC899<>"",$I$3*(1-EXP(-$I$4*(AC899-$I$5))),"") ->  | AE899: =IF(AC899<>"",$I$3/(1+EXP(-$I$4*(AC899-$I$5))),"") ->  | AF899: =IF(AC899<>"",$I$3*EXP(-EXP(-$I$4*(AC899-$I$5))),"") ->  | AG899: =IF(AC899<>"",$I$8*(1-EXP(-$I$9*(AC899-$I$10))),"") ->  | AH899: =IF(AC899<>"",$I$8/(1+EXP(-$I$9*(AC899-$I$10))),"") ->  | AI899: =IF(AC899<>"",$I$8*EXP(-EXP(-$I$9*(AC899-$I$10))),"") -> 
AD963: =IF(AC963<>"",$I$3*(1-EXP(-$I$4*(AC963-$I$5))),"") ->  | AE963: =IF(AC963<>"",$I$3/(1+EXP(-$I$4*(AC963-$I$5))),"") ->  | AF963: =IF(AC963<>"",$I$3*EXP(-EXP(-$I$4*(AC963-$I$5))),"") ->  | AG963: =IF(AC963<>"",$I$8*(1-EXP(-$I$9*(AC963-$I$10))),"") ->  | AH963: =IF(AC963<>"",$I$8/(1+EXP(-$I$9*(AC963-$I$10))),"") ->  | AI963: =IF(AC963<>"",$I$8*EXP(-EXP(-$I$9*(AC963-$I$10))),"") -> 
AD1027: =IF(AC1027<>"",$I$3*(1-EXP(-$I$4*(AC1027-$I$5))),"") ->  | AE1027: =IF(AC1027<>"",$I$3/(1+EXP(-$I$4*(AC1027-$I$5))),"") ->  | AF1027: =IF(AC1027<>"",$I$3*EXP(-EXP(-$I$4*(AC1027-$I$5))),"") ->  | AG1027: =IF(AC1027<>"",$I$8*(1-EXP(-$I$9*(AC1027-$I$10))),"") ->  | AH1027: =IF(AC1027<>"",$I$8/(1+EXP(-$I$9*(AC1027-$I$10))),"") ->  | AI1027: =IF(AC1027<>"",$I$8*EXP(-EXP(-$I$9*(AC1027-$I$10))),"") -> 
AD1091: =IF(AC1091<>"",$I$3*(1-EXP(-$I$4*(AC1091-$I$5))),"") ->  | AE1091: =IF(AC1091<>"",$I$3/(1+EXP(-$I$4*(AC1091-$I$5))),"") ->  | AF1091: =IF(AC1091<>"",$I$3*EXP(-EXP(-$I$4*(AC1091-$I$5))),"") ->  | AG1091: =IF(AC1091<>"",$I$8*(1-EXP(-$I$9*(AC1091-$I$10))),"") ->  | AH1091: =IF(AC1091<>"",$I$8/(1+EXP(-$I$9*(AC1091-$I$10))),"") ->  | AI1091: =IF(AC1091<>"",$I$8*EXP(-EXP(-$I$9*(AC1091-$I$10))),"") -> 
AD1155: =IF(AC1155<>"",$I$3*(1-EXP(-$I$4*(AC1155-$I$5))),"") ->  | AE1155: =IF(AC1155<>"",$I$3/(1+EXP(-$I$4*(AC1155-$I$5))),"") ->  | AF1155: =IF(AC1155<>"",$I$3*EXP(-EXP(-$I$4*(AC1155-$I$5))),"") ->  | AG1155: =IF(AC1155<>"",$I$8*(1-EXP(-$I$9*(AC1155-$I$10))),"") ->  | AH1155: =IF(AC1155<>"",$I$8/(1+EXP(-$I$9*(AC1155-$I$10))),"") ->  | AI1155: =IF(AC1155<>"",$I$8*EXP(-EXP(-$I$9*(AC1155-$I$10))),"") -> 
AD1219: =IF(AC1219<>"",$I$3*(1-EXP(-$I$4*(AC1219-$I$5))),"") ->  | AE1219: =IF(AC1219<>"",$I$3/(1+EXP(-$I$4*(AC1219-$I$5))),"") ->  | AF1219: =IF(AC1219<>"",$I$3*EXP(-EXP(-$I$4*(AC1219-$I$5))),"") ->  | AG1219: =IF(AC1219<>"",$I$8*(1-EXP(-$I$9*(AC1219-$I$10))),"") ->  | AH1219: =IF(AC1219<>"",$I$8/(1+EXP(-$I$9*(AC1219-$I$10))),"") ->  | AI1219: =IF(AC1219<>"",$I$8*EXP(-EXP(-$I$9*(AC1219-$I$10))),"") -> 
AD1283: =IF(AC1283<>"",$I$3*(1-EXP(-$I$4*(AC1283-$I$5))),"") ->  | AE1283: =IF(AC1283<>"",$I$3/(1+EXP(-$I$4*(AC1283-$I$5))),"") ->  | AF1283: =IF(AC1283<>"",$I$3*EXP(-EXP(-$I$4*(AC1283-$I$5))),"") ->  | AG1283: =IF(AC1283<>"",$I$8*(1-EXP(-$I$9*(AC1283-$I$10))),"") ->  | AH1283: =IF(AC1283<>"",$I$8/(1+EXP(-$I$9*(AC1283-$I$10))),"") ->  | AI1283: =IF(AC1283<>"",$I$8*EXP(-EXP(-$I$9*(AC1283-$I$10))),"") -> 
AD1347: =IF(AC1347<>"",$I$3*(1-EXP(-$I$4*(AC1347-$I$5))),"") ->  | AE1347: =IF(AC1347<>"",$I$3/(1+EXP(-$I$4*(AC1347-$I$5))),"") ->  | AF1347: =IF(AC1347<>"",$I$3*EXP(-EXP(-$I$4*(AC1347-$I$5))),"") ->  | AG1347: =IF(AC1347<>"",$I$8*(1-EXP(-$I$9*(AC1347-$I$10))),"") ->  | AH1347: =IF(AC1347<>"",$I$8/(1+EXP(-$I$9*(AC1347-$I$10))),"") ->  | AI1347: =IF(AC1347<>"",$I$8*EXP(-EXP(-$I$9*(AC1347-$I$10))),"") -> 
AD1411: =IF(AC1411<>"",$I$3*(1-EXP(-$I$4*(AC1411-$I$5))),"") ->  | AE1411: =IF(AC1411<>"",$I$3/(1+EXP(-$I$4*(AC1411-$I$5))),"") ->  | AF1411: =IF(AC1411<>"",$I$3*EXP(-EXP(-$I$4*(AC1411-$I$5))),"") ->  | AG1411: =IF(AC1411<>"",$I$8*(1-EXP(-$I$9*(AC1411-$I$10))),"") ->  | AH1411: =IF(AC1411<>"",$I$8/(1+EXP(-$I$9*(AC1411-$I$10))),"") ->  | AI1411: =IF(AC1411<>"",$I$8*EXP(-EXP(-$I$9*(AC1411-$I$10))),"") -> 
AD1475: =IF(AC1475<>"",$I$3*(1-EXP(-$I$4*(AC1475-$I$5))),"") ->  | AE1475: =IF(AC1475<>"",$I$3/(1+EXP(-$I$4*(AC1475-$I$5))),"") ->  | AF1475: =IF(AC1475<>"",$I$3*EXP(-EXP(-$I$4*(AC1475-$I$5))),"") ->  | AG1475: =IF(AC1475<>"",$I$8*(1-EXP(-$I$9*(AC1475-$I$10))),"") ->  | AH1475: =IF(AC1475<>"",$I$8/(1+EXP(-$I$9*(AC1475-$I$10))),"") ->  | AI1475: =IF(AC1475<>"",$I$8*EXP(-EXP(-$I$9*(AC1475-$I$10))),"") -> 
AD1539: =IF(AC1539<>"",$I$3*(1-EXP(-$I$4*(AC1539-$I$5))),"") ->  | AE1539: =IF(AC1539<>"",$I$3/(1+EXP(-$I$4*(AC1539-$I$5))),"") ->  | AF1539: =IF(AC1539<>"",$I$3*EXP(-EXP(-$I$4*(AC1539-$I$5))),"") ->  | AG1539: =IF(AC1539<>"",$I$8*(1-EXP(-$I$9*(AC1539-$I$10))),"") ->  | AH1539: =IF(AC1539<>"",$I$8/(1+EXP(-$I$9*(AC1539-$I$10))),"") ->  | AI1539: =IF(AC1539<>"",$I$8*EXP(-EXP(-$I$9*(AC1539-$I$10))),"") -> 
AD1603: =IF(AC1603<>"",$I$3*(1-EXP(-$I$4*(AC1603-$I$5))),"") ->  | AE1603: =IF(AC1603<>"",$I$3/(1+EXP(-$I$4*(AC1603-$I$5))),"") ->  | AF1603: =IF(AC1603<>"",$I$3*EXP(-EXP(-$I$4*(AC1603-$I$5))),"") ->  | AG1603: =IF(AC1603<>"",$I$8*(1-EXP(-$I$9*(AC1603-$I$10))),"") ->  | AH1603: =IF(AC1603<>"",$I$8/(1+EXP(-$I$9*(AC1603-$I$10))),"") ->  | AI1603: =IF(AC1603<>"",$I$8*EXP(-EXP(-$I$9*(AC1603-$I$10))),"") -> 
AD1667: =IF(AC1667<>"",$I$3*(1-EXP(-$I$4*(AC1667-$I$5))),"") ->  | AE1667: =IF(AC1667<>"",$I$3/(1+EXP(-$I$4*(AC1667-$I$5))),"") ->  | AF1667: =IF(AC1667<>"",$I$3*EXP(-EXP(-$I$4*(AC1667-$I$5))),"") ->  | AG1667: =IF(AC1667<>"",$I$8*(1-EXP(-$I$9*(AC1667-$I$10))),"") ->  | AH1667: =IF(AC1667<>"",$I$8/(1+EXP(-$I$9*(AC1667-$I$10))),"") ->  | AI1667: =IF(AC1667<>"",$I$8*EXP(-EXP(-$I$9*(AC1667-$I$10))),"") -> 
AD1731: =IF(AC1731<>"",$I$3*(1-EXP(-$I$4*(AC1731-$I$5))),"") ->  | AE1731: =IF(AC1731<>"",$I$3/(1+EXP(-$I$4*(AC1731-$I$5))),"") ->  | AF1731: =IF(AC1731<>"",$I$3*EXP(-EXP(-$I$4*(AC1731-$I$5))),"") ->  | AG1731: =IF(AC1731<>"",$I$8*(1-EXP(-$I$9*(AC1731-$I$10))),"") ->  | AH1731: =IF(AC1731<>"",$I$8/(1+EXP(-$I$9*(AC1731-$I$10))),"") ->  | AI1731: =IF(AC1731<>"",$I$8*EXP(-EXP(-$I$9*(AC1731-$I$10))),"") -> 
AD1795: =IF(AC1795<>"",$I$3*(1-EXP(-$I$4*(AC1795-$I$5))),"") ->  | AE1795: =IF(AC1795<>"",$I$3/(1+EXP(-$I$4*(AC1795-$I$5))),"") ->  | AF1795: =IF(AC1795<>"",$I$3*EXP(-EXP(-$I$4*(AC1795-$I$5))),"") ->  | AG1795: =IF(AC1795<>"",$I$8*(1-EXP(-$I$9*(AC1795-$I$10))),"") ->  | AH1795: =IF(AC1795<>"",$I$8/(1+EXP(-$I$9*(AC1795-$I$10))),"") ->  | AI1795: =IF(AC1795<>"",$I$8*EXP(-EXP(-$I$9*(AC1795-$I$10))),"") -> 
AD1859: =IF(AC1859<>"",$I$3*(1-EXP(-$I$4*(AC1859-$I$5))),"") ->  | AE1859: =IF(AC1859<>"",$I$3/(1+EXP(-$I$4*(AC1859-$I$5))),"") ->  | AF1859: =IF(AC1859<>"",$I$3*EXP(-EXP(-$I$4*(AC1859-$I$5))),"") ->  | AG1859: =IF(AC1859<>"",$I$8*(1-EXP(-$I$9*(AC1859-$I$10))),"") ->  | AH1859: =IF(AC1859<>"",$I$8/(1+EXP(-$I$9*(AC1859-$I$10))),"") ->  | AI1859: =IF(AC1859<>"",$I$8*EXP(-EXP(-$I$9*(AC1859-$I$10))),"") -> 
AD1923: =IF(AC1923<>"",$I$3*(1-EXP(-$I$4*(AC1923-$I$5))),"") ->  | AE1923: =IF(AC1923<>"",$I$3/(1+EXP(-$I$4*(AC1923-$I$5))),"") ->  | AF1923: =IF(AC1923<>"",$I$3*EXP(-EXP(-$I$4*(AC1923-$I$5))),"") ->  | AG1923: =IF(AC1923<>"",$I$8*(1-EXP(-$I$9*(AC1923-$I$10))),"") ->  | AH1923: =IF(AC1923<>"",$I$8/(1+EXP(-$I$9*(AC1923-$I$10))),"") ->  | AI1923: =IF(AC1923<>"",$I$8*EXP(-EXP(-$I$9*(AC1923-$I$10))),"") -> 
AD1987: =IF(AC1987<>"",$I$3*(1-EXP(-$I$4*(AC1987-$I$5))),"") ->  | AE1987: =IF(AC1987<>"",$I$3/(1+EXP(-$I$4*(AC1987-$I$5))),"") ->  | AF1987: =IF(AC1987<>"",$I$3*EXP(-EXP(-$I$4*(AC1987-$I$5))),"") ->  | AG1987: =IF(AC1987<>"",$I$8*(1-EXP(-$I$9*(AC1987-$I$10))),"") ->  | AH1987: =IF(AC1987<>"",$I$8/(1+EXP(-$I$9*(AC1987-$I$10))),"") ->  | AI1987: =IF(AC1987<>"",$I$8*EXP(-EXP(-$I$9*(AC1987-$I$10))),"") -> 
AD2051: =IF(AC2051<>"",$I$3*(1-EXP(-$I$4*(AC2051-$I$5))),"") ->  | AE2051: =IF(AC2051<>"",$I$3/(1+EXP(-$I$4*(AC2051-$I$5))),"") ->  | AF2051: =IF(AC2051<>"",$I$3*EXP(-EXP(-$I$4*(AC2051-$I$5))),"") ->  | AG2051: =IF(AC2051<>"",$I$8*(1-EXP(-$I$9*(AC2051-$I$10))),"") ->  | AH2051: =IF(AC2051<>"",$I$8/(1+EXP(-$I$9*(AC2051-$I$10))),"") ->  | AI2051: =IF(AC2051<>"",$I$8*EXP(-EXP(-$I$9*(AC2051-$I$10))),"") -> 
AD2115: =IF(AC2115<>"",$I$3*(1-EXP(-$I$4*(AC2115-$I$5))),"") ->  | AE2115: =IF(AC2115<>"",$I$3/(1+EXP(-$I$4*(AC2115-$I$5))),"") ->  | AF2115: =IF(AC2115<>"",$I$3*EXP(-EXP(-$I$4*(AC2115-$I$5))),"") ->  | AG2115: =IF(AC2115<>"",$I$8*(1-EXP(-$I$9*(AC2115-$I$10))),"") ->  | AH2115: =IF(AC2115<>"",$I$8/(1+EXP(-$I$9*(AC2115-$I$10))),"") ->  | AI2115: =IF(AC2115<>"",$I$8*EXP(-EXP(-$I$9*(AC2115-$I$10))),"") -> 
AD2179: =IF(AC2179<>"",$I$3*(1-EXP(-$I$4*(AC2179-$I$5))),"") ->  | AE2179: =IF(AC2179<>"",$I$3/(1+EXP(-$I$4*(AC2179-$I$5))),"") ->  | AF2179: =IF(AC2179<>"",$I$3*EXP(-EXP(-$I$4*(AC2179-$I$5))),"") ->  | AG2179: =IF(AC2179<>"",$I$8*(1-EXP(-$I$9*(AC2179-$I$10))),"") ->  | AH2179: =IF(AC2179<>"",$I$8/(1+EXP(-$I$9*(AC2179-$I$10))),"") ->  | AI2179: =IF(AC2179<>"",$I$8*EXP(-EXP(-$I$9*(AC2179-$I$10))),"") -> 
